Council Name,Date,TransNo,Amount � (Excl VAT),Supplier name,Supplier Category,Expense Area,Expense Type,Expense Code,Unclaimed VAT
Royal Borough of Kingston,31/12/2022,70037723,"7,000.00",31TEN CONSULTING LIMITED,TEMP STAFF & CONSULTANCY,Capital Programme,External Fees and Consultants,C20000,0
Royal Borough of Kingston,24/01/2023,90201938,"1,375.00",REDACTED - PERSONAL DATA,PLS LANDLORDS,Place,PSL Payments To Landlords,A22031,0
Royal Borough of Kingston,24/01/2023,90201992,"1,375.00",REDACTED - PERSONAL DATA,PLS LANDLORDS,Place,PSL Payments To Landlords,A22031,0
Royal Borough of Kingston,19/12/2022,70037943,"9,211.00",AD WIBDEN LIMITED,CONSTRUCTION INDUSTRY,Capital Programme,Grants Given For Capital Purposes,C20004,0
Royal Borough of Kingston,26/01/2023,70039541,"3,000.00",REDACTED - PERSONAL DATA,SUNDRY SUPPLIER - HOUSING,Place,Housing Incentives,A62025,0
Royal Borough of Kingston,26/01/2023,70039545,"1,321.00",REDACTED - PERSONAL DATA,SUNDRY SUPPLIER - HOUSING,Place,Prevention Of Homelessness,A44141,0
Royal Borough of Kingston,24/01/2023,90201828,"1,097.00",REDACTED - PERSONAL DATA,PLS LANDLORDS,Place,PSL Payments To Landlords,A22031,0
Royal Borough of Kingston,29/12/2022,70037802,"1,500.00",REDACTED - PERSONAL DATA,PLS LANDLORDS,Place,Housing Incentives,A62025,0
Royal Borough of Kingston,24/01/2023,90201892,"1,168.24",REDACTED - PERSONAL DATA,PLS LANDLORDS,Place,PSL Payments To Landlords,A22031,0
Royal Borough of Kingston,24/01/2023,90201981,"2,300.00",REDACTED - PERSONAL DATA,PLS LANDLORDS,Place,PSL Payments To Landlords,A22031,0
Royal Borough of Kingston,24/01/2023,90201982,"2,300.00",REDACTED - PERSONAL DATA,PLS LANDLORDS,Place,PSL Payments To Landlords,A22031,0
Royal Borough of Kingston,24/01/2023,90201983,"2,300.00",REDACTED - PERSONAL DATA,PLS LANDLORDS,Place,PSL Payments To Landlords,A22031,0
Royal Borough of Kingston,24/01/2023,90202150,"2,300.00",REDACTED - PERSONAL DATA,PLS LANDLORDS,Place,PSL Payments To Landlords,A22031,0
Royal Borough of Kingston,24/01/2023,90201934,993.34,REDACTED - PERSONAL DATA,PLS LANDLORDS,Place,PSL Payments To Landlords,A22031,0
Royal Borough of Kingston,13/01/2023,90198270,"2,964.60",ABACUS PRE-SCHOOL,ACADEMIC INSTNS - OTHER,Schools,PVI Providers,A60014,0
Royal Borough of Kingston,13/01/2023,90198367,"1,352.16",ABACUS PRE-SCHOOL,ACADEMIC INSTNS - OTHER,Schools,2 Yr Old Place Funding,A60000,0
Royal Borough of Kingston,01/01/2023,90202577,"3,842.10",ABBEY 14 LIMITED,SOCIAL SERVICES RESIDENTIAL,Adult Social Care & Health,Independent Placements,A56006,0
Royal Borough of Kingston,24/01/2023,90202230,"3,600.00",ABBEYFIELD,SOCIAL SERVICES RESIDENTIAL,Adult Social Care & Health,Third party pymts - private contractors (Non-Controcc),A56087,0
Royal Borough of Kingston,01/01/2023,90202405,"3,865.08",ABBEYFIELD,SOCIAL SERVICES RESIDENTIAL,Adult Social Care & Health,Independent Placements,A56006,0
Royal Borough of Kingston,01/01/2023,90202406,"3,865.08",ABBEYFIELD,SOCIAL SERVICES RESIDENTIAL,Adult Social Care & Health,Independent Placements,A56006,0
Royal Borough of Kingston,01/01/2023,90202409,"3,865.08",ABBEYFIELD,SOCIAL SERVICES RESIDENTIAL,Adult Social Care & Health,Independent Placements,A56006,0
Royal Borough of Kingston,01/01/2023,90202416,"2,618.28",ABBEYFIELD,SOCIAL SERVICES RESIDENTIAL,Adult Social Care & Health,Independent Placements,A56006,0
Royal Borough of Kingston,01/01/2023,90202419,"5,757.14",ABBEYFIELD,SOCIAL SERVICES RESIDENTIAL,Adult Social Care & Health,Independent Placements,A56006,0
Royal Borough of Kingston,01/01/2023,90202423,"3,865.08",ABBEYFIELD,SOCIAL SERVICES RESIDENTIAL,Adult Social Care & Health,Independent Placements,A56006,0
Royal Borough of Kingston,01/01/2023,90202425,"3,865.08",ABBEYFIELD,SOCIAL SERVICES RESIDENTIAL,Adult Social Care & Health,Independent Placements,A56006,0
Royal Borough of Kingston,01/01/2023,90202426,"3,865.08",ABBEYFIELD,SOCIAL SERVICES RESIDENTIAL,Adult Social Care & Health,Independent Placements,A56006,0
Royal Borough of Kingston,01/01/2023,90202431,"3,865.08",ABBEYFIELD,SOCIAL SERVICES RESIDENTIAL,Adult Social Care & Health,Independent Placements,A56006,0
Royal Borough of Kingston,01/01/2023,90202433,"3,865.08",ABBEYFIELD,SOCIAL SERVICES RESIDENTIAL,Adult Social Care & Health,Independent Placements,A56006,0
Royal Borough of Kingston,01/01/2023,90202438,"1,994.88",ABBEYFIELD,SOCIAL SERVICES RESIDENTIAL,Adult Social Care & Health,Independent Placements,A56006,0
Royal Borough of Kingston,01/01/2023,90202444,"3,865.08",ABBEYFIELD,SOCIAL SERVICES RESIDENTIAL,Adult Social Care & Health,Independent Placements,A56006,0
Royal Borough of Kingston,01/01/2023,90202446,"-2,493.60",ABBEYFIELD,SOCIAL SERVICES RESIDENTIAL,Adult Social Care & Health,Independent Placements,A56006,0
Royal Borough of Kingston,01/01/2023,90202451,"3,865.08",ABBEYFIELD,SOCIAL SERVICES RESIDENTIAL,Adult Social Care & Health,Independent Placements,A56006,0
Royal Borough of Kingston,01/01/2023,90202453,"3,865.08",ABBEYFIELD,SOCIAL SERVICES RESIDENTIAL,Adult Social Care & Health,Independent Placements,A56006,0
Royal Borough of Kingston,01/01/2023,90202460,"3,865.08",ABBEYFIELD,SOCIAL SERVICES RESIDENTIAL,Adult Social Care & Health,Independent Placements,A56006,0
Royal Borough of Kingston,01/01/2023,90202461,"1,620.84",ABBEYFIELD,SOCIAL SERVICES RESIDENTIAL,Adult Social Care & Health,Independent Placements,A56006,0
Royal Borough of Kingston,01/01/2023,90202462,"3,865.08",ABBEYFIELD,SOCIAL SERVICES RESIDENTIAL,Adult Social Care & Health,Independent Placements,A56006,0
Royal Borough of Kingston,01/01/2023,90202463,"3,865.08",ABBEYFIELD,SOCIAL SERVICES RESIDENTIAL,Adult Social Care & Health,Independent Placements,A56006,0
Royal Borough of Kingston,01/01/2023,90202464,"3,865.08",ABBEYFIELD,SOCIAL SERVICES RESIDENTIAL,Adult Social Care & Health,Independent Placements,A56006,0
Royal Borough of Kingston,01/01/2023,90202517,"3,865.08",ABBEYFIELD,SOCIAL SERVICES RESIDENTIAL,Adult Social Care & Health,Independent Placements,A56006,0
Royal Borough of Kingston,01/01/2023,90202570,"3,865.08",ABBEYFIELD,SOCIAL SERVICES RESIDENTIAL,Adult Social Care & Health,Independent Placements,A56006,0
Royal Borough of Kingston,01/01/2023,90202575,"4,141.16",ABBEYFIELD,SOCIAL SERVICES RESIDENTIAL,Adult Social Care & Health,Independent Placements,A56006,0
Royal Borough of Kingston,01/01/2023,90202583,"3,865.08",ABBEYFIELD,SOCIAL SERVICES RESIDENTIAL,Adult Social Care & Health,Independent Placements,A56006,0
Royal Borough of Kingston,01/01/2023,90202598,"3,865.08",ABBEYFIELD,SOCIAL SERVICES RESIDENTIAL,Adult Social Care & Health,Independent Placements,A56006,0
Royal Borough of Kingston,01/01/2023,90202611,"3,740.40",ABBEYFIELD,SOCIAL SERVICES RESIDENTIAL,Adult Social Care & Health,Independent Placements,A56006,0
Royal Borough of Kingston,01/01/2023,90202612,"3,865.08",ABBEYFIELD,SOCIAL SERVICES RESIDENTIAL,Adult Social Care & Health,Independent Placements,A56006,0
Royal Borough of Kingston,01/01/2023,90202613,"3,740.40",ABBEYFIELD,SOCIAL SERVICES RESIDENTIAL,Adult Social Care & Health,Independent Placements,A56006,0
Royal Borough of Kingston,01/01/2023,90202614,"3,865.08",ABBEYFIELD,SOCIAL SERVICES RESIDENTIAL,Adult Social Care & Health,Independent Placements,A56006,0
Royal Borough of Kingston,01/01/2023,90202615,"3,865.08",ABBEYFIELD,SOCIAL SERVICES RESIDENTIAL,Adult Social Care & Health,Independent Placements,A56006,0
Royal Borough of Kingston,01/01/2023,90202621,"3,865.08",ABBEYFIELD,SOCIAL SERVICES RESIDENTIAL,Adult Social Care & Health,Independent Placements,A56006,0
Royal Borough of Kingston,01/01/2023,90202624,"1,496.16",ABBEYFIELD,SOCIAL SERVICES RESIDENTIAL,Adult Social Care & Health,Independent Placements,A56006,0
Royal Borough of Kingston,01/01/2023,90202628,"3,865.08",ABBEYFIELD,SOCIAL SERVICES RESIDENTIAL,Adult Social Care & Health,Independent Placements,A56006,0
Royal Borough of Kingston,01/01/2023,90202629,-997.44,ABBEYFIELD,SOCIAL SERVICES RESIDENTIAL,Adult Social Care & Health,Independent Placements,A56006,0
Royal Borough of Kingston,01/01/2023,90201679,"5,745.10",ABC HILLINGDON LTD,ACCOMMODATION - OTHER,Adult Social Care & Health,Personal Budget - Third Party,A61019,0
Royal Borough of Kingston,24/01/2023,90201945,990.58,REDACTED - PERSONAL DATA,PLS LANDLORDS,Place,PSL Payments To Landlords,A22031,0
Royal Borough of Kingston,22/12/2022,70037743,900.00,AC & MS LIMITED,LEGAL & PROFESSIONAL SERVICES,Capital Programme,Asbestos Removal,C10000,0
Royal Borough of Kingston,20/12/2022,70037783,"7,383.22",AC & MS LIMITED,LEGAL & PROFESSIONAL SERVICES,Capital Programme,Asbestos Removal,C10000,0
Royal Borough of Kingston,30/11/2022,70038604,"1,261.35",AC & MS LIMITED,LEGAL & PROFESSIONAL SERVICES,Housing Revenue Account,Asbestos Audit,A20042,0
Royal Borough of Kingston,13/01/2023,90198309,"12,596.26",ACACIA PRE-SCHOOL,ACADEMIC INSTNS - OTHER,Schools,PVI Providers,A60014,0
Royal Borough of Kingston,13/01/2023,90198377,"1,216.94",ACACIA PRE-SCHOOL,ACADEMIC INSTNS - OTHER,Schools,2 Yr Old Place Funding,A60000,0
Royal Borough of Kingston,24/01/2023,90202219,"1,047.00",Accountancy Services (New Malden) Limited,PLS LANDLORDS,Place,PSL Payments To Landlords,A22031,0
Royal Borough of Kingston,01/01/2023,90202647,"7,013.31",Achieve Together Limited,SOCIAL SERVICES - OTHER,Adult Social Care & Health,Independent Placements,A56006,0
Royal Borough of Kingston,01/01/2023,90202683,"4,740.25",Achieve Together Limited,SOCIAL SERVICES - OTHER,Adult Social Care & Health,Independent Placements,A56006,0
Royal Borough of Kingston,01/01/2023,90202717,"11,844.44",Achieve Together Limited,SOCIAL SERVICES - OTHER,Adult Social Care & Health,Independent Placements,A56006,0
Royal Borough of Kingston,04/01/2023,70038101,"3,000.00",ACHIEVING FOR CHILDREN LIMITED,LEGAL & PROFESSIONAL SERVICES,Corporate & Communities,Payments to Voluntary Organisations,A54005,0
Royal Borough of Kingston,04/01/2023,70038138,"6,223,191.71",ACHIEVING FOR CHILDREN LIMITED,LEGAL & PROFESSIONAL SERVICES,Childrens Services,Fixed Childrens Services Contract Strategic,A51019,0
Royal Borough of Kingston,13/01/2023,90198312,"17,412.08",Acorn to Oak Nursery and Preschool Ltd,CHILDMINDERS START UP GRANT,Schools,PVI Providers,A60014,0
Royal Borough of Kingston,13/01/2023,90198378,"2,366.28",Acorn to Oak Nursery and Preschool Ltd,CHILDMINDERS START UP GRANT,Schools,2 Yr Old Place Funding,A60000,0
Royal Borough of Kingston,01/01/2023,90202513,"5,511.71",Active Care Group Services,SOCIAL SERVICES RESIDENTIAL,Adult Social Care & Health,Independent Placements,A56006,0
Royal Borough of Kingston,31/12/2022,70038161,"1,302.00",ADAM HOTELS UK LIMITED,ACCOMMODATION BED & BREAKFAST,Place,Bed & Breakfast,A56000,0
Royal Borough of Kingston,07/12/2022,70036943,"19,807.41",ADAM HTT LIMITED  ,TAXI AND COACH HIRE,Adult Social Care & Health,Home To School Transport Taxis,A33016,0
Royal Borough of Kingston,26/10/2022,70039573,"12,210.97",ADAM HTT LIMITED  ,TAXI AND COACH HIRE,Adult Social Care & Health,Home To School Transport Taxis,A33016,0
Royal Borough of Kingston,25/01/2023,70039580,"19,042.29",ADAM HTT LIMITED  ,TAXI AND COACH HIRE,Adult Social Care & Health,Home To School Transport Taxis,A33016,0
Royal Borough of Kingston,11/01/2023,70039667,"8,435.01",ADAM HTT LIMITED  ,TAXI AND COACH HIRE,Adult Social Care & Health,Home To School Transport Taxis,A33016,0
Royal Borough of Kingston,04/01/2023,70039668,"6,181.35",ADAM HTT LIMITED  ,TAXI AND COACH HIRE,Adult Social Care & Health,Home To School Transport Taxis,A33016,0
Royal Borough of Kingston,21/12/2022,70039669,"16,748.57",ADAM HTT LIMITED  ,TAXI AND COACH HIRE,Adult Social Care & Health,Home To School Transport Taxis,A33016,0
Royal Borough of Kingston,14/12/2022,70039670,"21,494.64",ADAM HTT LIMITED  ,TAXI AND COACH HIRE,Adult Social Care & Health,Home To School Transport Taxis,A33016,0
Royal Borough of Kingston,29/12/2022,70039671,"6,778.30",ADAM HTT LIMITED  ,TAXI AND COACH HIRE,Adult Social Care & Health,Home To School Transport Taxis,A33016,0
Royal Borough of Kingston,18/01/2023,70039819,"15,275.43",ADAM HTT LIMITED  ,TAXI AND COACH HIRE,Adult Social Care & Health,Home To School Transport Taxis,A33016,0
Royal Borough of Kingston,12/12/2022,70038067,"21,975.57",Adapted4 Limited,SUNDRY SUPPLIER - HOUSING,Capital Programme,Grants Given For Capital Purposes,C20004,0
Royal Borough of Kingston,13/01/2023,90198329,"3,221.53",Event Supplies LTD,CHILDMINDERS START UP GRANT,Schools,PVI Providers,A60014,0
Royal Borough of Kingston,21/12/2022,70037508,700.00,ADVANCED TREE SERVICES LIMITED,CONSTRUCTION INDUSTRY,Housing Revenue Account,Tree Works,A56042,0
Royal Borough of Kingston,05/01/2023,70038073,"14,333.00",ADVANCED TREE SERVICES LIMITED,CONSTRUCTION INDUSTRY,Corporate & Communities,Other Private Contractors - Third Party,A56080,0
Royal Borough of Kingston,05/01/2023,70038075,950.00,ADVANCED TREE SERVICES LIMITED,CONSTRUCTION INDUSTRY,Corporate & Communities,Other Private Contractors - Third Party,A56080,0
Royal Borough of Kingston,05/01/2023,70038076,960.00,ADVANCED TREE SERVICES LIMITED,CONSTRUCTION INDUSTRY,Corporate & Communities,Other Private Contractors - Third Party,A56080,0
Royal Borough of Kingston,10/01/2023,70038295,"1,280.00",ADVANCED TREE SERVICES LIMITED,CONSTRUCTION INDUSTRY,Housing Revenue Account,Maintenance of trees,A28003,0
Royal Borough of Kingston,11/01/2023,70038353,700.00,ADVANCED TREE SERVICES LIMITED,CONSTRUCTION INDUSTRY,Corporate & Communities,Maintenance of trees,A28003,0
Royal Borough of Kingston,11/01/2023,70038357,"8,000.00",ADVANCED TREE SERVICES LIMITED,CONSTRUCTION INDUSTRY,Corporate & Communities,Other Private Contractors - Third Party,A56080,0
Royal Borough of Kingston,19/01/2023,70038929,600.00,ADVANCED TREE SERVICES LIMITED,CONSTRUCTION INDUSTRY,Corporate & Communities,Maintenance of trees,A28003,0
Royal Borough of Kingston,19/01/2023,70038930,"4,102.00",ADVANCED TREE SERVICES LIMITED,CONSTRUCTION INDUSTRY,Corporate & Communities,Maintenance of trees,A28003,0
Royal Borough of Kingston,19/01/2023,70038930,60.00,ADVANCED TREE SERVICES LIMITED,CONSTRUCTION INDUSTRY,Housing Revenue Account,Tree Works,A56042,0
Royal Borough of Kingston,19/01/2023,70038930,120.00,ADVANCED TREE SERVICES LIMITED,CONSTRUCTION INDUSTRY,Housing Revenue Account,Tree Works,A56042,0
Royal Borough of Kingston,19/01/2023,70038930,150.00,ADVANCED TREE SERVICES LIMITED,CONSTRUCTION INDUSTRY,Housing Revenue Account,Tree Works,A56042,0
Royal Borough of Kingston,19/01/2023,70038930,240.00,ADVANCED TREE SERVICES LIMITED,CONSTRUCTION INDUSTRY,Place,Tree Works,A56042,0
Royal Borough of Kingston,19/01/2023,70039082,"1,500.00",ADVANCED TREE SERVICES LIMITED,CONSTRUCTION INDUSTRY,Corporate & Communities,Maintenance of trees,A28003,0
Royal Borough of Kingston,23/01/2023,70039404,"10,000.00",ADVANCED TREE SERVICES LIMITED,CONSTRUCTION INDUSTRY,Corporate & Communities,Maintenance of trees,A28003,0
Royal Borough of Kingston,23/01/2023,70039406,"4,146.00",ADVANCED TREE SERVICES LIMITED,CONSTRUCTION INDUSTRY,Corporate & Communities,Maintenance of trees,A28003,0
Royal Borough of Kingston,23/01/2023,70039406,290.00,ADVANCED TREE SERVICES LIMITED,CONSTRUCTION INDUSTRY,Housing Revenue Account,Tree Works,A56042,0
Royal Borough of Kingston,13/01/2023,90198249,"60,181.38",ADVANTAGE DAY NURSERY LTD,ACADEMIC INSTNS - OTHER,Schools,PVI Providers,A60014,0
Royal Borough of Kingston,13/01/2023,90198351,"6,422.76",ADVANTAGE DAY NURSERY LTD,ACADEMIC INSTNS - OTHER,Schools,2 Yr Old Place Funding,A60000,0
Royal Borough of Kingston,30/12/2022,70038534,600.00,AGE CONCERN KINGSTON UPON THAMES,GRANTS & EX GRATIA PAYMENTS,Adult Social Care & Health,Payments to Voluntary Organisations,A54005,0
Royal Borough of Kingston,29/11/2022,70039658,"7,836.68",AGE CONCERN KINGSTON UPON THAMES,GRANTS & EX GRATIA PAYMENTS,Adult Social Care & Health,Payments to Voluntary Organisations,A54005,0
Royal Borough of Kingston,01/01/2023,90200949,531.43,AGE CONCERN KINGSTON UPON THAMES,GRANTS & EX GRATIA PAYMENTS,Adult Social Care & Health,Personal Budget - Third Party,A61019,0
Royal Borough of Kingston,01/01/2023,90200955,708.57,AGE CONCERN KINGSTON UPON THAMES,GRANTS & EX GRATIA PAYMENTS,Adult Social Care & Health,Personal Budget - Third Party,A61019,0
Royal Borough of Kingston,01/01/2023,90202522,"6,864.29",AIMS CARE LIMITED,SOCIAL SERVICES RESIDENTIAL,Adult Social Care & Health,Independent Placements,A56006,0
Royal Borough of Kingston,21/12/2022,70037754,750.00,ALCOHOL HEALTH NETWORK,SUBSCRIPTIONS & PUBLICATIONS,Adult Social Care & Health,Other Private Contractors - Third Party,A56080,0
Royal Borough of Kingston,24/01/2023,90202020,"1,094.00",REDACTED - PERSONAL DATA,LANDLORDS,Place,PSL Payments To Landlords,A22031,0
Royal Borough of Kingston,28/12/2022,70037983,"1,600.00",REDACTED - PERSONAL DATA,SUNDRY SUPPLIER - FINANCE,Adult Social Care & Health,"Grants, Contributions & Donations",A47005,0
Royal Borough of Kingston,13/01/2023,90198346,"18,380.52",ALEXANDRA SCHOOL,CENTRAL & LOCAL GOVERNMENT,Schools,Miscellaneous Expenses,A49000,0
Royal Borough of Kingston,25/01/2023,90202992,"4,417.00",ALEXANDRA SCHOOL,CENTRAL & LOCAL GOVERNMENT,Schools,Miscellaneous Expenses,A49000,0
Royal Borough of Kingston,24/01/2023,90202209,"1,050.00",REDACTED - PERSONAL DATA,PLS LANDLORDS,Place,PSL Payments To Landlords,A22031,0
Royal Borough of Kingston,24/01/2023,90201839,"1,314.00",REDACTED - PERSONAL DATA,PLS LANDLORDS,Place,PSL Payments To Landlords,A22031,0
Royal Borough of Kingston,31/10/2022,70034832,702.43,ALLPAY LIMITED,FINANCIAL / INSURANCE INSTNS,Adult Social Care & Health,Professional Fees,A44066,0
Royal Borough of Kingston,19/12/2022,90195063,612.51,ALPENBEST LTD,SOCIAL SERVICES DAY CARE,Adult Social Care & Health,Homecare - new framework,A56127,0
Royal Borough of Kingston,19/12/2022,90195066,560.00,ALPENBEST LTD,SOCIAL SERVICES DAY CARE,Adult Social Care & Health,Homecare - new framework,A56127,0
Royal Borough of Kingston,19/12/2022,90195079,"1,260.01",ALPENBEST LTD,SOCIAL SERVICES DAY CARE,Adult Social Care & Health,Homecare - new framework,A56127,0
Royal Borough of Kingston,19/12/2022,90195099,612.50,ALPENBEST LTD,SOCIAL SERVICES DAY CARE,Adult Social Care & Health,Homecare - new framework,A56127,0
Royal Borough of Kingston,19/12/2022,90195306,551.25,ALPENBEST LTD,SOCIAL SERVICES DAY CARE,Adult Social Care & Health,Homecare - new framework,A56127,0
Royal Borough of Kingston,19/12/2022,90195330,551.25,ALPENBEST LTD,SOCIAL SERVICES DAY CARE,Adult Social Care & Health,Homecare - new framework,A56127,0
Royal Borough of Kingston,19/12/2022,90195343,577.50,ALPENBEST LTD,SOCIAL SERVICES DAY CARE,Adult Social Care & Health,Homecare - new framework,A56127,0
Royal Borough of Kingston,19/12/2022,90195408,612.50,ALPENBEST LTD,SOCIAL SERVICES DAY CARE,Adult Social Care & Health,Homecare - new framework,A56127,0
Royal Borough of Kingston,19/12/2022,90195409,551.25,ALPENBEST LTD,SOCIAL SERVICES DAY CARE,Adult Social Care & Health,Homecare - new framework,A56127,0
Royal Borough of Kingston,19/12/2022,90195415,612.51,ALPENBEST LTD,SOCIAL SERVICES DAY CARE,Adult Social Care & Health,Homecare - new framework,A56127,0
Royal Borough of Kingston,19/12/2022,90195557,796.26,ALPENBEST LTD,SOCIAL SERVICES DAY CARE,Adult Social Care & Health,Homecare - new framework,A56127,0
Royal Borough of Kingston,19/12/2022,90195582,551.25,ALPENBEST LTD,SOCIAL SERVICES DAY CARE,Adult Social Care & Health,Homecare - new framework,A56127,0
Royal Borough of Kingston,19/12/2022,90195616,665.01,ALPENBEST LTD,SOCIAL SERVICES DAY CARE,Adult Social Care & Health,Homecare - new framework,A56127,0
Royal Borough of Kingston,19/12/2022,90195620,"2,861.90",ALPENBEST LTD,SOCIAL SERVICES DAY CARE,Adult Social Care & Health,Homecare - new framework,A56127,0
Royal Borough of Kingston,19/12/2022,90195669,525.00,ALPENBEST LTD,SOCIAL SERVICES DAY CARE,Adult Social Care & Health,Homecare - new framework,A56127,0
Royal Borough of Kingston,19/12/2022,90195671,551.25,ALPENBEST LTD,SOCIAL SERVICES DAY CARE,Adult Social Care & Health,Homecare - new framework,A56127,0
Royal Borough of Kingston,19/12/2022,90195682,612.50,ALPENBEST LTD,SOCIAL SERVICES DAY CARE,Adult Social Care & Health,Homecare - new framework,A56127,0
Royal Borough of Kingston,19/12/2022,90195689,726.26,ALPENBEST LTD,SOCIAL SERVICES DAY CARE,Adult Social Care & Health,Homecare - new framework,A56127,0
Royal Borough of Kingston,19/12/2022,90195712,612.50,ALPENBEST LTD,SOCIAL SERVICES DAY CARE,Adult Social Care & Health,Homecare - new framework,A56127,0
Royal Borough of Kingston,19/12/2022,90195942,612.50,ALPENBEST LTD,SOCIAL SERVICES DAY CARE,Adult Social Care & Health,Personal Budget - Third Party,A61019,0
Royal Borough of Kingston,26/12/2022,90197321,551.25,ALPENBEST LTD,SOCIAL SERVICES DAY CARE,Adult Social Care & Health,Homecare - new framework,A56127,0
Royal Borough of Kingston,26/12/2022,90197325,560.00,ALPENBEST LTD,SOCIAL SERVICES DAY CARE,Adult Social Care & Health,Homecare - new framework,A56127,0
Royal Borough of Kingston,26/12/2022,90197340,"1,470.01",ALPENBEST LTD,SOCIAL SERVICES DAY CARE,Adult Social Care & Health,Homecare - new framework,A56127,0
Royal Borough of Kingston,26/12/2022,90197355,612.50,ALPENBEST LTD,SOCIAL SERVICES DAY CARE,Adult Social Care & Health,Homecare - new framework,A56127,0
Royal Borough of Kingston,26/12/2022,90197396,551.25,ALPENBEST LTD,SOCIAL SERVICES DAY CARE,Adult Social Care & Health,Homecare - new framework,A56127,0
Royal Borough of Kingston,26/12/2022,90197496,551.25,ALPENBEST LTD,SOCIAL SERVICES DAY CARE,Adult Social Care & Health,Homecare - new framework,A56127,0
Royal Borough of Kingston,26/12/2022,90197504,551.25,ALPENBEST LTD,SOCIAL SERVICES DAY CARE,Adult Social Care & Health,Homecare - new framework,A56127,0
Royal Borough of Kingston,26/12/2022,90197524,551.25,ALPENBEST LTD,SOCIAL SERVICES DAY CARE,Adult Social Care & Health,Homecare - new framework,A56127,0
Royal Borough of Kingston,26/12/2022,90197531,533.75,ALPENBEST LTD,SOCIAL SERVICES DAY CARE,Adult Social Care & Health,Homecare - new framework,A56127,0
Royal Borough of Kingston,26/12/2022,90197581,612.50,ALPENBEST LTD,SOCIAL SERVICES DAY CARE,Adult Social Care & Health,Homecare - new framework,A56127,0
Royal Borough of Kingston,26/12/2022,90197583,551.25,ALPENBEST LTD,SOCIAL SERVICES DAY CARE,Adult Social Care & Health,Homecare - new framework,A56127,0
Royal Borough of Kingston,26/12/2022,90197589,612.51,ALPENBEST LTD,SOCIAL SERVICES DAY CARE,Adult Social Care & Health,Homecare - new framework,A56127,0
Royal Borough of Kingston,26/12/2022,90197640,612.50,ALPENBEST LTD,SOCIAL SERVICES DAY CARE,Adult Social Care & Health,Homecare - new framework,A56127,0
Royal Borough of Kingston,26/12/2022,90197753,551.25,ALPENBEST LTD,SOCIAL SERVICES DAY CARE,Adult Social Care & Health,Homecare - new framework,A56127,0
Royal Borough of Kingston,26/12/2022,90197760,735.01,ALPENBEST LTD,SOCIAL SERVICES DAY CARE,Adult Social Care & Health,Homecare - new framework,A56127,0
Royal Borough of Kingston,26/12/2022,90197809,525.00,ALPENBEST LTD,SOCIAL SERVICES DAY CARE,Adult Social Care & Health,Homecare - new framework,A56127,0
Royal Borough of Kingston,26/12/2022,90197811,551.25,ALPENBEST LTD,SOCIAL SERVICES DAY CARE,Adult Social Care & Health,Homecare - new framework,A56127,0
Royal Borough of Kingston,26/12/2022,90197820,612.50,ALPENBEST LTD,SOCIAL SERVICES DAY CARE,Adult Social Care & Health,Homecare - new framework,A56127,0
Royal Borough of Kingston,26/12/2022,90197827,656.26,ALPENBEST LTD,SOCIAL SERVICES DAY CARE,Adult Social Care & Health,Homecare - new framework,A56127,0
Royal Borough of Kingston,26/12/2022,90197847,612.50,ALPENBEST LTD,SOCIAL SERVICES DAY CARE,Adult Social Care & Health,Homecare - new framework,A56127,0
Royal Borough of Kingston,26/12/2022,90197989,630.00,ALPENBEST LTD,SOCIAL SERVICES DAY CARE,Adult Social Care & Health,Homecare - new framework,A56127,0
Royal Borough of Kingston,26/12/2022,90198075,612.50,ALPENBEST LTD,SOCIAL SERVICES DAY CARE,Adult Social Care & Health,Personal Budget - Third Party,A61019,0
Royal Borough of Kingston,02/01/2023,90198476,551.25,ALPENBEST LTD,SOCIAL SERVICES DAY CARE,Adult Social Care & Health,Homecare - new framework,A56127,0
Royal Borough of Kingston,02/01/2023,90198479,560.00,ALPENBEST LTD,SOCIAL SERVICES DAY CARE,Adult Social Care & Health,Homecare - new framework,A56127,0
Royal Borough of Kingston,02/01/2023,90198492,"1,470.01",ALPENBEST LTD,SOCIAL SERVICES DAY CARE,Adult Social Care & Health,Homecare - new framework,A56127,0
Royal Borough of Kingston,02/01/2023,90198506,612.50,ALPENBEST LTD,SOCIAL SERVICES DAY CARE,Adult Social Care & Health,Homecare - new framework,A56127,0
Royal Borough of Kingston,02/01/2023,90198539,551.25,ALPENBEST LTD,SOCIAL SERVICES DAY CARE,Adult Social Care & Health,Homecare - new framework,A56127,0
Royal Borough of Kingston,02/01/2023,90198639,551.25,ALPENBEST LTD,SOCIAL SERVICES DAY CARE,Adult Social Care & Health,Homecare - new framework,A56127,0
Royal Borough of Kingston,02/01/2023,90198659,551.25,ALPENBEST LTD,SOCIAL SERVICES DAY CARE,Adult Social Care & Health,Homecare - new framework,A56127,0
Royal Borough of Kingston,02/01/2023,90198682,551.25,ALPENBEST LTD,SOCIAL SERVICES DAY CARE,Adult Social Care & Health,Homecare - new framework,A56127,0
Royal Borough of Kingston,02/01/2023,90198739,621.25,ALPENBEST LTD,SOCIAL SERVICES DAY CARE,Adult Social Care & Health,Homecare - new framework,A56127,0
Royal Borough of Kingston,02/01/2023,90198742,551.25,ALPENBEST LTD,SOCIAL SERVICES DAY CARE,Adult Social Care & Health,Homecare - new framework,A56127,0
Royal Borough of Kingston,02/01/2023,90198748,612.51,ALPENBEST LTD,SOCIAL SERVICES DAY CARE,Adult Social Care & Health,Homecare - new framework,A56127,0
Royal Borough of Kingston,02/01/2023,90198803,612.50,ALPENBEST LTD,SOCIAL SERVICES DAY CARE,Adult Social Care & Health,Homecare - new framework,A56127,0
Royal Borough of Kingston,02/01/2023,90198857,796.26,ALPENBEST LTD,SOCIAL SERVICES DAY CARE,Adult Social Care & Health,Homecare - new framework,A56127,0
Royal Borough of Kingston,02/01/2023,90198880,551.25,ALPENBEST LTD,SOCIAL SERVICES DAY CARE,Adult Social Care & Health,Homecare - new framework,A56127,0
Royal Borough of Kingston,02/01/2023,90198887,735.01,ALPENBEST LTD,SOCIAL SERVICES DAY CARE,Adult Social Care & Health,Homecare - new framework,A56127,0
Royal Borough of Kingston,02/01/2023,90198921,612.51,ALPENBEST LTD,SOCIAL SERVICES DAY CARE,Adult Social Care & Health,Homecare - new framework,A56127,0
Royal Borough of Kingston,02/01/2023,90198935,525.00,ALPENBEST LTD,SOCIAL SERVICES DAY CARE,Adult Social Care & Health,Homecare - new framework,A56127,0
Royal Borough of Kingston,02/01/2023,90198937,603.75,ALPENBEST LTD,SOCIAL SERVICES DAY CARE,Adult Social Care & Health,Homecare - new framework,A56127,0
Royal Borough of Kingston,02/01/2023,90198946,612.50,ALPENBEST LTD,SOCIAL SERVICES DAY CARE,Adult Social Care & Health,Homecare - new framework,A56127,0
Royal Borough of Kingston,02/01/2023,90198952,726.26,ALPENBEST LTD,SOCIAL SERVICES DAY CARE,Adult Social Care & Health,Homecare - new framework,A56127,0
Royal Borough of Kingston,02/01/2023,90198972,612.50,ALPENBEST LTD,SOCIAL SERVICES DAY CARE,Adult Social Care & Health,Homecare - new framework,A56127,0
Royal Borough of Kingston,02/01/2023,90199051,630.00,ALPENBEST LTD,SOCIAL SERVICES DAY CARE,Adult Social Care & Health,Homecare - new framework,A56127,0
Royal Borough of Kingston,02/01/2023,90199500,969.15,ALPENBEST LTD,SOCIAL SERVICES DAY CARE,Adult Social Care & Health,Personal Budget - Third Party,A61019,0
Royal Borough of Kingston,02/01/2023,90199501,969.15,ALPENBEST LTD,SOCIAL SERVICES DAY CARE,Adult Social Care & Health,Personal Budget - Third Party,A61019,0
Royal Borough of Kingston,02/01/2023,90199502,969.15,ALPENBEST LTD,SOCIAL SERVICES DAY CARE,Adult Social Care & Health,Personal Budget - Third Party,A61019,0
Royal Borough of Kingston,02/01/2023,90199503,969.15,ALPENBEST LTD,SOCIAL SERVICES DAY CARE,Adult Social Care & Health,Personal Budget - Third Party,A61019,0
Royal Borough of Kingston,02/01/2023,90199504,969.15,ALPENBEST LTD,SOCIAL SERVICES DAY CARE,Adult Social Care & Health,Personal Budget - Third Party,A61019,0
Royal Borough of Kingston,02/01/2023,90199505,553.80,ALPENBEST LTD,SOCIAL SERVICES DAY CARE,Adult Social Care & Health,Personal Budget - Third Party,A61019,0
Royal Borough of Kingston,02/01/2023,90199522,612.50,ALPENBEST LTD,SOCIAL SERVICES DAY CARE,Adult Social Care & Health,Personal Budget - Third Party,A61019,0
Royal Borough of Kingston,09/01/2023,90200320,551.25,ALPENBEST LTD,SOCIAL SERVICES DAY CARE,Adult Social Care & Health,Homecare - new framework,A56127,0
Royal Borough of Kingston,09/01/2023,90200323,560.00,ALPENBEST LTD,SOCIAL SERVICES DAY CARE,Adult Social Care & Health,Homecare - new framework,A56127,0
Royal Borough of Kingston,09/01/2023,90200336,"1,470.01",ALPENBEST LTD,SOCIAL SERVICES DAY CARE,Adult Social Care & Health,Homecare - new framework,A56127,0
Royal Borough of Kingston,09/01/2023,90200347,612.50,ALPENBEST LTD,SOCIAL SERVICES DAY CARE,Adult Social Care & Health,Homecare - new framework,A56127,0
Royal Borough of Kingston,09/01/2023,90200386,551.25,ALPENBEST LTD,SOCIAL SERVICES DAY CARE,Adult Social Care & Health,Homecare - new framework,A56127,0
Royal Borough of Kingston,09/01/2023,90200468,551.25,ALPENBEST LTD,SOCIAL SERVICES DAY CARE,Adult Social Care & Health,Homecare - new framework,A56127,0
Royal Borough of Kingston,09/01/2023,90200477,551.25,ALPENBEST LTD,SOCIAL SERVICES DAY CARE,Adult Social Care & Health,Homecare - new framework,A56127,0
Royal Borough of Kingston,09/01/2023,90200499,551.25,ALPENBEST LTD,SOCIAL SERVICES DAY CARE,Adult Social Care & Health,Homecare - new framework,A56127,0
Royal Borough of Kingston,09/01/2023,90200559,612.50,ALPENBEST LTD,SOCIAL SERVICES DAY CARE,Adult Social Care & Health,Homecare - new framework,A56127,0
Royal Borough of Kingston,09/01/2023,90200563,551.25,ALPENBEST LTD,SOCIAL SERVICES DAY CARE,Adult Social Care & Health,Homecare - new framework,A56127,0
Royal Borough of Kingston,09/01/2023,90200568,612.51,ALPENBEST LTD,SOCIAL SERVICES DAY CARE,Adult Social Care & Health,Homecare - new framework,A56127,0
Royal Borough of Kingston,09/01/2023,90200606,612.50,ALPENBEST LTD,SOCIAL SERVICES DAY CARE,Adult Social Care & Health,Homecare - new framework,A56127,0
Royal Borough of Kingston,09/01/2023,90200692,796.26,ALPENBEST LTD,SOCIAL SERVICES DAY CARE,Adult Social Care & Health,Homecare - new framework,A56127,0
Royal Borough of Kingston,09/01/2023,90200715,551.25,ALPENBEST LTD,SOCIAL SERVICES DAY CARE,Adult Social Care & Health,Homecare - new framework,A56127,0
Royal Borough of Kingston,09/01/2023,90200722,735.01,ALPENBEST LTD,SOCIAL SERVICES DAY CARE,Adult Social Care & Health,Homecare - new framework,A56127,0
Royal Borough of Kingston,09/01/2023,90200754,612.51,ALPENBEST LTD,SOCIAL SERVICES DAY CARE,Adult Social Care & Health,Homecare - new framework,A56127,0
Royal Borough of Kingston,09/01/2023,90200796,525.00,ALPENBEST LTD,SOCIAL SERVICES DAY CARE,Adult Social Care & Health,Homecare - new framework,A56127,0
Royal Borough of Kingston,09/01/2023,90200798,603.75,ALPENBEST LTD,SOCIAL SERVICES DAY CARE,Adult Social Care & Health,Homecare - new framework,A56127,0
Royal Borough of Kingston,09/01/2023,90200807,612.50,ALPENBEST LTD,SOCIAL SERVICES DAY CARE,Adult Social Care & Health,Homecare - new framework,A56127,0
Royal Borough of Kingston,09/01/2023,90200812,726.26,ALPENBEST LTD,SOCIAL SERVICES DAY CARE,Adult Social Care & Health,Homecare - new framework,A56127,0
Royal Borough of Kingston,09/01/2023,90200830,612.50,ALPENBEST LTD,SOCIAL SERVICES DAY CARE,Adult Social Care & Health,Homecare - new framework,A56127,0
Royal Borough of Kingston,09/01/2023,90200905,630.00,ALPENBEST LTD,SOCIAL SERVICES DAY CARE,Adult Social Care & Health,Homecare - new framework,A56127,0
Royal Borough of Kingston,09/01/2023,90201607,612.50,ALPENBEST LTD,SOCIAL SERVICES DAY CARE,Adult Social Care & Health,Personal Budget - Third Party,A61019,0
Royal Borough of Kingston,16/01/2023,90203160,612.51,ALPENBEST LTD,SOCIAL SERVICES DAY CARE,Adult Social Care & Health,Homecare - new framework,A56127,0
Royal Borough of Kingston,16/01/2023,90203163,560.00,ALPENBEST LTD,SOCIAL SERVICES DAY CARE,Adult Social Care & Health,Homecare - new framework,A56127,0
Royal Borough of Kingston,16/01/2023,90203176,"1,470.01",ALPENBEST LTD,SOCIAL SERVICES DAY CARE,Adult Social Care & Health,Homecare - new framework,A56127,0
Royal Borough of Kingston,16/01/2023,90203194,612.50,ALPENBEST LTD,SOCIAL SERVICES DAY CARE,Adult Social Care & Health,Homecare - new framework,A56127,0
Royal Borough of Kingston,16/01/2023,90203327,551.25,ALPENBEST LTD,SOCIAL SERVICES DAY CARE,Adult Social Care & Health,Homecare - new framework,A56127,0
Royal Borough of Kingston,16/01/2023,90203350,551.25,ALPENBEST LTD,SOCIAL SERVICES DAY CARE,Adult Social Care & Health,Homecare - new framework,A56127,0
Royal Borough of Kingston,16/01/2023,90203433,621.25,ALPENBEST LTD,SOCIAL SERVICES DAY CARE,Adult Social Care & Health,Homecare - new framework,A56127,0
Royal Borough of Kingston,16/01/2023,90203437,551.25,ALPENBEST LTD,SOCIAL SERVICES DAY CARE,Adult Social Care & Health,Homecare - new framework,A56127,0
Royal Borough of Kingston,16/01/2023,90203441,612.51,ALPENBEST LTD,SOCIAL SERVICES DAY CARE,Adult Social Care & Health,Homecare - new framework,A56127,0
Royal Borough of Kingston,16/01/2023,90203559,796.26,ALPENBEST LTD,SOCIAL SERVICES DAY CARE,Adult Social Care & Health,Homecare - new framework,A56127,0
Royal Borough of Kingston,16/01/2023,90203583,551.25,ALPENBEST LTD,SOCIAL SERVICES DAY CARE,Adult Social Care & Health,Homecare - new framework,A56127,0
Royal Borough of Kingston,16/01/2023,90203589,735.01,ALPENBEST LTD,SOCIAL SERVICES DAY CARE,Adult Social Care & Health,Homecare - new framework,A56127,0
Royal Borough of Kingston,16/01/2023,90203614,612.51,ALPENBEST LTD,SOCIAL SERVICES DAY CARE,Adult Social Care & Health,Homecare - new framework,A56127,0
Royal Borough of Kingston,16/01/2023,90203629,525.00,ALPENBEST LTD,SOCIAL SERVICES DAY CARE,Adult Social Care & Health,Homecare - new framework,A56127,0
Royal Borough of Kingston,16/01/2023,90203634,603.75,ALPENBEST LTD,SOCIAL SERVICES DAY CARE,Adult Social Care & Health,Homecare - new framework,A56127,0
Royal Borough of Kingston,16/01/2023,90203647,796.26,ALPENBEST LTD,SOCIAL SERVICES DAY CARE,Adult Social Care & Health,Homecare - new framework,A56127,0
Royal Borough of Kingston,16/01/2023,90203648,-621.25,ALPENBEST LTD,SOCIAL SERVICES DAY CARE,Adult Social Care & Health,Homecare - new framework,A56127,0
Royal Borough of Kingston,16/01/2023,90203649,796.26,ALPENBEST LTD,SOCIAL SERVICES DAY CARE,Adult Social Care & Health,Homecare - new framework,A56127,0
Royal Borough of Kingston,16/01/2023,90203650,-673.75,ALPENBEST LTD,SOCIAL SERVICES DAY CARE,Adult Social Care & Health,Homecare - new framework,A56127,0
Royal Borough of Kingston,16/01/2023,90203651,796.26,ALPENBEST LTD,SOCIAL SERVICES DAY CARE,Adult Social Care & Health,Homecare - new framework,A56127,0
Royal Borough of Kingston,16/01/2023,90203652,-673.75,ALPENBEST LTD,SOCIAL SERVICES DAY CARE,Adult Social Care & Health,Homecare - new framework,A56127,0
Royal Borough of Kingston,16/01/2023,90203653,796.26,ALPENBEST LTD,SOCIAL SERVICES DAY CARE,Adult Social Care & Health,Homecare - new framework,A56127,0
Royal Borough of Kingston,16/01/2023,90203654,-673.75,ALPENBEST LTD,SOCIAL SERVICES DAY CARE,Adult Social Care & Health,Homecare - new framework,A56127,0
Royal Borough of Kingston,16/01/2023,90203655,796.26,ALPENBEST LTD,SOCIAL SERVICES DAY CARE,Adult Social Care & Health,Homecare - new framework,A56127,0
Royal Borough of Kingston,16/01/2023,90203656,-673.75,ALPENBEST LTD,SOCIAL SERVICES DAY CARE,Adult Social Care & Health,Homecare - new framework,A56127,0
Royal Borough of Kingston,16/01/2023,90203657,796.26,ALPENBEST LTD,SOCIAL SERVICES DAY CARE,Adult Social Care & Health,Homecare - new framework,A56127,0
Royal Borough of Kingston,16/01/2023,90203658,-673.75,ALPENBEST LTD,SOCIAL SERVICES DAY CARE,Adult Social Care & Health,Homecare - new framework,A56127,0
Royal Borough of Kingston,16/01/2023,90203659,796.26,ALPENBEST LTD,SOCIAL SERVICES DAY CARE,Adult Social Care & Health,Homecare - new framework,A56127,0
Royal Borough of Kingston,16/01/2023,90203660,-673.75,ALPENBEST LTD,SOCIAL SERVICES DAY CARE,Adult Social Care & Health,Homecare - new framework,A56127,0
Royal Borough of Kingston,16/01/2023,90203661,796.26,ALPENBEST LTD,SOCIAL SERVICES DAY CARE,Adult Social Care & Health,Homecare - new framework,A56127,0
Royal Borough of Kingston,16/01/2023,90203662,-673.75,ALPENBEST LTD,SOCIAL SERVICES DAY CARE,Adult Social Care & Health,Homecare - new framework,A56127,0
Royal Borough of Kingston,16/01/2023,90203663,796.26,ALPENBEST LTD,SOCIAL SERVICES DAY CARE,Adult Social Care & Health,Homecare - new framework,A56127,0
Royal Borough of Kingston,16/01/2023,90203664,-673.75,ALPENBEST LTD,SOCIAL SERVICES DAY CARE,Adult Social Care & Health,Homecare - new framework,A56127,0
Royal Borough of Kingston,16/01/2023,90203665,796.26,ALPENBEST LTD,SOCIAL SERVICES DAY CARE,Adult Social Care & Health,Homecare - new framework,A56127,0
Royal Borough of Kingston,16/01/2023,90203666,-673.75,ALPENBEST LTD,SOCIAL SERVICES DAY CARE,Adult Social Care & Health,Homecare - new framework,A56127,0
Royal Borough of Kingston,16/01/2023,90203667,796.26,ALPENBEST LTD,SOCIAL SERVICES DAY CARE,Adult Social Care & Health,Homecare - new framework,A56127,0
Royal Borough of Kingston,16/01/2023,90203668,-673.75,ALPENBEST LTD,SOCIAL SERVICES DAY CARE,Adult Social Care & Health,Homecare - new framework,A56127,0
Royal Borough of Kingston,16/01/2023,90203669,796.26,ALPENBEST LTD,SOCIAL SERVICES DAY CARE,Adult Social Care & Health,Homecare - new framework,A56127,0
Royal Borough of Kingston,16/01/2023,90203670,-673.75,ALPENBEST LTD,SOCIAL SERVICES DAY CARE,Adult Social Care & Health,Homecare - new framework,A56127,0
Royal Borough of Kingston,16/01/2023,90203671,796.26,ALPENBEST LTD,SOCIAL SERVICES DAY CARE,Adult Social Care & Health,Homecare - new framework,A56127,0
Royal Borough of Kingston,16/01/2023,90203672,-612.50,ALPENBEST LTD,SOCIAL SERVICES DAY CARE,Adult Social Care & Health,Homecare - new framework,A56127,0
Royal Borough of Kingston,16/01/2023,90203673,796.26,ALPENBEST LTD,SOCIAL SERVICES DAY CARE,Adult Social Care & Health,Homecare - new framework,A56127,0
Royal Borough of Kingston,16/01/2023,90203674,-673.75,ALPENBEST LTD,SOCIAL SERVICES DAY CARE,Adult Social Care & Health,Homecare - new framework,A56127,0
Royal Borough of Kingston,16/01/2023,90203675,796.26,ALPENBEST LTD,SOCIAL SERVICES DAY CARE,Adult Social Care & Health,Homecare - new framework,A56127,0
Royal Borough of Kingston,16/01/2023,90203676,-673.75,ALPENBEST LTD,SOCIAL SERVICES DAY CARE,Adult Social Care & Health,Homecare - new framework,A56127,0
Royal Borough of Kingston,16/01/2023,90203677,796.26,ALPENBEST LTD,SOCIAL SERVICES DAY CARE,Adult Social Care & Health,Homecare - new framework,A56127,0
Royal Borough of Kingston,16/01/2023,90203678,-673.75,ALPENBEST LTD,SOCIAL SERVICES DAY CARE,Adult Social Care & Health,Homecare - new framework,A56127,0
Royal Borough of Kingston,16/01/2023,90203679,796.26,ALPENBEST LTD,SOCIAL SERVICES DAY CARE,Adult Social Care & Health,Homecare - new framework,A56127,0
Royal Borough of Kingston,16/01/2023,90203680,-673.75,ALPENBEST LTD,SOCIAL SERVICES DAY CARE,Adult Social Care & Health,Homecare - new framework,A56127,0
Royal Borough of Kingston,16/01/2023,90203681,796.26,ALPENBEST LTD,SOCIAL SERVICES DAY CARE,Adult Social Care & Health,Homecare - new framework,A56127,0
Royal Borough of Kingston,16/01/2023,90203682,-673.75,ALPENBEST LTD,SOCIAL SERVICES DAY CARE,Adult Social Care & Health,Homecare - new framework,A56127,0
Royal Borough of Kingston,16/01/2023,90203683,796.26,ALPENBEST LTD,SOCIAL SERVICES DAY CARE,Adult Social Care & Health,Homecare - new framework,A56127,0
Royal Borough of Kingston,16/01/2023,90203684,-612.50,ALPENBEST LTD,SOCIAL SERVICES DAY CARE,Adult Social Care & Health,Homecare - new framework,A56127,0
Royal Borough of Kingston,16/01/2023,90203685,796.26,ALPENBEST LTD,SOCIAL SERVICES DAY CARE,Adult Social Care & Health,Homecare - new framework,A56127,0
Royal Borough of Kingston,16/01/2023,90203686,-612.50,ALPENBEST LTD,SOCIAL SERVICES DAY CARE,Adult Social Care & Health,Homecare - new framework,A56127,0
Royal Borough of Kingston,16/01/2023,90203687,796.26,ALPENBEST LTD,SOCIAL SERVICES DAY CARE,Adult Social Care & Health,Homecare - new framework,A56127,0
Royal Borough of Kingston,16/01/2023,90203688,-673.75,ALPENBEST LTD,SOCIAL SERVICES DAY CARE,Adult Social Care & Health,Homecare - new framework,A56127,0
Royal Borough of Kingston,16/01/2023,90203689,796.26,ALPENBEST LTD,SOCIAL SERVICES DAY CARE,Adult Social Care & Health,Homecare - new framework,A56127,0
Royal Borough of Kingston,16/01/2023,90203690,-665.00,ALPENBEST LTD,SOCIAL SERVICES DAY CARE,Adult Social Care & Health,Homecare - new framework,A56127,0
Royal Borough of Kingston,16/01/2023,90203691,796.26,ALPENBEST LTD,SOCIAL SERVICES DAY CARE,Adult Social Care & Health,Homecare - new framework,A56127,0
Royal Borough of Kingston,16/01/2023,90203692,-612.50,ALPENBEST LTD,SOCIAL SERVICES DAY CARE,Adult Social Care & Health,Homecare - new framework,A56127,0
Royal Borough of Kingston,16/01/2023,90203693,796.26,ALPENBEST LTD,SOCIAL SERVICES DAY CARE,Adult Social Care & Health,Homecare - new framework,A56127,0
Royal Borough of Kingston,16/01/2023,90203694,-673.75,ALPENBEST LTD,SOCIAL SERVICES DAY CARE,Adult Social Care & Health,Homecare - new framework,A56127,0
Royal Borough of Kingston,16/01/2023,90203695,796.26,ALPENBEST LTD,SOCIAL SERVICES DAY CARE,Adult Social Care & Health,Homecare - new framework,A56127,0
Royal Borough of Kingston,16/01/2023,90203696,-673.75,ALPENBEST LTD,SOCIAL SERVICES DAY CARE,Adult Social Care & Health,Homecare - new framework,A56127,0
Royal Borough of Kingston,16/01/2023,90203697,796.26,ALPENBEST LTD,SOCIAL SERVICES DAY CARE,Adult Social Care & Health,Homecare - new framework,A56127,0
Royal Borough of Kingston,16/01/2023,90203698,-673.75,ALPENBEST LTD,SOCIAL SERVICES DAY CARE,Adult Social Care & Health,Homecare - new framework,A56127,0
Royal Borough of Kingston,16/01/2023,90203699,796.26,ALPENBEST LTD,SOCIAL SERVICES DAY CARE,Adult Social Care & Health,Homecare - new framework,A56127,0
Royal Borough of Kingston,16/01/2023,90203700,-612.50,ALPENBEST LTD,SOCIAL SERVICES DAY CARE,Adult Social Care & Health,Homecare - new framework,A56127,0
Royal Borough of Kingston,16/01/2023,90203701,796.26,ALPENBEST LTD,SOCIAL SERVICES DAY CARE,Adult Social Care & Health,Homecare - new framework,A56127,0
Royal Borough of Kingston,16/01/2023,90203702,-612.50,ALPENBEST LTD,SOCIAL SERVICES DAY CARE,Adult Social Care & Health,Homecare - new framework,A56127,0
Royal Borough of Kingston,16/01/2023,90203703,796.26,ALPENBEST LTD,SOCIAL SERVICES DAY CARE,Adult Social Care & Health,Homecare - new framework,A56127,0
Royal Borough of Kingston,16/01/2023,90203704,-612.50,ALPENBEST LTD,SOCIAL SERVICES DAY CARE,Adult Social Care & Health,Homecare - new framework,A56127,0
Royal Borough of Kingston,16/01/2023,90203705,796.26,ALPENBEST LTD,SOCIAL SERVICES DAY CARE,Adult Social Care & Health,Homecare - new framework,A56127,0
Royal Borough of Kingston,16/01/2023,90203706,-612.50,ALPENBEST LTD,SOCIAL SERVICES DAY CARE,Adult Social Care & Health,Homecare - new framework,A56127,0
Royal Borough of Kingston,16/01/2023,90203707,796.26,ALPENBEST LTD,SOCIAL SERVICES DAY CARE,Adult Social Care & Health,Homecare - new framework,A56127,0
Royal Borough of Kingston,16/01/2023,90203708,-612.50,ALPENBEST LTD,SOCIAL SERVICES DAY CARE,Adult Social Care & Health,Homecare - new framework,A56127,0
Royal Borough of Kingston,16/01/2023,90203709,796.26,ALPENBEST LTD,SOCIAL SERVICES DAY CARE,Adult Social Care & Health,Homecare - new framework,A56127,0
Royal Borough of Kingston,16/01/2023,90203710,-612.50,ALPENBEST LTD,SOCIAL SERVICES DAY CARE,Adult Social Care & Health,Homecare - new framework,A56127,0
Royal Borough of Kingston,16/01/2023,90203711,796.26,ALPENBEST LTD,SOCIAL SERVICES DAY CARE,Adult Social Care & Health,Homecare - new framework,A56127,0
Royal Borough of Kingston,16/01/2023,90203712,-612.50,ALPENBEST LTD,SOCIAL SERVICES DAY CARE,Adult Social Care & Health,Homecare - new framework,A56127,0
Royal Borough of Kingston,16/01/2023,90203713,796.26,ALPENBEST LTD,SOCIAL SERVICES DAY CARE,Adult Social Care & Health,Homecare - new framework,A56127,0
Royal Borough of Kingston,16/01/2023,90203714,-612.50,ALPENBEST LTD,SOCIAL SERVICES DAY CARE,Adult Social Care & Health,Homecare - new framework,A56127,0
Royal Borough of Kingston,16/01/2023,90203715,796.26,ALPENBEST LTD,SOCIAL SERVICES DAY CARE,Adult Social Care & Health,Homecare - new framework,A56127,0
Royal Borough of Kingston,16/01/2023,90203716,-612.50,ALPENBEST LTD,SOCIAL SERVICES DAY CARE,Adult Social Care & Health,Homecare - new framework,A56127,0
Royal Borough of Kingston,16/01/2023,90203717,796.26,ALPENBEST LTD,SOCIAL SERVICES DAY CARE,Adult Social Care & Health,Homecare - new framework,A56127,0
Royal Borough of Kingston,16/01/2023,90203718,-612.50,ALPENBEST LTD,SOCIAL SERVICES DAY CARE,Adult Social Care & Health,Homecare - new framework,A56127,0
Royal Borough of Kingston,16/01/2023,90203719,796.26,ALPENBEST LTD,SOCIAL SERVICES DAY CARE,Adult Social Care & Health,Homecare - new framework,A56127,0
Royal Borough of Kingston,16/01/2023,90203720,-612.50,ALPENBEST LTD,SOCIAL SERVICES DAY CARE,Adult Social Care & Health,Homecare - new framework,A56127,0
Royal Borough of Kingston,16/01/2023,90203721,796.26,ALPENBEST LTD,SOCIAL SERVICES DAY CARE,Adult Social Care & Health,Homecare - new framework,A56127,0
Royal Borough of Kingston,16/01/2023,90203726,726.26,ALPENBEST LTD,SOCIAL SERVICES DAY CARE,Adult Social Care & Health,Homecare - new framework,A56127,0
Royal Borough of Kingston,16/01/2023,90203747,612.50,ALPENBEST LTD,SOCIAL SERVICES DAY CARE,Adult Social Care & Health,Homecare - new framework,A56127,0
Royal Borough of Kingston,16/01/2023,90203821,647.50,ALPENBEST LTD,SOCIAL SERVICES DAY CARE,Adult Social Care & Health,Homecare - new framework,A56127,0
Royal Borough of Kingston,16/01/2023,90203889,612.50,ALPENBEST LTD,SOCIAL SERVICES DAY CARE,Adult Social Care & Health,Personal Budget - Third Party,A61019,0
Royal Borough of Kingston,24/01/2023,90201819,"1,136.00",REDACTED - PERSONAL DATA,PLS LANDLORDS,Place,PSL Payments To Landlords,A22031,0
Royal Borough of Kingston,24/01/2023,90202166,"1,314.00",REDACTED - PERSONAL DATA,PLS LANDLORDS,Place,PSL Payments To Landlords,A22031,0
Royal Borough of Kingston,24/01/2023,90202086,"1,094.00",REDACTED - PERSONAL DATA,PLS LANDLORDS,Place,PSL Payments To Landlords,A22031,0
Royal Borough of Kingston,18/01/2023,70039466,"1,722.85",ANGLIAN WATER BUSINESS NATIONAL LTD,UTILITIES,Housing Revenue Account,Water Services,A24005,0
Royal Borough of Kingston,18/01/2023,70039497,"16,211.37",ANGLIAN WATER BUSINESS NATIONAL LTD,UTILITIES,Corporate & Communities,Water Services,A24005,0
Royal Borough of Kingston,18/01/2023,70039501,-548.21,ANGLIAN WATER BUSINESS NATIONAL LTD,UTILITIES,Housing Revenue Account,Water Services,A24005,0
Royal Borough of Kingston,18/01/2023,70039585,528.54,ANGLIAN WATER BUSINESS NATIONAL LTD,UTILITIES,Corporate & Communities,Water Services,A24005,0
Royal Borough of Kingston,24/01/2023,90201849,"1,094.00",REDACTED - PERSONAL DATA,PLS LANDLORDS,Place,PSL Payments To Landlords,A22031,0
Royal Borough of Kingston,24/01/2023,90202206,"1,047.00",REDACTED - PERSONAL DATA,PLS LANDLORDS,Place,PSL Payments To Landlords,A22031,0
Royal Borough of Kingston,31/12/2022,70038068,"2,755.85",AON UK LTD,FINANCIAL / INSURANCE INSTNS,Housing Revenue Account,General Insurance (Excl Premises & Transport),A44260,0
Royal Borough of Kingston,20/01/2023,70038907,"1,100.00",AP RENTAL INC LTD,LANDLORDS,Adult Social Care & Health,Housing Benefit - Rent Allowances -Private Tenants Only,A62009,0
Royal Borough of Kingston,20/01/2023,70038908,900.00,AP RENTAL INC LTD,LANDLORDS,Adult Social Care & Health,Housing Benefit - Rent Allowances -Private Tenants Only,A62009,0
Royal Borough of Kingston,20/01/2023,70038909,"1,060.00",AP RENTAL INC LTD,LANDLORDS,Adult Social Care & Health,Housing Benefit - Rent Allowances -Private Tenants Only,A62009,0
Royal Borough of Kingston,20/01/2023,70038911,"1,260.00",AP RENTAL INC LTD,LANDLORDS,Adult Social Care & Health,Housing Benefit - Rent Allowances -Private Tenants Only,A62009,0
Royal Borough of Kingston,20/01/2023,70038912,"1,225.00",AP RENTAL INC LTD,LANDLORDS,Adult Social Care & Health,Housing Benefit - Rent Allowances -Private Tenants Only,A62009,0
Royal Borough of Kingston,31/12/2022,70038202,"1,705.00",APEX HOUSING SOLUTIONS LTD,ACCOMMODATION BED & BREAKFAST,Place,Bed & Breakfast,A56000,0
Royal Borough of Kingston,31/12/2022,70038203,"1,608.90",APEX HOUSING SOLUTIONS LTD,ACCOMMODATION BED & BREAKFAST,Place,Bed & Breakfast,A56000,0
Royal Borough of Kingston,31/12/2022,70038204,"1,364.00",APEX HOUSING SOLUTIONS LTD,ACCOMMODATION BED & BREAKFAST,Place,Bed & Breakfast,A56000,0
Royal Borough of Kingston,31/12/2022,70038205,"2,170.00",APEX HOUSING SOLUTIONS LTD,ACCOMMODATION BED & BREAKFAST,Place,Bed & Breakfast,A56000,0
Royal Borough of Kingston,31/12/2022,70038206,"1,395.00",APEX HOUSING SOLUTIONS LTD,ACCOMMODATION BED & BREAKFAST,Place,Bed & Breakfast,A56000,0
Royal Borough of Kingston,31/12/2022,70038207,"1,546.90",APEX HOUSING SOLUTIONS LTD,ACCOMMODATION BED & BREAKFAST,Place,Bed & Breakfast,A56000,0
Royal Borough of Kingston,31/12/2022,70038208,"1,798.00",APEX HOUSING SOLUTIONS LTD,ACCOMMODATION BED & BREAKFAST,Place,Bed & Breakfast,A56000,0
Royal Borough of Kingston,31/12/2022,70038209,"1,546.90",APEX HOUSING SOLUTIONS LTD,ACCOMMODATION BED & BREAKFAST,Place,Bed & Breakfast,A56000,0
Royal Borough of Kingston,31/12/2022,70038210,"2,170.00",APEX HOUSING SOLUTIONS LTD,ACCOMMODATION BED & BREAKFAST,Place,Bed & Breakfast,A56000,0
Royal Borough of Kingston,31/12/2022,70038213,"2,356.00",APEX HOUSING SOLUTIONS LTD,ACCOMMODATION BED & BREAKFAST,Place,Bed & Breakfast,A56000,0
Royal Borough of Kingston,31/12/2022,70038214,"2,759.00",APEX HOUSING SOLUTIONS LTD,ACCOMMODATION BED & BREAKFAST,Place,Bed & Breakfast,A56000,0
Royal Borough of Kingston,31/12/2022,70038215,"1,670.90",APEX HOUSING SOLUTIONS LTD,ACCOMMODATION BED & BREAKFAST,Place,Bed & Breakfast,A56000,0
Royal Borough of Kingston,31/12/2022,70038216,"1,798.00",APEX HOUSING SOLUTIONS LTD,ACCOMMODATION BED & BREAKFAST,Place,Bed & Breakfast,A56000,0
Royal Borough of Kingston,31/12/2022,70038218,"1,798.00",APEX HOUSING SOLUTIONS LTD,ACCOMMODATION BED & BREAKFAST,Place,Bed & Breakfast,A56000,0
Royal Borough of Kingston,31/12/2022,70038219,"1,240.00",APEX HOUSING SOLUTIONS LTD,ACCOMMODATION BED & BREAKFAST,Place,Bed & Breakfast,A56000,0
Royal Borough of Kingston,31/12/2022,70038220,"1,798.00",APEX HOUSING SOLUTIONS LTD,ACCOMMODATION BED & BREAKFAST,Place,Bed & Breakfast,A56000,0
Royal Borough of Kingston,31/12/2022,70038221,"1,608.90",APEX HOUSING SOLUTIONS LTD,ACCOMMODATION BED & BREAKFAST,Place,Bed & Breakfast,A56000,0
Royal Borough of Kingston,31/12/2022,70038222,"1,705.00",APEX HOUSING SOLUTIONS LTD,ACCOMMODATION BED & BREAKFAST,Place,Bed & Breakfast,A56000,0
Royal Borough of Kingston,31/12/2022,70038224,"1,705.00",APEX HOUSING SOLUTIONS LTD,ACCOMMODATION BED & BREAKFAST,Place,Bed & Breakfast,A56000,0
Royal Borough of Kingston,31/12/2022,70038225,"1,395.00",APEX HOUSING SOLUTIONS LTD,ACCOMMODATION BED & BREAKFAST,Place,Bed & Breakfast,A56000,0
Royal Borough of Kingston,31/12/2022,70038226,"2,139.00",APEX HOUSING SOLUTIONS LTD,ACCOMMODATION BED & BREAKFAST,Place,Bed & Breakfast,A56000,0
Royal Borough of Kingston,31/12/2022,70038227,"1,670.90",APEX HOUSING SOLUTIONS LTD,ACCOMMODATION BED & BREAKFAST,Place,Bed & Breakfast,A56000,0
Royal Borough of Kingston,31/12/2022,70038228,"1,705.00",APEX HOUSING SOLUTIONS LTD,ACCOMMODATION BED & BREAKFAST,Place,Bed & Breakfast,A56000,0
Royal Borough of Kingston,31/12/2022,70038229,"1,670.90",APEX HOUSING SOLUTIONS LTD,ACCOMMODATION BED & BREAKFAST,Place,Bed & Breakfast,A56000,0
Royal Borough of Kingston,31/12/2022,70038230,"1,798.00",APEX HOUSING SOLUTIONS LTD,ACCOMMODATION BED & BREAKFAST,Place,Bed & Breakfast,A56000,0
Royal Borough of Kingston,31/12/2022,70038231,"1,705.00",APEX HOUSING SOLUTIONS LTD,ACCOMMODATION BED & BREAKFAST,Place,Bed & Breakfast,A56000,0
Royal Borough of Kingston,21/12/2022,70037755,"7,375.00",AQUASITION (UK) LIMITED,LEGAL & PROFESSIONAL SERVICES,Corporate & Communities,Land Drainage,A56040,0
Royal Borough of Kingston,21/12/2022,70037755,"7,350.00",AQUASITION (UK) LIMITED,LEGAL & PROFESSIONAL SERVICES,Corporate & Communities,Other Roading-Related Expenditure,A56041,0
Royal Borough of Kingston,31/12/2022,70037933,"10,937.00",AQUAVENT LIMITED,BUILDING MNTCE - SERVICES,Housing Revenue Account,Water Testing & Treatment,A20037,0
Royal Borough of Kingston,24/01/2023,90201832,"1,093.50",REDACTED - PERSONAL DATA,PLS LANDLORDS,Place,PSL Payments To Landlords,A22031,0
Royal Borough of Kingston,24/01/2023,90201896,"1,314.00",REDACTED - PERSONAL DATA,PLS LANDLORDS,Place,PSL Payments To Landlords,A22031,0
Royal Borough of Kingston,24/01/2023,90202030,"1,093.50",REDACTED - PERSONAL DATA,PLS LANDLORDS,Place,PSL Payments To Landlords,A22031,0
Royal Borough of Kingston,24/01/2023,90202031,833.33,REDACTED - PERSONAL DATA,PLS LANDLORDS,Place,PSL Payments To Landlords,A22031,0
Royal Borough of Kingston,24/01/2023,90202225,"1,047.00",REDACTED - PERSONAL DATA,PLS LANDLORDS,Place,PSL Payments To Landlords,A22031,0
Royal Borough of Kingston,24/01/2023,90202226,"1,047.00",REDACTED - PERSONAL DATA,PLS LANDLORDS,Place,PSL Payments To Landlords,A22031,0
Royal Borough of Kingston,01/01/2023,90202718,"6,303.76",ASHCROFT CARE SERVICES LIMITED,SOCIAL SERVICES RESIDENTIAL,Adult Social Care & Health,Independent Placements,A56006,0
Royal Borough of Kingston,01/01/2023,90201356,952.32,ASHINGTON HOUSE LTD,SOCIAL SERVICES RESIDENTIAL,Adult Social Care & Health,Personal Budget - Third Party,A61019,0
Royal Borough of Kingston,01/01/2023,90201258,"1,349.25",ASHPRIME PROPERTIES LTD,SOCIAL SERVICES RESIDENTIAL,Adult Social Care & Health,Personal Budget - Third Party,A61019,0
Royal Borough of Kingston,24/01/2023,90202097,"1,317.00",REDACTED - PERSONAL DATA,PLS LANDLORDS,Place,PSL Payments To Landlords,A22031,0
Royal Borough of Kingston,01/01/2023,90201344,"2,655.50",Aspirations Care Ltd,SOCIAL SERVICES - OTHER,Adult Social Care & Health,Personal Budget - Third Party,A61019,0
Royal Borough of Kingston,01/01/2023,90202412,"5,391.87",ASPREY HEALTHCARE LTD,SOCIAL SERVICES RESIDENTIAL,Adult Social Care & Health,Independent Placements,A56006,0
Royal Borough of Kingston,01/01/2023,90202565,"3,950.20",ASPREY HEALTHCARE LTD,SOCIAL SERVICES RESIDENTIAL,Adult Social Care & Health,Independent Placements,A56006,0
Royal Borough of Kingston,01/01/2023,90202574,"4,531.14",ASPREY HEALTHCARE LTD,SOCIAL SERVICES RESIDENTIAL,Adult Social Care & Health,Independent Placements,A56006,0
Royal Borough of Kingston,01/01/2023,90202396,"4,852.08",ASTORIA HEALTHCARE LTD,SOCIAL SERVICES RESIDENTIAL,Adult Social Care & Health,Independent Placements,A56006,0
Royal Borough of Kingston,24/01/2023,90202027,"1,094.34",AUMKARA INVESTMENTS LTD,PLS LANDLORDS,Place,PSL Payments To Landlords,A22031,0
Royal Borough of Kingston,24/01/2023,90202028,"1,094.34",AUMKARA INVESTMENTS LTD,PLS LANDLORDS,Place,PSL Payments To Landlords,A22031,0
Royal Borough of Kingston,24/01/2023,90202029,"1,094.34",AUMKARA INVESTMENTS LTD,PLS LANDLORDS,Place,PSL Payments To Landlords,A22031,0
Royal Borough of Kingston,01/01/2023,90202648,"11,345.03",AUTISM CONSULTANTS LTD,SOCIAL SERVICES RESIDENTIAL,Adult Social Care & Health,Independent Placements,A56006,0
Royal Borough of Kingston,19/07/2022,70039442,"5,140.00",AVA (Against Violence and Abuse),TRAINING,Adult Social Care & Health,Staff Development And Training,A15022,0
Royal Borough of Kingston,18/12/2022,70037823,"1,417.75",AVICENNA PSYCHIATRY,SOCIAL SERVICES - OTHER,Adult Social Care & Health,Other Private Contractors - Third Party,A56080,0
Royal Borough of Kingston,28/12/2022,70037824,"1,061.55",AVICENNA PSYCHIATRY,SOCIAL SERVICES - OTHER,Adult Social Care & Health,Other Private Contractors - Third Party,A56080,0
Royal Borough of Kingston,29/12/2022,70038291,528.00,AVICENNA PSYCHIATRY,SOCIAL SERVICES - OTHER,Adult Social Care & Health,Other Private Contractors - Third Party,A56080,0
Royal Borough of Kingston,23/01/2023,70039420,879.40,AVICENNA PSYCHIATRY,SOCIAL SERVICES - OTHER,Adult Social Care & Health,Other Private Contractors - Third Party,A56080,0
Royal Borough of Kingston,19/10/2022,70033792,"1,883.79",AXIS EUROPE PLC,CONSTRUCTION INDUSTRY,Housing Revenue Account,Void Property Repairs,A20036,0
Royal Borough of Kingston,19/10/2022,70033793,"10,742.95",AXIS EUROPE PLC,CONSTRUCTION INDUSTRY,Housing Revenue Account,Property Repairs & Maintenance & Alterations - Responsive,A20011,0
Royal Borough of Kingston,19/10/2022,70033794,"2,654.49",AXIS EUROPE PLC,CONSTRUCTION INDUSTRY,Housing Revenue Account,Electrical Repairs,A20002,0
Royal Borough of Kingston,19/10/2022,70033795,"5,396.03",AXIS EUROPE PLC,CONSTRUCTION INDUSTRY,Housing Revenue Account,Housing - Heating & Ventilation,A20045,0
Royal Borough of Kingston,19/10/2022,70033797,"1,623.07",AXIS EUROPE PLC,CONSTRUCTION INDUSTRY,Place,Void Property Repairs,A20036,0
Royal Borough of Kingston,19/10/2022,70033798,"19,940.95",AXIS EUROPE PLC,CONSTRUCTION INDUSTRY,Housing Revenue Account,Property Repairs & Maintenance & Alterations - Responsive,A20011,0
Royal Borough of Kingston,19/10/2022,70033799,"10,306.25",AXIS EUROPE PLC,CONSTRUCTION INDUSTRY,Housing Revenue Account,Housing - Heating & Ventilation,A20045,0
Royal Borough of Kingston,19/10/2022,70033800,"3,355.31",AXIS EUROPE PLC,CONSTRUCTION INDUSTRY,Housing Revenue Account,Void Property Repairs,A20036,0
Royal Borough of Kingston,19/10/2022,70033921,"4,498.85",AXIS EUROPE PLC,CONSTRUCTION INDUSTRY,Housing Revenue Account,Electrical Repairs,A20002,0
Royal Borough of Kingston,19/10/2022,70033924,652.93,AXIS EUROPE PLC,CONSTRUCTION INDUSTRY,Housing Revenue Account,Void Property Repairs,A20036,0
Royal Borough of Kingston,19/10/2022,70033925,"1,776.42",AXIS EUROPE PLC,CONSTRUCTION INDUSTRY,Place,Void Property Repairs,A20036,0
Royal Borough of Kingston,21/11/2022,70035632,680.01,AXIS EUROPE PLC,CONSTRUCTION INDUSTRY,Capital Programme,Council Dwellings - Capitalised Voids,C10001,0
Royal Borough of Kingston,21/11/2022,70035633,"21,536.79",AXIS EUROPE PLC,CONSTRUCTION INDUSTRY,Capital Programme,Council Dwellings - Capitalised Voids,C10001,0
Royal Borough of Kingston,21/11/2022,70035634,"1,809.47",AXIS EUROPE PLC,CONSTRUCTION INDUSTRY,Capital Programme,Council Dwellings - Capitalised Voids,C10001,0
Royal Borough of Kingston,21/11/2022,70035635,"1,127.33",AXIS EUROPE PLC,CONSTRUCTION INDUSTRY,Capital Programme,Council Dwellings - Capitalised Voids,C10001,0
Royal Borough of Kingston,21/11/2022,70035636,"1,074.08",AXIS EUROPE PLC,CONSTRUCTION INDUSTRY,Capital Programme,Council Dwellings - Capitalised Voids,C10001,0
Royal Borough of Kingston,21/11/2022,70035637,"5,195.01",AXIS EUROPE PLC,CONSTRUCTION INDUSTRY,Capital Programme,Council Dwellings - Capitalised Voids,C10001,0
Royal Borough of Kingston,21/11/2022,70035638,"7,974.49",AXIS EUROPE PLC,CONSTRUCTION INDUSTRY,Capital Programme,Council Dwellings - Capitalised Voids,C10001,0
Royal Borough of Kingston,21/11/2022,70035639,"1,429.44",AXIS EUROPE PLC,CONSTRUCTION INDUSTRY,Capital Programme,Council Dwellings - Capitalised Voids,C10001,0
Royal Borough of Kingston,21/11/2022,70035640,802.61,AXIS EUROPE PLC,CONSTRUCTION INDUSTRY,Capital Programme,Council Dwellings - Capitalised Voids,C10001,0
Royal Borough of Kingston,21/11/2022,70035641,"5,973.87",AXIS EUROPE PLC,CONSTRUCTION INDUSTRY,Capital Programme,Council Dwellings - Capitalised Voids,C10001,0
Royal Borough of Kingston,21/11/2022,70035643,"2,306.74",AXIS EUROPE PLC,CONSTRUCTION INDUSTRY,Capital Programme,Council Dwellings - Capitalised Voids,C10001,0
Royal Borough of Kingston,21/11/2022,70035673,"1,578.21",AXIS EUROPE PLC,CONSTRUCTION INDUSTRY,Capital Programme,Council Dwellings - Capitalised Voids,C10001,0
Royal Borough of Kingston,21/11/2022,70035674,676.64,AXIS EUROPE PLC,CONSTRUCTION INDUSTRY,Capital Programme,Council Dwellings - Capitalised Voids,C10001,0
Royal Borough of Kingston,21/11/2022,70035675,823.31,AXIS EUROPE PLC,CONSTRUCTION INDUSTRY,Capital Programme,Council Dwellings - Capitalised Voids,C10001,0
Royal Borough of Kingston,21/11/2022,70035677,"10,563.15",AXIS EUROPE PLC,CONSTRUCTION INDUSTRY,Capital Programme,Council Dwellings - Capitalised Voids,C10001,0
Royal Borough of Kingston,21/11/2022,70035680,"1,076.09",AXIS EUROPE PLC,CONSTRUCTION INDUSTRY,Capital Programme,Council Dwellings - Capitalised Voids,C10001,0
Royal Borough of Kingston,21/11/2022,70035682,"2,920.02",AXIS EUROPE PLC,CONSTRUCTION INDUSTRY,Capital Programme,Council Dwellings - Capitalised Voids,C10001,0
Royal Borough of Kingston,21/11/2022,70035684,"2,112.64",AXIS EUROPE PLC,CONSTRUCTION INDUSTRY,Capital Programme,Council Dwellings - Capitalised Voids,C10001,0
Royal Borough of Kingston,21/11/2022,70035685,626.47,AXIS EUROPE PLC,CONSTRUCTION INDUSTRY,Capital Programme,Council Dwellings - Capitalised Voids,C10001,0
Royal Borough of Kingston,21/11/2022,70035686,"1,096.56",AXIS EUROPE PLC,CONSTRUCTION INDUSTRY,Capital Programme,Council Dwellings - Capitalised Voids,C10001,0
Royal Borough of Kingston,21/11/2022,70035687,"7,724.78",AXIS EUROPE PLC,CONSTRUCTION INDUSTRY,Capital Programme,Council Dwellings - Capitalised Voids,C10001,0
Royal Borough of Kingston,21/11/2022,70035688,"3,643.39",AXIS EUROPE PLC,CONSTRUCTION INDUSTRY,Capital Programme,Council Dwellings - Capitalised Voids,C10001,0
Royal Borough of Kingston,21/11/2022,70035689,519.09,AXIS EUROPE PLC,CONSTRUCTION INDUSTRY,Capital Programme,Council Dwellings - Capitalised Voids,C10001,0
Royal Borough of Kingston,21/11/2022,70035716,"19,822.58",AXIS EUROPE PLC,CONSTRUCTION INDUSTRY,Capital Programme,Council Dwellings - Capitalised Voids,C10001,0
Royal Borough of Kingston,23/11/2022,70035900,"3,499.87",AXIS EUROPE PLC,CONSTRUCTION INDUSTRY,Housing Revenue Account,Housing - Heating & Ventilation,A20045,0
Royal Borough of Kingston,23/11/2022,70035902,539.87,AXIS EUROPE PLC,CONSTRUCTION INDUSTRY,Place,Void Property Repairs,A20036,0
Royal Borough of Kingston,23/11/2022,70035903,"1,597.33",AXIS EUROPE PLC,CONSTRUCTION INDUSTRY,Housing Revenue Account,Electrical Repairs,A20002,0
Royal Borough of Kingston,23/11/2022,70035904,"1,241.26",AXIS EUROPE PLC,CONSTRUCTION INDUSTRY,Housing Revenue Account,Void Property Repairs,A20036,0
Royal Borough of Kingston,23/11/2022,70035905,"6,817.37",AXIS EUROPE PLC,CONSTRUCTION INDUSTRY,Housing Revenue Account,Property Repairs & Maintenance & Alterations - Responsive,A20011,0
Royal Borough of Kingston,19/12/2022,70037374,"3,219.43",AXIS EUROPE PLC,CONSTRUCTION INDUSTRY,Capital Programme,Council Dwellings - Construction & Renovation,C10002,0
Royal Borough of Kingston,19/12/2022,70037379,"4,291.78",AXIS EUROPE PLC,CONSTRUCTION INDUSTRY,Capital Programme,Council Dwellings - Construction & Renovation,C10002,0
Royal Borough of Kingston,21/12/2022,70037619,"2,252.20",AXIS EUROPE PLC,CONSTRUCTION INDUSTRY,Capital Programme,Council Dwellings - Construction & Renovation,C10002,0
Royal Borough of Kingston,21/12/2022,70037620,"2,109.79",AXIS EUROPE PLC,CONSTRUCTION INDUSTRY,Capital Programme,Council Dwellings - Construction & Renovation,C10002,0
Royal Borough of Kingston,21/12/2022,70037621,"2,451.98",AXIS EUROPE PLC,CONSTRUCTION INDUSTRY,Capital Programme,Council Dwellings - Construction & Renovation,C10002,0
Royal Borough of Kingston,21/12/2022,70037622,"3,698.53",AXIS EUROPE PLC,CONSTRUCTION INDUSTRY,Capital Programme,Council Dwellings - Construction & Renovation,C10002,0
Royal Borough of Kingston,21/12/2022,70037623,"2,271.51",AXIS EUROPE PLC,CONSTRUCTION INDUSTRY,Capital Programme,Council Dwellings - Construction & Renovation,C10002,0
Royal Borough of Kingston,21/12/2022,70037624,"2,684.40",AXIS EUROPE PLC,CONSTRUCTION INDUSTRY,Capital Programme,Council Dwellings - Construction & Renovation,C10002,0
Royal Borough of Kingston,21/12/2022,70037625,"2,244.17",AXIS EUROPE PLC,CONSTRUCTION INDUSTRY,Capital Programme,Council Dwellings - Construction & Renovation,C10002,0
Royal Borough of Kingston,21/12/2022,70037626,"2,222.85",AXIS EUROPE PLC,CONSTRUCTION INDUSTRY,Capital Programme,Council Dwellings - Construction & Renovation,C10002,0
Royal Borough of Kingston,21/12/2022,70037627,"2,242.50",AXIS EUROPE PLC,CONSTRUCTION INDUSTRY,Capital Programme,Council Dwellings - Construction & Renovation,C10002,0
Royal Borough of Kingston,21/12/2022,70037628,"2,045.41",AXIS EUROPE PLC,CONSTRUCTION INDUSTRY,Capital Programme,Council Dwellings - Construction & Renovation,C10002,0
Royal Borough of Kingston,21/12/2022,70037629,"2,255.29",AXIS EUROPE PLC,CONSTRUCTION INDUSTRY,Capital Programme,Council Dwellings - Construction & Renovation,C10002,0
Royal Borough of Kingston,30/12/2022,70037831,"6,905.58",AXIS EUROPE PLC,CONSTRUCTION INDUSTRY,Housing Revenue Account,Void Property Repairs,A20036,0
Royal Borough of Kingston,30/12/2022,70037832,"15,897.42",AXIS EUROPE PLC,CONSTRUCTION INDUSTRY,Place,Void Property Repairs,A20036,0
Royal Borough of Kingston,31/12/2022,70037887,"1,491.92",AXIS EUROPE PLC,CONSTRUCTION INDUSTRY,Housing Revenue Account,Consultancy Services - Other,A44065,0
Royal Borough of Kingston,31/12/2022,70037890,"4,318.37",AXIS EUROPE PLC,CONSTRUCTION INDUSTRY,Capital Programme,Council Dwellings - Construction & Renovation,C10002,0
Royal Borough of Kingston,31/12/2022,70037891,"1,035.60",AXIS EUROPE PLC,CONSTRUCTION INDUSTRY,Capital Programme,Asbestos Removal,C10000,0
Royal Borough of Kingston,31/12/2022,70037892,507.13,AXIS EUROPE PLC,CONSTRUCTION INDUSTRY,Capital Programme,Disabled Adaptations,C20003,0
Royal Borough of Kingston,31/12/2022,70037893,"9,983.87",AXIS EUROPE PLC,CONSTRUCTION INDUSTRY,Capital Programme,Disabled Adaptations,C20003,0
Royal Borough of Kingston,31/12/2022,70037894,"4,671.99",AXIS EUROPE PLC,CONSTRUCTION INDUSTRY,Capital Programme,Council Dwellings - Capitalised Voids,C10001,0
Royal Borough of Kingston,30/12/2022,70037898,"12,456.21",AXIS EUROPE PLC,CONSTRUCTION INDUSTRY,Capital Programme,Council Dwellings - Construction & Renovation,C10002,0
Royal Borough of Kingston,27/10/2022,70038279,"2,591.19",AXIS EUROPE PLC,CONSTRUCTION INDUSTRY,Capital Programme,Council Dwellings - Construction & Renovation,C10002,0
Royal Borough of Kingston,24/01/2023,90202026,"1,314.00",REDACTED - PERSONAL DATA,PLS LANDLORDS,Place,PSL Payments To Landlords,A22031,0
Royal Borough of Kingston,24/01/2023,90202146,"1,094.00",REDACTED - PERSONAL DATA,PLS LANDLORDS,Place,PSL Payments To Landlords,A22031,0
Royal Borough of Kingston,24/01/2023,90201805,758.33,REDACTED - PERSONAL DATA,PLS LANDLORDS,Place,PSL Payments To Landlords,A22031,0
Royal Borough of Kingston,28/11/2022,70036682,"44,574.65",BALANCE (SUPPORT) C.I.C,SOCIAL SERVICES - OTHER,Adult Social Care & Health,Professional Fees,A44066,0
Royal Borough of Kingston,10/01/2023,70038582,"1,411.05",BALANCE (SUPPORT) C.I.C,SOCIAL SERVICES - OTHER,Adult Social Care & Health,Other Property Repairs & Maintenance,A20007,0
Royal Borough of Kingston,01/01/2023,70038583,"1,929.28",BALANCE (SUPPORT) C.I.C,SOCIAL SERVICES - OTHER,Adult Social Care & Health,Other Property Repairs & Maintenance,A20007,0
Royal Borough of Kingston,12/12/2022,90199773,960.96,BALANCE (SUPPORT) C.I.C,SOCIAL SERVICES - OTHER,Adult Social Care & Health,Supported Living - new framework,A56126,0
Royal Borough of Kingston,12/12/2022,90199774,-950.88,BALANCE (SUPPORT) C.I.C,SOCIAL SERVICES - OTHER,Adult Social Care & Health,Supported Living - new framework,A56126,0
Royal Borough of Kingston,12/12/2022,90199775,960.96,BALANCE (SUPPORT) C.I.C,SOCIAL SERVICES - OTHER,Adult Social Care & Health,Supported Living - new framework,A56126,0
Royal Borough of Kingston,12/12/2022,90199776,-950.88,BALANCE (SUPPORT) C.I.C,SOCIAL SERVICES - OTHER,Adult Social Care & Health,Supported Living - new framework,A56126,0
Royal Borough of Kingston,12/12/2022,90199777,960.96,BALANCE (SUPPORT) C.I.C,SOCIAL SERVICES - OTHER,Adult Social Care & Health,Supported Living - new framework,A56126,0
Royal Borough of Kingston,01/01/2023,90199800,"2,486.20",BALANCE (SUPPORT) C.I.C,SOCIAL SERVICES - OTHER,Adult Social Care & Health,Supported Living - new framework,A56126,0
Royal Borough of Kingston,01/01/2023,90199801,618.28,BALANCE (SUPPORT) C.I.C,SOCIAL SERVICES - OTHER,Adult Social Care & Health,Supported Living - new framework,A56126,0
Royal Borough of Kingston,01/01/2023,90199805,701.98,BALANCE (SUPPORT) C.I.C,SOCIAL SERVICES - OTHER,Adult Social Care & Health,Supported Living - new framework,A56126,0
Royal Borough of Kingston,01/01/2023,90199806,"1,864.64",BALANCE (SUPPORT) C.I.C,SOCIAL SERVICES - OTHER,Adult Social Care & Health,Supported Living - new framework,A56126,0
Royal Borough of Kingston,01/01/2023,90199811,"1,595.88",BALANCE (SUPPORT) C.I.C,SOCIAL SERVICES - OTHER,Adult Social Care & Health,Supported Living - new framework,A56126,0
Royal Borough of Kingston,01/01/2023,90199812,"1,695.62",BALANCE (SUPPORT) C.I.C,SOCIAL SERVICES - OTHER,Adult Social Care & Health,Supported Living - new framework,A56126,0
Royal Borough of Kingston,01/01/2023,90199814,"1,544.40",BALANCE (SUPPORT) C.I.C,SOCIAL SERVICES - OTHER,Adult Social Care & Health,Supported Living - new framework,A56126,0
Royal Borough of Kingston,01/01/2023,90199815,"1,640.93",BALANCE (SUPPORT) C.I.C,SOCIAL SERVICES - OTHER,Adult Social Care & Health,Supported Living - new framework,A56126,0
Royal Borough of Kingston,01/01/2023,90199819,"1,595.88",BALANCE (SUPPORT) C.I.C,SOCIAL SERVICES - OTHER,Adult Social Care & Health,Supported Living - new framework,A56126,0
Royal Borough of Kingston,01/01/2023,90199820,"1,695.62",BALANCE (SUPPORT) C.I.C,SOCIAL SERVICES - OTHER,Adult Social Care & Health,Supported Living - new framework,A56126,0
Royal Borough of Kingston,01/01/2023,90199824,"1,544.40",BALANCE (SUPPORT) C.I.C,SOCIAL SERVICES - OTHER,Adult Social Care & Health,Supported Living - new framework,A56126,0
Royal Borough of Kingston,01/01/2023,90199825,"1,640.93",BALANCE (SUPPORT) C.I.C,SOCIAL SERVICES - OTHER,Adult Social Care & Health,Supported Living - new framework,A56126,0
Royal Borough of Kingston,01/01/2023,90199826,"1,595.88",BALANCE (SUPPORT) C.I.C,SOCIAL SERVICES - OTHER,Adult Social Care & Health,Supported Living - new framework,A56126,0
Royal Borough of Kingston,01/01/2023,90199827,601.67,BALANCE (SUPPORT) C.I.C,SOCIAL SERVICES - OTHER,Adult Social Care & Health,Supported Living - new framework,A56126,0
Royal Borough of Kingston,01/01/2023,90199830,"1,595.88",BALANCE (SUPPORT) C.I.C,SOCIAL SERVICES - OTHER,Adult Social Care & Health,Supported Living - new framework,A56126,0
Royal Borough of Kingston,01/01/2023,90199843,886.60,BALANCE (SUPPORT) C.I.C,SOCIAL SERVICES - OTHER,Adult Social Care & Health,Supported Living - new framework,A56126,0
Royal Borough of Kingston,01/01/2023,90199844,"1,695.62",BALANCE (SUPPORT) C.I.C,SOCIAL SERVICES - OTHER,Adult Social Care & Health,Supported Living - new framework,A56126,0
Royal Borough of Kingston,01/01/2023,90199846,858.00,BALANCE (SUPPORT) C.I.C,SOCIAL SERVICES - OTHER,Adult Social Care & Health,Supported Living - new framework,A56126,0
Royal Borough of Kingston,01/01/2023,90199847,"1,640.93",BALANCE (SUPPORT) C.I.C,SOCIAL SERVICES - OTHER,Adult Social Care & Health,Supported Living - new framework,A56126,0
Royal Borough of Kingston,01/01/2023,90199849,886.60,BALANCE (SUPPORT) C.I.C,SOCIAL SERVICES - OTHER,Adult Social Care & Health,Supported Living - new framework,A56126,0
Royal Borough of Kingston,01/01/2023,90199850,"1,695.62",BALANCE (SUPPORT) C.I.C,SOCIAL SERVICES - OTHER,Adult Social Care & Health,Supported Living - new framework,A56126,0
Royal Borough of Kingston,01/01/2023,90199852,858.00,BALANCE (SUPPORT) C.I.C,SOCIAL SERVICES - OTHER,Adult Social Care & Health,Supported Living - new framework,A56126,0
Royal Borough of Kingston,01/01/2023,90199853,"1,640.93",BALANCE (SUPPORT) C.I.C,SOCIAL SERVICES - OTHER,Adult Social Care & Health,Supported Living - new framework,A56126,0
Royal Borough of Kingston,01/01/2023,90199855,886.60,BALANCE (SUPPORT) C.I.C,SOCIAL SERVICES - OTHER,Adult Social Care & Health,Supported Living - new framework,A56126,0
Royal Borough of Kingston,01/01/2023,90199856,"1,695.62",BALANCE (SUPPORT) C.I.C,SOCIAL SERVICES - OTHER,Adult Social Care & Health,Supported Living - new framework,A56126,0
Royal Borough of Kingston,01/01/2023,90199858,886.60,BALANCE (SUPPORT) C.I.C,SOCIAL SERVICES - OTHER,Adult Social Care & Health,Supported Living - new framework,A56126,0
Royal Borough of Kingston,01/01/2023,90199859,"1,695.62",BALANCE (SUPPORT) C.I.C,SOCIAL SERVICES - OTHER,Adult Social Care & Health,Supported Living - new framework,A56126,0
Royal Borough of Kingston,01/01/2023,90199867,886.60,BALANCE (SUPPORT) C.I.C,SOCIAL SERVICES - OTHER,Adult Social Care & Health,Supported Living - new framework,A56126,0
Royal Borough of Kingston,01/01/2023,90199868,"2,260.83",BALANCE (SUPPORT) C.I.C,SOCIAL SERVICES - OTHER,Adult Social Care & Health,Supported Living - new framework,A56126,0
Royal Borough of Kingston,01/01/2023,90199869,583.83,BALANCE (SUPPORT) C.I.C,SOCIAL SERVICES - OTHER,Adult Social Care & Health,Supported Living - new framework,A56126,0
Royal Borough of Kingston,01/01/2023,90199870,858.00,BALANCE (SUPPORT) C.I.C,SOCIAL SERVICES - OTHER,Adult Social Care & Health,Supported Living - new framework,A56126,0
Royal Borough of Kingston,01/01/2023,90199871,"2,187.90",BALANCE (SUPPORT) C.I.C,SOCIAL SERVICES - OTHER,Adult Social Care & Health,Supported Living - new framework,A56126,0
Royal Borough of Kingston,01/01/2023,90199872,564.99,BALANCE (SUPPORT) C.I.C,SOCIAL SERVICES - OTHER,Adult Social Care & Health,Supported Living - new framework,A56126,0
Royal Borough of Kingston,01/01/2023,90199873,886.60,BALANCE (SUPPORT) C.I.C,SOCIAL SERVICES - OTHER,Adult Social Care & Health,Supported Living - new framework,A56126,0
Royal Borough of Kingston,01/01/2023,90199874,"2,260.83",BALANCE (SUPPORT) C.I.C,SOCIAL SERVICES - OTHER,Adult Social Care & Health,Supported Living - new framework,A56126,0
Royal Borough of Kingston,01/01/2023,90199875,583.83,BALANCE (SUPPORT) C.I.C,SOCIAL SERVICES - OTHER,Adult Social Care & Health,Supported Living - new framework,A56126,0
Royal Borough of Kingston,01/01/2023,90199876,858.00,BALANCE (SUPPORT) C.I.C,SOCIAL SERVICES - OTHER,Adult Social Care & Health,Supported Living - new framework,A56126,0
Royal Borough of Kingston,01/01/2023,90199877,"2,187.90",BALANCE (SUPPORT) C.I.C,SOCIAL SERVICES - OTHER,Adult Social Care & Health,Supported Living - new framework,A56126,0
Royal Borough of Kingston,01/01/2023,90199878,564.99,BALANCE (SUPPORT) C.I.C,SOCIAL SERVICES - OTHER,Adult Social Care & Health,Supported Living - new framework,A56126,0
Royal Borough of Kingston,01/01/2023,90199879,886.60,BALANCE (SUPPORT) C.I.C,SOCIAL SERVICES - OTHER,Adult Social Care & Health,Supported Living - new framework,A56126,0
Royal Borough of Kingston,01/01/2023,90199880,"2,260.83",BALANCE (SUPPORT) C.I.C,SOCIAL SERVICES - OTHER,Adult Social Care & Health,Supported Living - new framework,A56126,0
Royal Borough of Kingston,01/01/2023,90199881,583.83,BALANCE (SUPPORT) C.I.C,SOCIAL SERVICES - OTHER,Adult Social Care & Health,Supported Living - new framework,A56126,0
Royal Borough of Kingston,01/01/2023,90199882,886.60,BALANCE (SUPPORT) C.I.C,SOCIAL SERVICES - OTHER,Adult Social Care & Health,Supported Living - new framework,A56126,0
Royal Borough of Kingston,01/01/2023,90199883,"2,260.83",BALANCE (SUPPORT) C.I.C,SOCIAL SERVICES - OTHER,Adult Social Care & Health,Supported Living - new framework,A56126,0
Royal Borough of Kingston,01/01/2023,90199884,583.83,BALANCE (SUPPORT) C.I.C,SOCIAL SERVICES - OTHER,Adult Social Care & Health,Supported Living - new framework,A56126,0
Royal Borough of Kingston,01/01/2023,90199891,"1,152.58",BALANCE (SUPPORT) C.I.C,SOCIAL SERVICES - OTHER,Adult Social Care & Health,Supported Living - new framework,A56126,0
Royal Borough of Kingston,01/01/2023,90199892,"2,260.83",BALANCE (SUPPORT) C.I.C,SOCIAL SERVICES - OTHER,Adult Social Care & Health,Supported Living - new framework,A56126,0
Royal Borough of Kingston,01/01/2023,90199893,583.83,BALANCE (SUPPORT) C.I.C,SOCIAL SERVICES - OTHER,Adult Social Care & Health,Supported Living - new framework,A56126,0
Royal Borough of Kingston,01/01/2023,90199894,"1,115.40",BALANCE (SUPPORT) C.I.C,SOCIAL SERVICES - OTHER,Adult Social Care & Health,Supported Living - new framework,A56126,0
Royal Borough of Kingston,01/01/2023,90199895,"2,187.90",BALANCE (SUPPORT) C.I.C,SOCIAL SERVICES - OTHER,Adult Social Care & Health,Supported Living - new framework,A56126,0
Royal Borough of Kingston,01/01/2023,90199896,564.99,BALANCE (SUPPORT) C.I.C,SOCIAL SERVICES - OTHER,Adult Social Care & Health,Supported Living - new framework,A56126,0
Royal Borough of Kingston,01/01/2023,90199897,"1,152.58",BALANCE (SUPPORT) C.I.C,SOCIAL SERVICES - OTHER,Adult Social Care & Health,Supported Living - new framework,A56126,0
Royal Borough of Kingston,01/01/2023,90199898,"2,260.83",BALANCE (SUPPORT) C.I.C,SOCIAL SERVICES - OTHER,Adult Social Care & Health,Supported Living - new framework,A56126,0
Royal Borough of Kingston,01/01/2023,90199899,583.83,BALANCE (SUPPORT) C.I.C,SOCIAL SERVICES - OTHER,Adult Social Care & Health,Supported Living - new framework,A56126,0
Royal Borough of Kingston,01/01/2023,90199900,"1,115.40",BALANCE (SUPPORT) C.I.C,SOCIAL SERVICES - OTHER,Adult Social Care & Health,Supported Living - new framework,A56126,0
Royal Borough of Kingston,01/01/2023,90199901,"2,187.90",BALANCE (SUPPORT) C.I.C,SOCIAL SERVICES - OTHER,Adult Social Care & Health,Supported Living - new framework,A56126,0
Royal Borough of Kingston,01/01/2023,90199902,564.99,BALANCE (SUPPORT) C.I.C,SOCIAL SERVICES - OTHER,Adult Social Care & Health,Supported Living - new framework,A56126,0
Royal Borough of Kingston,01/01/2023,90199903,"1,152.58",BALANCE (SUPPORT) C.I.C,SOCIAL SERVICES - OTHER,Adult Social Care & Health,Supported Living - new framework,A56126,0
Royal Borough of Kingston,01/01/2023,90199904,"2,260.83",BALANCE (SUPPORT) C.I.C,SOCIAL SERVICES - OTHER,Adult Social Care & Health,Supported Living - new framework,A56126,0
Royal Borough of Kingston,01/01/2023,90199905,583.83,BALANCE (SUPPORT) C.I.C,SOCIAL SERVICES - OTHER,Adult Social Care & Health,Supported Living - new framework,A56126,0
Royal Borough of Kingston,01/01/2023,90199906,"1,152.58",BALANCE (SUPPORT) C.I.C,SOCIAL SERVICES - OTHER,Adult Social Care & Health,Supported Living - new framework,A56126,0
Royal Borough of Kingston,01/01/2023,90199907,"2,260.83",BALANCE (SUPPORT) C.I.C,SOCIAL SERVICES - OTHER,Adult Social Care & Health,Supported Living - new framework,A56126,0
Royal Borough of Kingston,01/01/2023,90199908,583.83,BALANCE (SUPPORT) C.I.C,SOCIAL SERVICES - OTHER,Adult Social Care & Health,Supported Living - new framework,A56126,0
Royal Borough of Kingston,01/01/2023,90199909,"1,864.64",BALANCE (SUPPORT) C.I.C,SOCIAL SERVICES - OTHER,Adult Social Care & Health,Supported Living - new framework,A56126,0
Royal Borough of Kingston,01/01/2023,90199910,701.98,BALANCE (SUPPORT) C.I.C,SOCIAL SERVICES - OTHER,Adult Social Care & Health,Supported Living - new framework,A56126,0
Royal Borough of Kingston,01/01/2023,90199912,"2,260.83",BALANCE (SUPPORT) C.I.C,SOCIAL SERVICES - OTHER,Adult Social Care & Health,Supported Living - new framework,A56126,0
Royal Borough of Kingston,01/01/2023,90199913,583.83,BALANCE (SUPPORT) C.I.C,SOCIAL SERVICES - OTHER,Adult Social Care & Health,Supported Living - new framework,A56126,0
Royal Borough of Kingston,01/01/2023,90199914,"2,187.90",BALANCE (SUPPORT) C.I.C,SOCIAL SERVICES - OTHER,Adult Social Care & Health,Supported Living - new framework,A56126,0
Royal Borough of Kingston,01/01/2023,90199915,564.99,BALANCE (SUPPORT) C.I.C,SOCIAL SERVICES - OTHER,Adult Social Care & Health,Supported Living - new framework,A56126,0
Royal Borough of Kingston,01/01/2023,90199916,"2,260.83",BALANCE (SUPPORT) C.I.C,SOCIAL SERVICES - OTHER,Adult Social Care & Health,Supported Living - new framework,A56126,0
Royal Borough of Kingston,01/01/2023,90199917,583.83,BALANCE (SUPPORT) C.I.C,SOCIAL SERVICES - OTHER,Adult Social Care & Health,Supported Living - new framework,A56126,0
Royal Borough of Kingston,01/01/2023,90199918,"2,187.90",BALANCE (SUPPORT) C.I.C,SOCIAL SERVICES - OTHER,Adult Social Care & Health,Supported Living - new framework,A56126,0
Royal Borough of Kingston,01/01/2023,90199919,564.99,BALANCE (SUPPORT) C.I.C,SOCIAL SERVICES - OTHER,Adult Social Care & Health,Supported Living - new framework,A56126,0
Royal Borough of Kingston,01/01/2023,90199920,"2,260.83",BALANCE (SUPPORT) C.I.C,SOCIAL SERVICES - OTHER,Adult Social Care & Health,Supported Living - new framework,A56126,0
Royal Borough of Kingston,01/01/2023,90199921,583.83,BALANCE (SUPPORT) C.I.C,SOCIAL SERVICES - OTHER,Adult Social Care & Health,Supported Living - new framework,A56126,0
Royal Borough of Kingston,01/01/2023,90199922,"2,260.83",BALANCE (SUPPORT) C.I.C,SOCIAL SERVICES - OTHER,Adult Social Care & Health,Supported Living - new framework,A56126,0
Royal Borough of Kingston,01/01/2023,90199923,583.83,BALANCE (SUPPORT) C.I.C,SOCIAL SERVICES - OTHER,Adult Social Care & Health,Supported Living - new framework,A56126,0
Royal Borough of Kingston,01/01/2023,90199924,620.62,BALANCE (SUPPORT) C.I.C,SOCIAL SERVICES - OTHER,Adult Social Care & Health,Supported Living - new framework,A56126,0
Royal Borough of Kingston,01/01/2023,90199933,975.26,BALANCE (SUPPORT) C.I.C,SOCIAL SERVICES - OTHER,Adult Social Care & Health,Supported Living - new framework,A56126,0
Royal Borough of Kingston,01/01/2023,90199934,"1,695.62",BALANCE (SUPPORT) C.I.C,SOCIAL SERVICES - OTHER,Adult Social Care & Health,Supported Living - new framework,A56126,0
Royal Borough of Kingston,01/01/2023,90199936,943.80,BALANCE (SUPPORT) C.I.C,SOCIAL SERVICES - OTHER,Adult Social Care & Health,Supported Living - new framework,A56126,0
Royal Borough of Kingston,01/01/2023,90199937,"1,640.93",BALANCE (SUPPORT) C.I.C,SOCIAL SERVICES - OTHER,Adult Social Care & Health,Supported Living - new framework,A56126,0
Royal Borough of Kingston,01/01/2023,90199939,975.26,BALANCE (SUPPORT) C.I.C,SOCIAL SERVICES - OTHER,Adult Social Care & Health,Supported Living - new framework,A56126,0
Royal Borough of Kingston,01/01/2023,90199940,"1,695.62",BALANCE (SUPPORT) C.I.C,SOCIAL SERVICES - OTHER,Adult Social Care & Health,Supported Living - new framework,A56126,0
Royal Borough of Kingston,01/01/2023,90199942,943.80,BALANCE (SUPPORT) C.I.C,SOCIAL SERVICES - OTHER,Adult Social Care & Health,Supported Living - new framework,A56126,0
Royal Borough of Kingston,01/01/2023,90199943,"1,640.93",BALANCE (SUPPORT) C.I.C,SOCIAL SERVICES - OTHER,Adult Social Care & Health,Supported Living - new framework,A56126,0
Royal Borough of Kingston,01/01/2023,90199945,975.26,BALANCE (SUPPORT) C.I.C,SOCIAL SERVICES - OTHER,Adult Social Care & Health,Supported Living - new framework,A56126,0
Royal Borough of Kingston,01/01/2023,90199946,"1,695.62",BALANCE (SUPPORT) C.I.C,SOCIAL SERVICES - OTHER,Adult Social Care & Health,Supported Living - new framework,A56126,0
Royal Borough of Kingston,01/01/2023,90199948,975.26,BALANCE (SUPPORT) C.I.C,SOCIAL SERVICES - OTHER,Adult Social Care & Health,Supported Living - new framework,A56126,0
Royal Borough of Kingston,01/01/2023,90199949,"1,695.62",BALANCE (SUPPORT) C.I.C,SOCIAL SERVICES - OTHER,Adult Social Care & Health,Supported Living - new framework,A56126,0
Royal Borough of Kingston,01/01/2023,90199965,"1,695.62",BALANCE (SUPPORT) C.I.C,SOCIAL SERVICES - OTHER,Adult Social Care & Health,Supported Living - new framework,A56126,0
Royal Borough of Kingston,01/01/2023,90199967,"1,640.93",BALANCE (SUPPORT) C.I.C,SOCIAL SERVICES - OTHER,Adult Social Care & Health,Supported Living - new framework,A56126,0
Royal Borough of Kingston,01/01/2023,90199969,"1,695.62",BALANCE (SUPPORT) C.I.C,SOCIAL SERVICES - OTHER,Adult Social Care & Health,Supported Living - new framework,A56126,0
Royal Borough of Kingston,01/01/2023,90199971,"1,640.93",BALANCE (SUPPORT) C.I.C,SOCIAL SERVICES - OTHER,Adult Social Care & Health,Supported Living - new framework,A56126,0
Royal Borough of Kingston,01/01/2023,90199973,"1,695.62",BALANCE (SUPPORT) C.I.C,SOCIAL SERVICES - OTHER,Adult Social Care & Health,Supported Living - new framework,A56126,0
Royal Borough of Kingston,01/01/2023,90199975,"1,695.62",BALANCE (SUPPORT) C.I.C,SOCIAL SERVICES - OTHER,Adult Social Care & Health,Supported Living - new framework,A56126,0
Royal Borough of Kingston,01/01/2023,90199980,709.28,BALANCE (SUPPORT) C.I.C,SOCIAL SERVICES - OTHER,Adult Social Care & Health,Supported Living - new framework,A56126,0
Royal Borough of Kingston,01/01/2023,90199984,566.28,BALANCE (SUPPORT) C.I.C,SOCIAL SERVICES - OTHER,Adult Social Care & Health,Supported Living - new framework,A56126,0
Royal Borough of Kingston,01/01/2023,90199985,797.94,BALANCE (SUPPORT) C.I.C,SOCIAL SERVICES - OTHER,Adult Social Care & Health,Supported Living - new framework,A56126,0
Royal Borough of Kingston,01/01/2023,90199986,797.94,BALANCE (SUPPORT) C.I.C,SOCIAL SERVICES - OTHER,Adult Social Care & Health,Supported Living - new framework,A56126,0
Royal Borough of Kingston,12/12/2022,90199990,900.90,BALANCE (SUPPORT) C.I.C,SOCIAL SERVICES - OTHER,Adult Social Care & Health,Supported Living - new framework,A56126,0
Royal Borough of Kingston,12/12/2022,90199991,-891.45,BALANCE (SUPPORT) C.I.C,SOCIAL SERVICES - OTHER,Adult Social Care & Health,Supported Living - new framework,A56126,0
Royal Borough of Kingston,12/12/2022,90199992,"1,201.20",BALANCE (SUPPORT) C.I.C,SOCIAL SERVICES - OTHER,Adult Social Care & Health,Supported Living - new framework,A56126,0
Royal Borough of Kingston,12/12/2022,90199993,"-1,188.60",BALANCE (SUPPORT) C.I.C,SOCIAL SERVICES - OTHER,Adult Social Care & Health,Supported Living - new framework,A56126,0
Royal Borough of Kingston,12/12/2022,90199994,"1,201.20",BALANCE (SUPPORT) C.I.C,SOCIAL SERVICES - OTHER,Adult Social Care & Health,Supported Living - new framework,A56126,0
Royal Borough of Kingston,12/12/2022,90199995,"-1,188.60",BALANCE (SUPPORT) C.I.C,SOCIAL SERVICES - OTHER,Adult Social Care & Health,Supported Living - new framework,A56126,0
Royal Borough of Kingston,12/12/2022,90199996,"1,201.20",BALANCE (SUPPORT) C.I.C,SOCIAL SERVICES - OTHER,Adult Social Care & Health,Supported Living - new framework,A56126,0
Royal Borough of Kingston,12/12/2022,90199997,"-1,188.60",BALANCE (SUPPORT) C.I.C,SOCIAL SERVICES - OTHER,Adult Social Care & Health,Supported Living - new framework,A56126,0
Royal Borough of Kingston,12/12/2022,90199998,"1,201.20",BALANCE (SUPPORT) C.I.C,SOCIAL SERVICES - OTHER,Adult Social Care & Health,Supported Living - new framework,A56126,0
Royal Borough of Kingston,12/12/2022,90199999,"-1,188.60",BALANCE (SUPPORT) C.I.C,SOCIAL SERVICES - OTHER,Adult Social Care & Health,Supported Living - new framework,A56126,0
Royal Borough of Kingston,12/12/2022,90200000,"1,201.20",BALANCE (SUPPORT) C.I.C,SOCIAL SERVICES - OTHER,Adult Social Care & Health,Supported Living - new framework,A56126,0
Royal Borough of Kingston,12/12/2022,90200013,600.60,BALANCE (SUPPORT) C.I.C,SOCIAL SERVICES - OTHER,Adult Social Care & Health,Supported Living - new framework,A56126,0
Royal Borough of Kingston,12/12/2022,90200014,-594.30,BALANCE (SUPPORT) C.I.C,SOCIAL SERVICES - OTHER,Adult Social Care & Health,Supported Living - new framework,A56126,0
Royal Borough of Kingston,12/12/2022,90200015,800.80,BALANCE (SUPPORT) C.I.C,SOCIAL SERVICES - OTHER,Adult Social Care & Health,Supported Living - new framework,A56126,0
Royal Borough of Kingston,12/12/2022,90200016,-792.40,BALANCE (SUPPORT) C.I.C,SOCIAL SERVICES - OTHER,Adult Social Care & Health,Supported Living - new framework,A56126,0
Royal Borough of Kingston,12/12/2022,90200017,800.80,BALANCE (SUPPORT) C.I.C,SOCIAL SERVICES - OTHER,Adult Social Care & Health,Supported Living - new framework,A56126,0
Royal Borough of Kingston,12/12/2022,90200018,-792.40,BALANCE (SUPPORT) C.I.C,SOCIAL SERVICES - OTHER,Adult Social Care & Health,Supported Living - new framework,A56126,0
Royal Borough of Kingston,12/12/2022,90200019,800.80,BALANCE (SUPPORT) C.I.C,SOCIAL SERVICES - OTHER,Adult Social Care & Health,Supported Living - new framework,A56126,0
Royal Borough of Kingston,12/12/2022,90200020,-792.40,BALANCE (SUPPORT) C.I.C,SOCIAL SERVICES - OTHER,Adult Social Care & Health,Supported Living - new framework,A56126,0
Royal Borough of Kingston,12/12/2022,90200021,800.80,BALANCE (SUPPORT) C.I.C,SOCIAL SERVICES - OTHER,Adult Social Care & Health,Supported Living - new framework,A56126,0
Royal Borough of Kingston,12/12/2022,90200022,-792.40,BALANCE (SUPPORT) C.I.C,SOCIAL SERVICES - OTHER,Adult Social Care & Health,Supported Living - new framework,A56126,0
Royal Borough of Kingston,12/12/2022,90200023,800.80,BALANCE (SUPPORT) C.I.C,SOCIAL SERVICES - OTHER,Adult Social Care & Health,Supported Living - new framework,A56126,0
Royal Borough of Kingston,12/12/2022,90200031,540.54,BALANCE (SUPPORT) C.I.C,SOCIAL SERVICES - OTHER,Adult Social Care & Health,Supported Living - new framework,A56126,0
Royal Borough of Kingston,12/12/2022,90200032,-534.87,BALANCE (SUPPORT) C.I.C,SOCIAL SERVICES - OTHER,Adult Social Care & Health,Supported Living - new framework,A56126,0
Royal Borough of Kingston,12/12/2022,90200033,720.72,BALANCE (SUPPORT) C.I.C,SOCIAL SERVICES - OTHER,Adult Social Care & Health,Supported Living - new framework,A56126,0
Royal Borough of Kingston,12/12/2022,90200034,-713.16,BALANCE (SUPPORT) C.I.C,SOCIAL SERVICES - OTHER,Adult Social Care & Health,Supported Living - new framework,A56126,0
Royal Borough of Kingston,12/12/2022,90200035,720.72,BALANCE (SUPPORT) C.I.C,SOCIAL SERVICES - OTHER,Adult Social Care & Health,Supported Living - new framework,A56126,0
Royal Borough of Kingston,12/12/2022,90200036,-713.16,BALANCE (SUPPORT) C.I.C,SOCIAL SERVICES - OTHER,Adult Social Care & Health,Supported Living - new framework,A56126,0
Royal Borough of Kingston,12/12/2022,90200037,720.72,BALANCE (SUPPORT) C.I.C,SOCIAL SERVICES - OTHER,Adult Social Care & Health,Supported Living - new framework,A56126,0
Royal Borough of Kingston,12/12/2022,90200038,-713.16,BALANCE (SUPPORT) C.I.C,SOCIAL SERVICES - OTHER,Adult Social Care & Health,Supported Living - new framework,A56126,0
Royal Borough of Kingston,12/12/2022,90200039,720.72,BALANCE (SUPPORT) C.I.C,SOCIAL SERVICES - OTHER,Adult Social Care & Health,Supported Living - new framework,A56126,0
Royal Borough of Kingston,12/12/2022,90200040,-713.16,BALANCE (SUPPORT) C.I.C,SOCIAL SERVICES - OTHER,Adult Social Care & Health,Supported Living - new framework,A56126,0
Royal Borough of Kingston,12/12/2022,90200041,720.72,BALANCE (SUPPORT) C.I.C,SOCIAL SERVICES - OTHER,Adult Social Care & Health,Supported Living - new framework,A56126,0
Royal Borough of Kingston,12/12/2022,90200044,840.84,BALANCE (SUPPORT) C.I.C,SOCIAL SERVICES - OTHER,Adult Social Care & Health,Supported Living - new framework,A56126,0
Royal Borough of Kingston,12/12/2022,90200045,-832.02,BALANCE (SUPPORT) C.I.C,SOCIAL SERVICES - OTHER,Adult Social Care & Health,Supported Living - new framework,A56126,0
Royal Borough of Kingston,12/12/2022,90200046,"1,121.12",BALANCE (SUPPORT) C.I.C,SOCIAL SERVICES - OTHER,Adult Social Care & Health,Supported Living - new framework,A56126,0
Royal Borough of Kingston,12/12/2022,90200047,"-1,109.36",BALANCE (SUPPORT) C.I.C,SOCIAL SERVICES - OTHER,Adult Social Care & Health,Supported Living - new framework,A56126,0
Royal Borough of Kingston,12/12/2022,90200048,"1,121.12",BALANCE (SUPPORT) C.I.C,SOCIAL SERVICES - OTHER,Adult Social Care & Health,Supported Living - new framework,A56126,0
Royal Borough of Kingston,12/12/2022,90200049,"-1,109.36",BALANCE (SUPPORT) C.I.C,SOCIAL SERVICES - OTHER,Adult Social Care & Health,Supported Living - new framework,A56126,0
Royal Borough of Kingston,12/12/2022,90200050,"1,121.12",BALANCE (SUPPORT) C.I.C,SOCIAL SERVICES - OTHER,Adult Social Care & Health,Supported Living - new framework,A56126,0
Royal Borough of Kingston,12/12/2022,90200051,"-1,109.36",BALANCE (SUPPORT) C.I.C,SOCIAL SERVICES - OTHER,Adult Social Care & Health,Supported Living - new framework,A56126,0
Royal Borough of Kingston,12/12/2022,90200052,"1,121.12",BALANCE (SUPPORT) C.I.C,SOCIAL SERVICES - OTHER,Adult Social Care & Health,Supported Living - new framework,A56126,0
Royal Borough of Kingston,12/12/2022,90200053,"-1,109.36",BALANCE (SUPPORT) C.I.C,SOCIAL SERVICES - OTHER,Adult Social Care & Health,Supported Living - new framework,A56126,0
Royal Borough of Kingston,12/12/2022,90200054,"1,121.12",BALANCE (SUPPORT) C.I.C,SOCIAL SERVICES - OTHER,Adult Social Care & Health,Supported Living - new framework,A56126,0
Royal Borough of Kingston,01/01/2023,90200965,548.27,BALANCE (SUPPORT) C.I.C,SOCIAL SERVICES - OTHER,Adult Social Care & Health,Personal Budget - Third Party,A61019,0
Royal Borough of Kingston,01/01/2023,90200966,548.27,BALANCE (SUPPORT) C.I.C,SOCIAL SERVICES - OTHER,Adult Social Care & Health,Personal Budget - Third Party,A61019,0
Royal Borough of Kingston,01/01/2023,90200967,"12,933.64",BALANCE (SUPPORT) C.I.C,SOCIAL SERVICES - OTHER,Adult Social Care & Health,Personal Budget - Third Party,A61019,0
Royal Borough of Kingston,01/01/2023,90201076,"1,054.97",BALANCE (SUPPORT) C.I.C,SOCIAL SERVICES - OTHER,Adult Social Care & Health,Personal Budget - Third Party,A61019,0
Royal Borough of Kingston,01/01/2023,90201083,575.45,BALANCE (SUPPORT) C.I.C,SOCIAL SERVICES - OTHER,Adult Social Care & Health,Personal Budget - Third Party,A61019,0
Royal Borough of Kingston,01/01/2023,90201089,579.17,BALANCE (SUPPORT) C.I.C,SOCIAL SERVICES - OTHER,Adult Social Care & Health,Personal Budget - Third Party,A61019,0
Royal Borough of Kingston,01/01/2023,90201091,959.10,BALANCE (SUPPORT) C.I.C,SOCIAL SERVICES - OTHER,Adult Social Care & Health,Personal Budget - Third Party,A61019,0
Royal Borough of Kingston,01/01/2023,90201123,"1,342.70",BALANCE (SUPPORT) C.I.C,SOCIAL SERVICES - OTHER,Adult Social Care & Health,Personal Budget - Third Party,A61019,0
Royal Borough of Kingston,01/01/2023,90201124,959.10,BALANCE (SUPPORT) C.I.C,SOCIAL SERVICES - OTHER,Adult Social Care & Health,Personal Budget - Third Party,A61019,0
Royal Borough of Kingston,01/01/2023,90201125,527.49,BALANCE (SUPPORT) C.I.C,SOCIAL SERVICES - OTHER,Adult Social Care & Health,Personal Budget - Third Party,A61019,0
Royal Borough of Kingston,01/01/2023,90201130,"1,294.78",BALANCE (SUPPORT) C.I.C,SOCIAL SERVICES - OTHER,Adult Social Care & Health,Personal Budget - Third Party,A61019,0
Royal Borough of Kingston,01/01/2023,90201132,575.45,BALANCE (SUPPORT) C.I.C,SOCIAL SERVICES - OTHER,Adult Social Care & Health,Personal Budget - Third Party,A61019,0
Royal Borough of Kingston,01/01/2023,90201142,"2,205.87",BALANCE (SUPPORT) C.I.C,SOCIAL SERVICES - OTHER,Adult Social Care & Health,Personal Budget - Third Party,A61019,0
Royal Borough of Kingston,01/01/2023,90201144,"1,438.62",BALANCE (SUPPORT) C.I.C,SOCIAL SERVICES - OTHER,Adult Social Care & Health,Personal Budget - Third Party,A61019,0
Royal Borough of Kingston,01/01/2023,90201154,575.45,BALANCE (SUPPORT) C.I.C,SOCIAL SERVICES - OTHER,Adult Social Care & Health,Personal Budget - Third Party,A61019,0
Royal Borough of Kingston,01/01/2023,90201157,575.45,BALANCE (SUPPORT) C.I.C,SOCIAL SERVICES - OTHER,Adult Social Care & Health,Personal Budget - Third Party,A61019,0
Royal Borough of Kingston,01/01/2023,90201160,"1,534.50",BALANCE (SUPPORT) C.I.C,SOCIAL SERVICES - OTHER,Adult Social Care & Health,Personal Budget - Third Party,A61019,0
Royal Borough of Kingston,01/01/2023,90201161,"3,560.66",BALANCE (SUPPORT) C.I.C,SOCIAL SERVICES - OTHER,Adult Social Care & Health,Personal Budget - Third Party,A61019,0
Royal Borough of Kingston,01/01/2023,90201162,"-3,465.39",BALANCE (SUPPORT) C.I.C,SOCIAL SERVICES - OTHER,Adult Social Care & Health,Personal Budget - Third Party,A61019,0
Royal Borough of Kingston,01/01/2023,90201163,"3,679.35",BALANCE (SUPPORT) C.I.C,SOCIAL SERVICES - OTHER,Adult Social Care & Health,Personal Budget - Third Party,A61019,0
Royal Borough of Kingston,01/01/2023,90201164,"-3,580.90",BALANCE (SUPPORT) C.I.C,SOCIAL SERVICES - OTHER,Adult Social Care & Health,Personal Budget - Third Party,A61019,0
Royal Borough of Kingston,01/01/2023,90201165,"3,560.66",BALANCE (SUPPORT) C.I.C,SOCIAL SERVICES - OTHER,Adult Social Care & Health,Personal Budget - Third Party,A61019,0
Royal Borough of Kingston,01/01/2023,90201166,"-3,465.39",BALANCE (SUPPORT) C.I.C,SOCIAL SERVICES - OTHER,Adult Social Care & Health,Personal Budget - Third Party,A61019,0
Royal Borough of Kingston,01/01/2023,90201167,"3,679.35",BALANCE (SUPPORT) C.I.C,SOCIAL SERVICES - OTHER,Adult Social Care & Health,Personal Budget - Third Party,A61019,0
Royal Borough of Kingston,01/01/2023,90201168,"-3,580.90",BALANCE (SUPPORT) C.I.C,SOCIAL SERVICES - OTHER,Adult Social Care & Health,Personal Budget - Third Party,A61019,0
Royal Borough of Kingston,01/01/2023,90201169,"-3,580.90",BALANCE (SUPPORT) C.I.C,SOCIAL SERVICES - OTHER,Adult Social Care & Health,Personal Budget - Third Party,A61019,0
Royal Borough of Kingston,01/01/2023,90201170,"-3,465.39",BALANCE (SUPPORT) C.I.C,SOCIAL SERVICES - OTHER,Adult Social Care & Health,Personal Budget - Third Party,A61019,0
Royal Borough of Kingston,01/01/2023,90201171,"-3,580.90",BALANCE (SUPPORT) C.I.C,SOCIAL SERVICES - OTHER,Adult Social Care & Health,Personal Budget - Third Party,A61019,0
Royal Borough of Kingston,01/01/2023,90201173,"-3,465.39",BALANCE (SUPPORT) C.I.C,SOCIAL SERVICES - OTHER,Adult Social Care & Health,Personal Budget - Third Party,A61019,0
Royal Borough of Kingston,01/01/2023,90201175,"-3,580.90",BALANCE (SUPPORT) C.I.C,SOCIAL SERVICES - OTHER,Adult Social Care & Health,Personal Budget - Third Party,A61019,0
Royal Borough of Kingston,01/01/2023,90201182,"2,644.74",BALANCE (SUPPORT) C.I.C,SOCIAL SERVICES - OTHER,Adult Social Care & Health,Personal Budget - Third Party,A61019,0
Royal Borough of Kingston,01/01/2023,90201183,671.37,BALANCE (SUPPORT) C.I.C,SOCIAL SERVICES - OTHER,Adult Social Care & Health,Personal Budget - Third Party,A61019,0
Royal Borough of Kingston,01/01/2023,90201185,767.25,BALANCE (SUPPORT) C.I.C,SOCIAL SERVICES - OTHER,Adult Social Care & Health,Personal Budget - Third Party,A61019,0
Royal Borough of Kingston,01/01/2023,90201188,"1,630.42",BALANCE (SUPPORT) C.I.C,SOCIAL SERVICES - OTHER,Adult Social Care & Health,Personal Budget - Third Party,A61019,0
Royal Borough of Kingston,01/01/2023,90201194,"1,438.62",BALANCE (SUPPORT) C.I.C,SOCIAL SERVICES - OTHER,Adult Social Care & Health,Personal Budget - Third Party,A61019,0
Royal Borough of Kingston,01/01/2023,90201200,863.17,BALANCE (SUPPORT) C.I.C,SOCIAL SERVICES - OTHER,Adult Social Care & Health,Personal Budget - Third Party,A61019,0
Royal Borough of Kingston,01/01/2023,90201201,"2,859.51",BALANCE (SUPPORT) C.I.C,SOCIAL SERVICES - OTHER,Adult Social Care & Health,Personal Budget - Third Party,A61019,0
Royal Borough of Kingston,01/01/2023,90201202,"-3,117.17",BALANCE (SUPPORT) C.I.C,SOCIAL SERVICES - OTHER,Adult Social Care & Health,Personal Budget - Third Party,A61019,0
Royal Borough of Kingston,01/01/2023,90201203,"2,954.83",BALANCE (SUPPORT) C.I.C,SOCIAL SERVICES - OTHER,Adult Social Care & Health,Personal Budget - Third Party,A61019,0
Royal Borough of Kingston,01/01/2023,90201204,"-3,221.08",BALANCE (SUPPORT) C.I.C,SOCIAL SERVICES - OTHER,Adult Social Care & Health,Personal Budget - Third Party,A61019,0
Royal Borough of Kingston,01/01/2023,90201205,"2,859.51",BALANCE (SUPPORT) C.I.C,SOCIAL SERVICES - OTHER,Adult Social Care & Health,Personal Budget - Third Party,A61019,0
Royal Borough of Kingston,01/01/2023,90201206,"-3,117.17",BALANCE (SUPPORT) C.I.C,SOCIAL SERVICES - OTHER,Adult Social Care & Health,Personal Budget - Third Party,A61019,0
Royal Borough of Kingston,01/01/2023,90201207,"2,954.83",BALANCE (SUPPORT) C.I.C,SOCIAL SERVICES - OTHER,Adult Social Care & Health,Personal Budget - Third Party,A61019,0
Royal Borough of Kingston,01/01/2023,90201208,"-3,221.08",BALANCE (SUPPORT) C.I.C,SOCIAL SERVICES - OTHER,Adult Social Care & Health,Personal Budget - Third Party,A61019,0
Royal Borough of Kingston,01/01/2023,90201209,"-3,221.08",BALANCE (SUPPORT) C.I.C,SOCIAL SERVICES - OTHER,Adult Social Care & Health,Personal Budget - Third Party,A61019,0
Royal Borough of Kingston,01/01/2023,90201210,"-3,117.17",BALANCE (SUPPORT) C.I.C,SOCIAL SERVICES - OTHER,Adult Social Care & Health,Personal Budget - Third Party,A61019,0
Royal Borough of Kingston,01/01/2023,90201211,"-3,221.08",BALANCE (SUPPORT) C.I.C,SOCIAL SERVICES - OTHER,Adult Social Care & Health,Personal Budget - Third Party,A61019,0
Royal Borough of Kingston,01/01/2023,90201212,"-3,117.17",BALANCE (SUPPORT) C.I.C,SOCIAL SERVICES - OTHER,Adult Social Care & Health,Personal Budget - Third Party,A61019,0
Royal Borough of Kingston,01/01/2023,90201213,"-3,221.08",BALANCE (SUPPORT) C.I.C,SOCIAL SERVICES - OTHER,Adult Social Care & Health,Personal Budget - Third Party,A61019,0
Royal Borough of Kingston,01/01/2023,90201215,"1,225.39",BALANCE (SUPPORT) C.I.C,SOCIAL SERVICES - OTHER,Adult Social Care & Health,Personal Budget - Third Party,A61019,0
Royal Borough of Kingston,01/01/2023,90201217,575.45,BALANCE (SUPPORT) C.I.C,SOCIAL SERVICES - OTHER,Adult Social Care & Health,Personal Budget - Third Party,A61019,0
Royal Borough of Kingston,01/01/2023,90201218,575.45,BALANCE (SUPPORT) C.I.C,SOCIAL SERVICES - OTHER,Adult Social Care & Health,Personal Budget - Third Party,A61019,0
Royal Borough of Kingston,01/01/2023,90201223,"3,520.54",BALANCE (SUPPORT) C.I.C,SOCIAL SERVICES - OTHER,Adult Social Care & Health,Personal Budget - Third Party,A61019,0
Royal Borough of Kingston,01/01/2023,90201224,"-3,038.49",BALANCE (SUPPORT) C.I.C,SOCIAL SERVICES - OTHER,Adult Social Care & Health,Personal Budget - Third Party,A61019,0
Royal Borough of Kingston,01/01/2023,90201225,"3,637.89",BALANCE (SUPPORT) C.I.C,SOCIAL SERVICES - OTHER,Adult Social Care & Health,Personal Budget - Third Party,A61019,0
Royal Borough of Kingston,01/01/2023,90201226,"-3,139.77",BALANCE (SUPPORT) C.I.C,SOCIAL SERVICES - OTHER,Adult Social Care & Health,Personal Budget - Third Party,A61019,0
Royal Borough of Kingston,01/01/2023,90201227,"3,520.54",BALANCE (SUPPORT) C.I.C,SOCIAL SERVICES - OTHER,Adult Social Care & Health,Personal Budget - Third Party,A61019,0
Royal Borough of Kingston,01/01/2023,90201228,"-3,038.49",BALANCE (SUPPORT) C.I.C,SOCIAL SERVICES - OTHER,Adult Social Care & Health,Personal Budget - Third Party,A61019,0
Royal Borough of Kingston,01/01/2023,90201229,"3,637.89",BALANCE (SUPPORT) C.I.C,SOCIAL SERVICES - OTHER,Adult Social Care & Health,Personal Budget - Third Party,A61019,0
Royal Borough of Kingston,01/01/2023,90201230,"-3,139.77",BALANCE (SUPPORT) C.I.C,SOCIAL SERVICES - OTHER,Adult Social Care & Health,Personal Budget - Third Party,A61019,0
Royal Borough of Kingston,01/01/2023,90201231,"-3,139.77",BALANCE (SUPPORT) C.I.C,SOCIAL SERVICES - OTHER,Adult Social Care & Health,Personal Budget - Third Party,A61019,0
Royal Borough of Kingston,01/01/2023,90201232,"-3,038.49",BALANCE (SUPPORT) C.I.C,SOCIAL SERVICES - OTHER,Adult Social Care & Health,Personal Budget - Third Party,A61019,0
Royal Borough of Kingston,01/01/2023,90201233,"-3,139.77",BALANCE (SUPPORT) C.I.C,SOCIAL SERVICES - OTHER,Adult Social Care & Health,Personal Budget - Third Party,A61019,0
Royal Borough of Kingston,01/01/2023,90201234,"-3,038.49",BALANCE (SUPPORT) C.I.C,SOCIAL SERVICES - OTHER,Adult Social Care & Health,Personal Budget - Third Party,A61019,0
Royal Borough of Kingston,01/01/2023,90201235,"-3,139.77",BALANCE (SUPPORT) C.I.C,SOCIAL SERVICES - OTHER,Adult Social Care & Health,Personal Budget - Third Party,A61019,0
Royal Borough of Kingston,01/01/2023,90201237,649.80,BALANCE (SUPPORT) C.I.C,SOCIAL SERVICES - OTHER,Adult Social Care & Health,Personal Budget - Third Party,A61019,0
Royal Borough of Kingston,01/01/2023,90201238,"3,783.47",BALANCE (SUPPORT) C.I.C,SOCIAL SERVICES - OTHER,Adult Social Care & Health,Personal Budget - Third Party,A61019,0
Royal Borough of Kingston,01/01/2023,90201239,"-3,301.41",BALANCE (SUPPORT) C.I.C,SOCIAL SERVICES - OTHER,Adult Social Care & Health,Personal Budget - Third Party,A61019,0
Royal Borough of Kingston,01/01/2023,90201240,"3,909.59",BALANCE (SUPPORT) C.I.C,SOCIAL SERVICES - OTHER,Adult Social Care & Health,Personal Budget - Third Party,A61019,0
Royal Borough of Kingston,01/01/2023,90201241,"-3,411.46",BALANCE (SUPPORT) C.I.C,SOCIAL SERVICES - OTHER,Adult Social Care & Health,Personal Budget - Third Party,A61019,0
Royal Borough of Kingston,01/01/2023,90201242,"3,783.47",BALANCE (SUPPORT) C.I.C,SOCIAL SERVICES - OTHER,Adult Social Care & Health,Personal Budget - Third Party,A61019,0
Royal Borough of Kingston,01/01/2023,90201243,"-3,301.41",BALANCE (SUPPORT) C.I.C,SOCIAL SERVICES - OTHER,Adult Social Care & Health,Personal Budget - Third Party,A61019,0
Royal Borough of Kingston,01/01/2023,90201244,"3,909.59",BALANCE (SUPPORT) C.I.C,SOCIAL SERVICES - OTHER,Adult Social Care & Health,Personal Budget - Third Party,A61019,0
Royal Borough of Kingston,01/01/2023,90201245,"-3,411.46",BALANCE (SUPPORT) C.I.C,SOCIAL SERVICES - OTHER,Adult Social Care & Health,Personal Budget - Third Party,A61019,0
Royal Borough of Kingston,01/01/2023,90201246,"-3,411.46",BALANCE (SUPPORT) C.I.C,SOCIAL SERVICES - OTHER,Adult Social Care & Health,Personal Budget - Third Party,A61019,0
Royal Borough of Kingston,01/01/2023,90201247,"-3,301.41",BALANCE (SUPPORT) C.I.C,SOCIAL SERVICES - OTHER,Adult Social Care & Health,Personal Budget - Third Party,A61019,0
Royal Borough of Kingston,01/01/2023,90201248,"-3,411.46",BALANCE (SUPPORT) C.I.C,SOCIAL SERVICES - OTHER,Adult Social Care & Health,Personal Budget - Third Party,A61019,0
Royal Borough of Kingston,01/01/2023,90201249,"-3,301.41",BALANCE (SUPPORT) C.I.C,SOCIAL SERVICES - OTHER,Adult Social Care & Health,Personal Budget - Third Party,A61019,0
Royal Borough of Kingston,01/01/2023,90201250,"-3,411.46",BALANCE (SUPPORT) C.I.C,SOCIAL SERVICES - OTHER,Adult Social Care & Health,Personal Budget - Third Party,A61019,0
Royal Borough of Kingston,01/01/2023,90201268,"2,644.11",BALANCE (SUPPORT) C.I.C,SOCIAL SERVICES - OTHER,Adult Social Care & Health,Personal Budget - Third Party,A61019,0
Royal Borough of Kingston,01/01/2023,90201269,"-2,162.06",BALANCE (SUPPORT) C.I.C,SOCIAL SERVICES - OTHER,Adult Social Care & Health,Personal Budget - Third Party,A61019,0
Royal Borough of Kingston,01/01/2023,90201270,"2,732.25",BALANCE (SUPPORT) C.I.C,SOCIAL SERVICES - OTHER,Adult Social Care & Health,Personal Budget - Third Party,A61019,0
Royal Borough of Kingston,01/01/2023,90201271,"-2,234.13",BALANCE (SUPPORT) C.I.C,SOCIAL SERVICES - OTHER,Adult Social Care & Health,Personal Budget - Third Party,A61019,0
Royal Borough of Kingston,01/01/2023,90201272,"2,644.11",BALANCE (SUPPORT) C.I.C,SOCIAL SERVICES - OTHER,Adult Social Care & Health,Personal Budget - Third Party,A61019,0
Royal Borough of Kingston,01/01/2023,90201273,"-2,162.06",BALANCE (SUPPORT) C.I.C,SOCIAL SERVICES - OTHER,Adult Social Care & Health,Personal Budget - Third Party,A61019,0
Royal Borough of Kingston,01/01/2023,90201274,"2,732.25",BALANCE (SUPPORT) C.I.C,SOCIAL SERVICES - OTHER,Adult Social Care & Health,Personal Budget - Third Party,A61019,0
Royal Borough of Kingston,01/01/2023,90201275,"-2,234.13",BALANCE (SUPPORT) C.I.C,SOCIAL SERVICES - OTHER,Adult Social Care & Health,Personal Budget - Third Party,A61019,0
Royal Borough of Kingston,01/01/2023,90201276,"-2,234.13",BALANCE (SUPPORT) C.I.C,SOCIAL SERVICES - OTHER,Adult Social Care & Health,Personal Budget - Third Party,A61019,0
Royal Borough of Kingston,01/01/2023,90201277,"-2,162.06",BALANCE (SUPPORT) C.I.C,SOCIAL SERVICES - OTHER,Adult Social Care & Health,Personal Budget - Third Party,A61019,0
Royal Borough of Kingston,01/01/2023,90201278,"-2,234.13",BALANCE (SUPPORT) C.I.C,SOCIAL SERVICES - OTHER,Adult Social Care & Health,Personal Budget - Third Party,A61019,0
Royal Borough of Kingston,01/01/2023,90201279,"-2,162.06",BALANCE (SUPPORT) C.I.C,SOCIAL SERVICES - OTHER,Adult Social Care & Health,Personal Budget - Third Party,A61019,0
Royal Borough of Kingston,01/01/2023,90201280,"-2,234.13",BALANCE (SUPPORT) C.I.C,SOCIAL SERVICES - OTHER,Adult Social Care & Health,Personal Budget - Third Party,A61019,0
Royal Borough of Kingston,01/01/2023,90201294,767.25,BALANCE (SUPPORT) C.I.C,SOCIAL SERVICES - OTHER,Adult Social Care & Health,Personal Budget - Third Party,A61019,0
Royal Borough of Kingston,01/01/2023,90201297,"1,630.42",BALANCE (SUPPORT) C.I.C,SOCIAL SERVICES - OTHER,Adult Social Care & Health,Personal Budget - Third Party,A61019,0
Royal Borough of Kingston,01/01/2023,90201299,543.39,BALANCE (SUPPORT) C.I.C,SOCIAL SERVICES - OTHER,Adult Social Care & Health,Personal Budget - Third Party,A61019,0
Royal Borough of Kingston,01/01/2023,90201304,"2,947.16",BALANCE (SUPPORT) C.I.C,SOCIAL SERVICES - OTHER,Adult Social Care & Health,Personal Budget - Third Party,A61019,0
Royal Borough of Kingston,01/01/2023,90201305,"-1,852.69",BALANCE (SUPPORT) C.I.C,SOCIAL SERVICES - OTHER,Adult Social Care & Health,Personal Budget - Third Party,A61019,0
Royal Borough of Kingston,01/01/2023,90201306,"3,045.40",BALANCE (SUPPORT) C.I.C,SOCIAL SERVICES - OTHER,Adult Social Care & Health,Personal Budget - Third Party,A61019,0
Royal Borough of Kingston,01/01/2023,90201307,"-3,022.81",BALANCE (SUPPORT) C.I.C,SOCIAL SERVICES - OTHER,Adult Social Care & Health,Personal Budget - Third Party,A61019,0
Royal Borough of Kingston,01/01/2023,90201308,"2,947.16",BALANCE (SUPPORT) C.I.C,SOCIAL SERVICES - OTHER,Adult Social Care & Health,Personal Budget - Third Party,A61019,0
Royal Borough of Kingston,01/01/2023,90201309,"-2,925.30",BALANCE (SUPPORT) C.I.C,SOCIAL SERVICES - OTHER,Adult Social Care & Health,Personal Budget - Third Party,A61019,0
Royal Borough of Kingston,01/01/2023,90201310,"3,045.40",BALANCE (SUPPORT) C.I.C,SOCIAL SERVICES - OTHER,Adult Social Care & Health,Personal Budget - Third Party,A61019,0
Royal Borough of Kingston,01/01/2023,90201311,"-3,022.81",BALANCE (SUPPORT) C.I.C,SOCIAL SERVICES - OTHER,Adult Social Care & Health,Personal Budget - Third Party,A61019,0
Royal Borough of Kingston,01/01/2023,90201312,"-3,022.81",BALANCE (SUPPORT) C.I.C,SOCIAL SERVICES - OTHER,Adult Social Care & Health,Personal Budget - Third Party,A61019,0
Royal Borough of Kingston,01/01/2023,90201313,"-2,925.30",BALANCE (SUPPORT) C.I.C,SOCIAL SERVICES - OTHER,Adult Social Care & Health,Personal Budget - Third Party,A61019,0
Royal Borough of Kingston,01/01/2023,90201314,"-3,022.81",BALANCE (SUPPORT) C.I.C,SOCIAL SERVICES - OTHER,Adult Social Care & Health,Personal Budget - Third Party,A61019,0
Royal Borough of Kingston,01/01/2023,90201315,"-2,925.30",BALANCE (SUPPORT) C.I.C,SOCIAL SERVICES - OTHER,Adult Social Care & Health,Personal Budget - Third Party,A61019,0
Royal Borough of Kingston,01/01/2023,90201316,"-3,022.81",BALANCE (SUPPORT) C.I.C,SOCIAL SERVICES - OTHER,Adult Social Care & Health,Personal Budget - Third Party,A61019,0
Royal Borough of Kingston,01/01/2023,90201328,"1,983.09",BALANCE (SUPPORT) C.I.C,SOCIAL SERVICES - OTHER,Adult Social Care & Health,Personal Budget - Third Party,A61019,0
Royal Borough of Kingston,01/01/2023,90201329,"-1,809.90",BALANCE (SUPPORT) C.I.C,SOCIAL SERVICES - OTHER,Adult Social Care & Health,Personal Budget - Third Party,A61019,0
Royal Borough of Kingston,01/01/2023,90201330,"2,049.19",BALANCE (SUPPORT) C.I.C,SOCIAL SERVICES - OTHER,Adult Social Care & Health,Personal Budget - Third Party,A61019,0
Royal Borough of Kingston,01/01/2023,90201331,"-1,870.23",BALANCE (SUPPORT) C.I.C,SOCIAL SERVICES - OTHER,Adult Social Care & Health,Personal Budget - Third Party,A61019,0
Royal Borough of Kingston,01/01/2023,90201332,"1,983.09",BALANCE (SUPPORT) C.I.C,SOCIAL SERVICES - OTHER,Adult Social Care & Health,Personal Budget - Third Party,A61019,0
Royal Borough of Kingston,01/01/2023,90201333,"-1,809.90",BALANCE (SUPPORT) C.I.C,SOCIAL SERVICES - OTHER,Adult Social Care & Health,Personal Budget - Third Party,A61019,0
Royal Borough of Kingston,01/01/2023,90201334,"2,049.19",BALANCE (SUPPORT) C.I.C,SOCIAL SERVICES - OTHER,Adult Social Care & Health,Personal Budget - Third Party,A61019,0
Royal Borough of Kingston,01/01/2023,90201335,"-1,870.23",BALANCE (SUPPORT) C.I.C,SOCIAL SERVICES - OTHER,Adult Social Care & Health,Personal Budget - Third Party,A61019,0
Royal Borough of Kingston,01/01/2023,90201336,"-1,870.23",BALANCE (SUPPORT) C.I.C,SOCIAL SERVICES - OTHER,Adult Social Care & Health,Personal Budget - Third Party,A61019,0
Royal Borough of Kingston,01/01/2023,90201337,"-1,809.90",BALANCE (SUPPORT) C.I.C,SOCIAL SERVICES - OTHER,Adult Social Care & Health,Personal Budget - Third Party,A61019,0
Royal Borough of Kingston,01/01/2023,90201338,"-1,870.23",BALANCE (SUPPORT) C.I.C,SOCIAL SERVICES - OTHER,Adult Social Care & Health,Personal Budget - Third Party,A61019,0
Royal Borough of Kingston,01/01/2023,90201339,"-1,809.90",BALANCE (SUPPORT) C.I.C,SOCIAL SERVICES - OTHER,Adult Social Care & Health,Personal Budget - Third Party,A61019,0
Royal Borough of Kingston,01/01/2023,90201340,"-1,870.23",BALANCE (SUPPORT) C.I.C,SOCIAL SERVICES - OTHER,Adult Social Care & Health,Personal Budget - Third Party,A61019,0
Royal Borough of Kingston,01/01/2023,90201345,575.45,BALANCE (SUPPORT) C.I.C,SOCIAL SERVICES - OTHER,Adult Social Care & Health,Personal Budget - Third Party,A61019,0
Royal Borough of Kingston,01/01/2023,90201347,"1,342.70",BALANCE (SUPPORT) C.I.C,SOCIAL SERVICES - OTHER,Adult Social Care & Health,Personal Budget - Third Party,A61019,0
Royal Borough of Kingston,01/01/2023,90201349,"1,246.82",BALANCE (SUPPORT) C.I.C,SOCIAL SERVICES - OTHER,Adult Social Care & Health,Personal Budget - Third Party,A61019,0
Royal Borough of Kingston,01/01/2023,90201350,575.45,BALANCE (SUPPORT) C.I.C,SOCIAL SERVICES - OTHER,Adult Social Care & Health,Personal Budget - Third Party,A61019,0
Royal Borough of Kingston,01/01/2023,90201352,"1,726.35",BALANCE (SUPPORT) C.I.C,SOCIAL SERVICES - OTHER,Adult Social Care & Health,Personal Budget - Third Party,A61019,0
Royal Borough of Kingston,01/01/2023,90201359,671.37,BALANCE (SUPPORT) C.I.C,SOCIAL SERVICES - OTHER,Adult Social Care & Health,Personal Budget - Third Party,A61019,0
Royal Borough of Kingston,01/01/2023,90201664,575.45,BALANCE (SUPPORT) C.I.C,SOCIAL SERVICES - OTHER,Adult Social Care & Health,Personal Budget - Third Party,A61019,0
Royal Borough of Kingston,01/01/2023,90201728,"1,151.07",BALANCE (SUPPORT) C.I.C,SOCIAL SERVICES - OTHER,Adult Social Care & Health,Personal Budget - Third Party,A61019,0
Royal Borough of Kingston,01/01/2023,90201731,767.38,BALANCE (SUPPORT) C.I.C,SOCIAL SERVICES - OTHER,Adult Social Care & Health,Personal Budget - Third Party,A61019,0
Royal Borough of Kingston,01/01/2023,90202323,"3,625.80",BARCHESTER HEALTHCARE ,SOCIAL SERVICES RESIDENTIAL,Adult Social Care & Health,Independent Placements,A56006,0
Royal Borough of Kingston,09/12/2022,70037616,500.00,BARNFIELD RIDING SCHOOL,ENTERTAINMENTS INDUSTRY,Corporate & Communities,"Grants, Contributions & Donations",A47005,0
Royal Borough of Kingston,17/01/2023,70038898,500.00,BARNFIELD RIDING SCHOOL,ENTERTAINMENTS INDUSTRY,Corporate & Communities,"Grants, Contributions & Donations",A47005,0
Royal Borough of Kingston,01/01/2023,90202568,"4,486.28",BAVANI CARE HOME LIMITED,SOCIAL SERVICES RESIDENTIAL,Adult Social Care & Health,Independent Placements,A56006,0
Royal Borough of Kingston,01/01/2023,90202573,"3,985.71",BAVANI CARE HOME LIMITED,SOCIAL SERVICES RESIDENTIAL,Adult Social Care & Health,Independent Placements,A56006,0
Royal Borough of Kingston,01/01/2023,90202619,"4,242.86",BAVANI CARE HOME LIMITED,SOCIAL SERVICES RESIDENTIAL,Adult Social Care & Health,Independent Placements,A56006,0
Royal Borough of Kingston,08/12/2022,70037088,"2,086.00",BAY MEDIA LTD,PRESS & PUBLICITY,Corporate & Communities,Publicity Materials,A43070,0
Royal Borough of Kingston,03/01/2023,70037932,750.00,BENHAM PUBLISHING LIMITED,PRESS & PUBLICITY,Corporate & Communities,Publicity And Promotions,A45026,0
Royal Borough of Kingston,31/12/2022,70037863,"5,235.45",CHELSEA & WESTMINSTER HOSP NHS FT,MANAGEMENT & TRAINING SERVICES,Adult Social Care & Health,Other Private Contractors - Third Party,A56080,0
Royal Borough of Kingston,24/01/2023,90201789,"1,317.76",REDACTED - PERSONAL DATA,PLS LANDLORDS,Place,PSL Payments To Landlords,A22031,0
Royal Borough of Kingston,27/09/2022,70037931,"2,164.80",BLAKE MORGAN LLP,LEGAL & PROFESSIONAL SERVICES,Capital Programme,External Legal Fees,C20008,0
Royal Borough of Kingston,19/12/2022,90195892,543.26,BLUE ARROW CARE LTD,SOCIAL SERVICES-HOME CARE,Adult Social Care & Health,Personal Budget - Third Party,A61019,0
Royal Borough of Kingston,19/12/2022,90195943,543.26,BLUE ARROW CARE LTD,SOCIAL SERVICES-HOME CARE,Adult Social Care & Health,Personal Budget - Third Party,A61019,0
Royal Borough of Kingston,26/12/2022,90198067,543.26,BLUE ARROW CARE LTD,SOCIAL SERVICES-HOME CARE,Adult Social Care & Health,Personal Budget - Third Party,A61019,0
Royal Borough of Kingston,26/12/2022,90198076,543.26,BLUE ARROW CARE LTD,SOCIAL SERVICES-HOME CARE,Adult Social Care & Health,Personal Budget - Third Party,A61019,0
Royal Borough of Kingston,02/01/2023,90199515,543.26,BLUE ARROW CARE LTD,SOCIAL SERVICES-HOME CARE,Adult Social Care & Health,Personal Budget - Third Party,A61019,0
Royal Borough of Kingston,02/01/2023,90199523,543.26,BLUE ARROW CARE LTD,SOCIAL SERVICES-HOME CARE,Adult Social Care & Health,Personal Budget - Third Party,A61019,0
Royal Borough of Kingston,09/01/2023,90201608,543.26,BLUE ARROW CARE LTD,SOCIAL SERVICES-HOME CARE,Adult Social Care & Health,Personal Budget - Third Party,A61019,0
Royal Borough of Kingston,16/01/2023,90203892,543.26,BLUE ARROW CARE LTD,SOCIAL SERVICES-HOME CARE,Adult Social Care & Health,Personal Budget - Third Party,A61019,0
Royal Borough of Kingston,30/12/2022,70037930,"9,472.50",BNP PARIBAS REAL ESTATE ADVISORY & PROPERTY MANAGEMENT UK LTD,LEGAL & PROFESSIONAL SERVICES,Place,Consultancy Services,A56007,0
Royal Borough of Kingston,24/01/2023,90201975,916.66,BONSOR PENNINGTONS LTD,PLS LANDLORDS,Place,PSL Payments To Landlords,A22031,0
Royal Borough of Kingston,24/01/2023,90201976,900.00,BR INVESTMENTS LIMITED,PLS LANDLORDS,Place,PSL Payments To Landlords,A22031,0
Royal Borough of Kingston,13/01/2023,90198255,"6,522.12",BRIGHT HORIZONS FAMILY SOLUTIONS,CHILDMINDERS START UP GRANT,Schools,PVI Providers,A60014,0
Royal Borough of Kingston,13/01/2023,90198295,"5,336.28",BRIGHT HORIZONS FAMILY SOLUTIONS,CHILDMINDERS START UP GRANT,Schools,PVI Providers,A60014,0
Royal Borough of Kingston,13/01/2023,90198304,"5,929.20",BRIGHT HORIZONS FAMILY SOLUTIONS,CHILDMINDERS START UP GRANT,Schools,PVI Providers,A60014,0
Royal Borough of Kingston,13/01/2023,90198307,"4,941.00",BRIGHT HORIZONS FAMILY SOLUTIONS,CHILDMINDERS START UP GRANT,Schools,PVI Providers,A60014,0
Royal Borough of Kingston,13/01/2023,90198308,"6,752.70",BRIGHT HORIZONS FAMILY SOLUTIONS,CHILDMINDERS START UP GRANT,Schools,PVI Providers,A60014,0
Royal Borough of Kingston,17/11/2022,70036469,"1,346.01",BRITISH TELECOMMUNICATIONS PLC,TELECOMS,Corporate & Communities,Telephones,A45020,0
Royal Borough of Kingston,17/11/2022,70036470,"6,633.90",BRITISH TELECOMMUNICATIONS PLC,TELECOMS,Corporate & Communities,Telephones,A45020,0
Royal Borough of Kingston,25/11/2022,70036748,"4,373.83",BRITISH TELECOMMUNICATIONS PLC,TELECOMS,Corporate & Communities,Telephones,A45020,0
Royal Borough of Kingston,27/11/2022,70036749,"19,298.43",BRITISH TELECOMMUNICATIONS PLC,TELECOMS,Corporate & Communities,Telephones,A45020,0
Royal Borough of Kingston,17/11/2022,70036750,"3,534.80",BRITISH TELECOMMUNICATIONS PLC,TELECOMS,Corporate & Communities,Telephones,A45020,0
Royal Borough of Kingston,23/11/2022,70037867,"6,743.15",BRITISH TELECOMMUNICATIONS PLC,TELECOMS,Corporate & Communities,Telephones,A45020,0
Royal Borough of Kingston,25/11/2022,70038089,"4,373.83",BRITISH TELECOMMUNICATIONS PLC,TELECOMS,Corporate & Communities,Telephones,A45020,0
Royal Borough of Kingston,13/01/2023,90198310,889.38,REDACTED - PERSONAL DATA,CHILDMINDERS START UP GRANT,Schools,PVI Providers,A60014,0
Royal Borough of Kingston,01/12/2022,70038547,"1,440.00",Buildvantage Limited,ACCOMMODATION BED & BREAKFAST,Place,Bed & Breakfast,A56000,0
Royal Borough of Kingston,01/01/2023,70038946,"1,488.00",Buildvantage Limited,ACCOMMODATION BED & BREAKFAST,Place,Bed & Breakfast,A56000,0
Royal Borough of Kingston,01/01/2023,70038947,"1,488.00",Buildvantage Limited,ACCOMMODATION BED & BREAKFAST,Place,Bed & Breakfast,A56000,0
Royal Borough of Kingston,01/01/2023,70038948,"1,488.00",Buildvantage Limited,ACCOMMODATION BED & BREAKFAST,Place,Bed & Breakfast,A56000,0
Royal Borough of Kingston,01/01/2023,70038949,"1,488.00",Buildvantage Limited,ACCOMMODATION BED & BREAKFAST,Place,Bed & Breakfast,A56000,0
Royal Borough of Kingston,01/01/2023,70038950,"1,488.00",Buildvantage Limited,ACCOMMODATION BED & BREAKFAST,Place,Bed & Breakfast,A56000,0
Royal Borough of Kingston,01/01/2023,70038951,"1,488.00",Buildvantage Limited,ACCOMMODATION BED & BREAKFAST,Place,Bed & Breakfast,A56000,0
Royal Borough of Kingston,01/01/2023,70038952,"1,488.00",Buildvantage Limited,ACCOMMODATION BED & BREAKFAST,Place,Bed & Breakfast,A56000,0
Royal Borough of Kingston,01/01/2023,70038954,540.00,Buildvantage Limited,ACCOMMODATION BED & BREAKFAST,Place,Bed & Breakfast,A56000,0
Royal Borough of Kingston,01/01/2023,70038955,"1,488.00",Buildvantage Limited,ACCOMMODATION BED & BREAKFAST,Place,Bed & Breakfast,A56000,0
Royal Borough of Kingston,01/01/2023,70038956,"1,302.00",Buildvantage Limited,ACCOMMODATION BED & BREAKFAST,Place,Bed & Breakfast,A56000,0
Royal Borough of Kingston,01/01/2023,70038957,"1,302.00",Buildvantage Limited,ACCOMMODATION BED & BREAKFAST,Place,Bed & Breakfast,A56000,0
Royal Borough of Kingston,01/01/2023,70038958,"1,488.00",Buildvantage Limited,ACCOMMODATION BED & BREAKFAST,Place,Bed & Breakfast,A56000,0
Royal Borough of Kingston,01/01/2023,70038959,"1,302.00",Buildvantage Limited,ACCOMMODATION BED & BREAKFAST,Place,Bed & Breakfast,A56000,0
Royal Borough of Kingston,01/01/2023,70038960,"1,488.00",Buildvantage Limited,ACCOMMODATION BED & BREAKFAST,Place,Bed & Breakfast,A56000,0
Royal Borough of Kingston,01/01/2023,70038961,"2,325.00",Buildvantage Limited,ACCOMMODATION BED & BREAKFAST,Place,Bed & Breakfast,A56000,0
Royal Borough of Kingston,01/01/2023,70038962,"2,170.00",Buildvantage Limited,ACCOMMODATION BED & BREAKFAST,Place,Bed & Breakfast,A56000,0
Royal Borough of Kingston,01/01/2023,70038964,"1,488.00",Buildvantage Limited,ACCOMMODATION BED & BREAKFAST,Place,Bed & Breakfast,A56000,0
Royal Borough of Kingston,01/01/2023,70038965,"1,488.00",Buildvantage Limited,ACCOMMODATION BED & BREAKFAST,Place,Bed & Breakfast,A56000,0
Royal Borough of Kingston,01/01/2023,70038966,"1,488.00",Buildvantage Limited,ACCOMMODATION BED & BREAKFAST,Place,Bed & Breakfast,A56000,0
Royal Borough of Kingston,01/01/2023,70038967,"1,488.00",Buildvantage Limited,ACCOMMODATION BED & BREAKFAST,Place,Bed & Breakfast,A56000,0
Royal Borough of Kingston,01/01/2023,70038969,"1,488.00",Buildvantage Limited,ACCOMMODATION BED & BREAKFAST,Place,Bed & Breakfast,A56000,0
Royal Borough of Kingston,01/01/2023,70038970,"1,488.00",Buildvantage Limited,ACCOMMODATION BED & BREAKFAST,Place,Bed & Breakfast,A56000,0
Royal Borough of Kingston,01/01/2023,70038971,"1,488.00",Buildvantage Limited,ACCOMMODATION BED & BREAKFAST,Place,Bed & Breakfast,A56000,0
Royal Borough of Kingston,01/01/2023,70038972,"1,488.00",Buildvantage Limited,ACCOMMODATION BED & BREAKFAST,Place,Bed & Breakfast,A56000,0
Royal Borough of Kingston,29/12/2022,70037833,543.20,BUNZL OUTSOURCING SVS UK LTD,CLOTHING & UNIFORMS,Housing Revenue Account,Equipment And Materials Purchase,A40000,0
Royal Borough of Kingston,01/01/2023,90202388,"3,641.66",BUPA CARE  HOME (CFH CARE ) LTD,SOCIAL SERVICES RESIDENTIAL,Adult Social Care & Health,Independent Placements,A56006,0
Royal Borough of Kingston,01/01/2023,90202400,"9,007.98",BUPA CARE HOMES (AKW) LIMITED,SOCIAL SERVICES RESIDENTIAL,Adult Social Care & Health,Independent Placements,A56006,0
Royal Borough of Kingston,01/01/2023,90202548,"3,945.02",BUPA CARE HOMES (AKW) LIMITED,SOCIAL SERVICES RESIDENTIAL,Adult Social Care & Health,Independent Placements,A56006,0
Royal Borough of Kingston,01/01/2023,90202724,"5,325.18",BUPA CARE HOMES (AKW) LIMITED,SOCIAL SERVICES RESIDENTIAL,Adult Social Care & Health,Independent Placements,A56006,0
Royal Borough of Kingston,13/01/2023,90198350,"35,575.20",BURLINGTON INFANT AND NURSERY SCHOOL,SCHOOL FUNDS,Schools,Miscellaneous Expenses,A49000,0
Royal Borough of Kingston,13/01/2023,90198388,"2,366.28",BURLINGTON INFANT AND NURSERY SCHOOL,SCHOOL FUNDS,Schools,2 Yr Old Place Funding,A60000,0
Royal Borough of Kingston,29/04/2022,70036445,888.15,BYTES SOFTWARE SERVICES LTD,BUSINESS & COMPUTER SYSTEMS,Corporate & Communities,IT Software Maintenance,A45045,0
Royal Borough of Kingston,10/01/2023,70038292,"2,575.00",BYTES SOFTWARE SERVICES LTD,BUSINESS & COMPUTER SYSTEMS,Corporate & Communities,IT Software Maintenance,A45045,0
Royal Borough of Kingston,11/01/2023,70038412,"35,895.50",BYTES SOFTWARE SERVICES LTD,BUSINESS & COMPUTER SYSTEMS,Capital Programme,Purchase of Software & Licences,C13002,0
Royal Borough of Kingston,18/01/2023,70039024,"2,695.28",BYTES SOFTWARE SERVICES LTD,BUSINESS & COMPUTER SYSTEMS,Corporate & Communities,IT Hardware Purchase,A45005,0
Royal Borough of Kingston,30/11/2022,70039410,458.54,C BREWER & SONS LTD,BUILDERS MERCHANTS / D.I.Y.,Corporate & Communities,Equipment And Materials Repairs & Maintenance,A40051,0
Royal Borough of Kingston,24/01/2023,90201986,888.33,REDACTED - PERSONAL DATA,PLS LANDLORDS,Place,PSL Payments To Landlords,A22031,0
Royal Borough of Kingston,24/01/2023,90201918,"1,314.08",REDACTED - PERSONAL DATA,PLS LANDLORDS,Place,PSL Payments To Landlords,A22031,0
Royal Borough of Kingston,24/01/2023,90201920,"1,094.00",REDACTED - PERSONAL DATA,PLS LANDLORDS,Place,PSL Payments To Landlords,A22031,0
Royal Borough of Kingston,24/01/2023,90202046,"1,314.08",REDACTED - PERSONAL DATA,PLS LANDLORDS,Place,PSL Payments To Landlords,A22031,0
Royal Borough of Kingston,24/01/2023,90202047,"1,314.08",REDACTED - PERSONAL DATA,PLS LANDLORDS,Place,PSL Payments To Landlords,A22031,0
Royal Borough of Kingston,24/01/2023,90202048,"1,314.08",REDACTED - PERSONAL DATA,PLS LANDLORDS,Place,PSL Payments To Landlords,A22031,0
Royal Borough of Kingston,24/01/2023,90202049,"1,314.08",REDACTED - PERSONAL DATA,PLS LANDLORDS,Place,PSL Payments To Landlords,A22031,0
Royal Borough of Kingston,24/01/2023,90202006,"1,317.76",REDACTED - PERSONAL DATA,PLS LANDLORDS,Place,PSL Payments To Landlords,A22031,0
Royal Borough of Kingston,24/01/2023,90201988,"1,025.00",REDACTED - PERSONAL DATA,PLS LANDLORDS,Place,PSL Payments To Landlords,A22031,0
Royal Borough of Kingston,24/01/2023,90202136,"1,679.75",REDACTED - PERSONAL DATA,PLS LANDLORDS,Place,PSL Payments To Landlords,A22031,0
Royal Borough of Kingston,16/05/2022,70038475,"2,376.36",Capita Pension Solutions Ltd,SUNDRY SUPPLIER - FINANCE,Corporate & Communities,Miscellaneous Expenses,A49000,0
Royal Borough of Kingston,01/01/2023,90201198,"5,425.80",CARE MANAGEMENT GROUP LTD,SOCIAL SERVICES RESIDENTIAL,Adult Social Care & Health,Personal Budget - Third Party,A61019,0
Royal Borough of Kingston,24/01/2023,90202246,"5,900.00",CARE UK COMMUNITY PARTNERSHIPS LTD,SOCIAL SERVICES RESIDENTIAL,Adult Social Care & Health,Third party pymts - private contractors (Non-Controcc),A56087,0
Royal Borough of Kingston,01/01/2023,90202415,"3,346.05",CARE UK COMMUNITY PARTNERSHIPS LTD,SOCIAL SERVICES RESIDENTIAL,Adult Social Care & Health,Independent Placements,A56006,0
Royal Borough of Kingston,01/01/2023,90202591,"4,141.16",CARE UK COMMUNITY PARTNERSHIPS LTD,SOCIAL SERVICES RESIDENTIAL,Adult Social Care & Health,Independent Placements,A56006,0
Royal Borough of Kingston,01/01/2023,90202595,"4,384.29",CARE UK COMMUNITY PARTNERSHIPS LTD,SOCIAL SERVICES RESIDENTIAL,Adult Social Care & Health,Independent Placements,A56006,0
Royal Borough of Kingston,01/01/2023,90202596,"4,428.57",CARE UK COMMUNITY PARTNERSHIPS LTD,SOCIAL SERVICES RESIDENTIAL,Adult Social Care & Health,Independent Placements,A56006,0
Royal Borough of Kingston,01/01/2023,90202606,"2,788.36",CARE UK COMMUNITY PARTNERSHIPS LTD,SOCIAL SERVICES RESIDENTIAL,Adult Social Care & Health,Independent Placements,A56006,0
Royal Borough of Kingston,13/01/2023,90198252,"14,575.95",CAREROOM LTD ,ACADEMIC INSTNS - OTHER,Schools,PVI Providers,A60014,0
Royal Borough of Kingston,13/01/2023,90198353,"1,690.20",CAREROOM LTD ,ACADEMIC INSTNS - OTHER,Schools,2 Yr Old Place Funding,A60000,0
Royal Borough of Kingston,01/01/2023,90202337,"3,675.71",Caring Homes Healthcare Group Limited,SOCIAL SERVICES RESIDENTIAL,Adult Social Care & Health,Independent Placements,A56006,0
Royal Borough of Kingston,19/12/2022,90195220,735.01,CARLCARE LTD  ,SOCIAL SERVICES-HOME CARE,Adult Social Care & Health,Homecare - new framework,A56127,0
Royal Borough of Kingston,19/12/2022,90195675,595.01,CARLCARE LTD  ,SOCIAL SERVICES-HOME CARE,Adult Social Care & Health,Homecare - new framework,A56127,0
Royal Borough of Kingston,26/12/2022,90197431,735.01,CARLCARE LTD  ,SOCIAL SERVICES-HOME CARE,Adult Social Care & Health,Homecare - new framework,A56127,0
Royal Borough of Kingston,26/12/2022,90197815,595.01,CARLCARE LTD  ,SOCIAL SERVICES-HOME CARE,Adult Social Care & Health,Homecare - new framework,A56127,0
Royal Borough of Kingston,02/01/2023,90198580,735.01,CARLCARE LTD  ,SOCIAL SERVICES-HOME CARE,Adult Social Care & Health,Homecare - new framework,A56127,0
Royal Borough of Kingston,02/01/2023,90198941,595.01,CARLCARE LTD  ,SOCIAL SERVICES-HOME CARE,Adult Social Care & Health,Homecare - new framework,A56127,0
Royal Borough of Kingston,09/01/2023,90200407,717.51,CARLCARE LTD  ,SOCIAL SERVICES-HOME CARE,Adult Social Care & Health,Homecare - new framework,A56127,0
Royal Borough of Kingston,09/01/2023,90200802,595.01,CARLCARE LTD  ,SOCIAL SERVICES-HOME CARE,Adult Social Care & Health,Homecare - new framework,A56127,0
Royal Borough of Kingston,16/01/2023,90203243,735.01,CARLCARE LTD  ,SOCIAL SERVICES-HOME CARE,Adult Social Care & Health,Homecare - new framework,A56127,0
Royal Borough of Kingston,16/01/2023,90203638,595.01,CARLCARE LTD  ,SOCIAL SERVICES-HOME CARE,Adult Social Care & Health,Homecare - new framework,A56127,0
Royal Borough of Kingston,24/01/2023,90202022,"1,550.00",CARLISLE SECURITIES LTD,PLS LANDLORDS,Place,PSL Payments To Landlords,A22031,0
Royal Borough of Kingston,01/01/2023,90202620,"3,450.96",Jiva Healthcare Ltd,SOCIAL SERVICES RESIDENTIAL,Adult Social Care & Health,Independent Placements,A56006,0
Royal Borough of Kingston,24/01/2023,90201827,"1,094.00",REDACTED - PERSONAL DATA,PLS LANDLORDS,Place,PSL Payments To Landlords,A22031,0
Royal Borough of Kingston,01/01/2023,90202677,"9,470.46",CARTREF HOMES,SOCIAL SERVICES RESIDENTIAL,Adult Social Care & Health,Independent Placements,A56006,0
Royal Borough of Kingston,27/12/2022,70038413,930.00,REDACTED - PERSONAL DATA,SUNDRY SUPPLIER - FINANCE,Adult Social Care & Health,Other Private Contractors - Third Party,A56080,0
Royal Borough of Kingston,01/01/2023,90202650,"14,023.69",CAS CARE SERVICES LTD,SOCIAL SERVICES - OTHER,Adult Social Care & Health,Independent Placements,A56006,0
Royal Borough of Kingston,01/01/2023,90202693,"14,023.69",CAS CARE SERVICES LTD,SOCIAL SERVICES - OTHER,Adult Social Care & Health,Independent Placements,A56006,0
Royal Borough of Kingston,13/01/2023,90198327,"1,185.84",CASTLE HILL SCHOOL,SCHOOL FUNDS,Schools,PVI Providers,A60014,0
Royal Borough of Kingston,13/01/2023,90198347,"24,902.64",CASTLE HILL SCHOOL,SCHOOL FUNDS,Schools,Miscellaneous Expenses,A49000,0
Royal Borough of Kingston,13/01/2023,90198386,"1,014.12",CASTLE HILL SCHOOL,SCHOOL FUNDS,Schools,2 Yr Old Place Funding,A60000,0
Royal Borough of Kingston,24/01/2023,90201798,"2,149.00",CASTLE RESIDENTIAL PROPERTIES LTD,PLS LANDLORDS,Place,PSL Payments To Landlords,A22031,0
Royal Borough of Kingston,24/01/2023,90201919,"1,321.00",CASTLE RESIDENTIAL PROPERTIES LTD,PLS LANDLORDS,Place,PSL Payments To Landlords,A22031,0
Royal Borough of Kingston,24/01/2023,90201921,"1,049.98",CASTLE RESIDENTIAL PROPERTIES LTD,PLS LANDLORDS,Place,PSL Payments To Landlords,A22031,0
Royal Borough of Kingston,24/01/2023,90202096,"1,675.00",CASTLE RESIDENTIAL PROPERTIES LTD,PLS LANDLORDS,Place,PSL Payments To Landlords,A22031,0
Royal Borough of Kingston,24/01/2023,90202165,"1,675.00",CASTLE RESIDENTIAL PROPERTIES LTD,PLS LANDLORDS,Place,PSL Payments To Landlords,A22031,0
Royal Borough of Kingston,24/01/2023,90201795,"1,094.34",CASTLE WILDISH RESI LTD,PLS LANDLORDS,Place,PSL Payments To Landlords,A22031,0
Royal Borough of Kingston,24/01/2023,90201796,"1,094.34",CASTLE WILDISH RESI LTD,PLS LANDLORDS,Place,PSL Payments To Landlords,A22031,0
Royal Borough of Kingston,24/01/2023,90201797,"1,094.34",CASTLE WILDISH RESI LTD,PLS LANDLORDS,Place,PSL Payments To Landlords,A22031,0
Royal Borough of Kingston,24/01/2023,90202152,"1,626.00",CASTLE WILDISH RESI LTD,PLS LANDLORDS,Place,PSL Payments To Landlords,A22031,0
Royal Borough of Kingston,24/01/2023,90202153,"1,626.00",CASTLE WILDISH RESI LTD,PLS LANDLORDS,Place,PSL Payments To Landlords,A22031,0
Royal Borough of Kingston,24/01/2023,90201964,867.00,CATHERINE KHATIBZADEH,PLS LANDLORDS,Place,PSL Payments To Landlords,A22031,0
Royal Borough of Kingston,01/12/2022,70037959,"1,900.00",Causeway Technologies Limited,IT EQUIPMENT MAINTENANCE,Corporate & Communities,IT Software Maintenance,A45045,0
Royal Borough of Kingston,01/01/2023,90202668,"11,152.12",Gresham Care Operations Limited,SOCIAL SERVICES RESIDENTIAL,Adult Social Care & Health,Independent Placements,A56006,0
Royal Borough of Kingston,24/01/2023,90201948,850.00,REDACTED - PERSONAL DATA,PLS LANDLORDS,Place,PSL Payments To Landlords,A22031,0
Royal Borough of Kingston,13/01/2023,90198311,592.92,REDACTED - PERSONAL DATA,CHILDMINDERS START UP GRANT,Schools,PVI Providers,A60014,0
Royal Borough of Kingston,24/01/2023,90202251,"2,600.00",CHD (CARE HOMES) LTD,SOCIAL SERVICES RESIDENTIAL,Adult Social Care & Health,Third party pymts - private contractors (Non-Controcc),A56087,0
Royal Borough of Kingston,01/01/2023,90202520,"3,681.03",CHD (CARE HOMES) LTD,SOCIAL SERVICES RESIDENTIAL,Adult Social Care & Health,Independent Placements,A56006,0
Royal Borough of Kingston,01/01/2023,90202603,"4,871.43",CHD (CARE HOMES) LTD,SOCIAL SERVICES RESIDENTIAL,Adult Social Care & Health,Independent Placements,A56006,0
Royal Borough of Kingston,01/01/2023,90195027,"1,371.43",CHD CARE LTD,SOCIAL SERVICES RESIDENTIAL,Adult Social Care & Health,Independent Placements,A56006,0
Royal Borough of Kingston,01/01/2023,90195028,"1,028.57",CHD CARE LTD,SOCIAL SERVICES RESIDENTIAL,Adult Social Care & Health,Independent Placements,A56006,0
Royal Borough of Kingston,01/01/2023,90195029,"1,028.57",CHD CARE LTD,SOCIAL SERVICES RESIDENTIAL,Adult Social Care & Health,Independent Placements,A56006,0
Royal Borough of Kingston,01/01/2023,90195030,"1,371.43",CHD CARE LTD,SOCIAL SERVICES RESIDENTIAL,Adult Social Care & Health,Other Private Contractors - Third Party,A56080,0
Royal Borough of Kingston,01/01/2023,90195031,"1,371.43",CHD CARE LTD,SOCIAL SERVICES RESIDENTIAL,Adult Social Care & Health,Other Private Contractors - Third Party,A56080,0
Royal Borough of Kingston,01/01/2023,90195032,"1,371.43",CHD CARE LTD,SOCIAL SERVICES RESIDENTIAL,Adult Social Care & Health,Other Private Contractors - Third Party,A56080,0
Royal Borough of Kingston,01/01/2023,90195033,"1,028.57",CHD CARE LTD,SOCIAL SERVICES RESIDENTIAL,Adult Social Care & Health,Other Private Contractors - Third Party,A56080,0
Royal Borough of Kingston,01/01/2023,90195034,"1,028.57",CHD CARE LTD,SOCIAL SERVICES RESIDENTIAL,Adult Social Care & Health,Other Private Contractors - Third Party,A56080,0
Royal Borough of Kingston,01/01/2023,90202294,"3,985.71",CHD CARE LTD,SOCIAL SERVICES RESIDENTIAL,Adult Social Care & Health,Independent Placements,A56006,0
Royal Borough of Kingston,01/01/2023,90202295,"2,657.14",CHD CARE LTD,SOCIAL SERVICES RESIDENTIAL,Adult Social Care & Health,Independent Placements,A56006,0
Royal Borough of Kingston,01/01/2023,90202296,"1,992.86",CHD CARE LTD,SOCIAL SERVICES RESIDENTIAL,Adult Social Care & Health,Independent Placements,A56006,0
Royal Borough of Kingston,01/01/2023,90202297,"1,992.86",CHD CARE LTD,SOCIAL SERVICES RESIDENTIAL,Adult Social Care & Health,Independent Placements,A56006,0
Royal Borough of Kingston,01/01/2023,90202420,"5,406.53",CHD CARE LTD,SOCIAL SERVICES RESIDENTIAL,Adult Social Care & Health,Independent Placements,A56006,0
Royal Borough of Kingston,01/01/2023,90202578,"3,450.96",CHD CARE LTD,SOCIAL SERVICES RESIDENTIAL,Adult Social Care & Health,Independent Placements,A56006,0
Royal Borough of Kingston,01/01/2023,90202580,"5,176.47",CHD CARE LTD,SOCIAL SERVICES RESIDENTIAL,Adult Social Care & Health,Independent Placements,A56006,0
Royal Borough of Kingston,01/01/2023,90202766,"3,985.71",CHD CARE LTD,SOCIAL SERVICES RESIDENTIAL,Adult Social Care & Health,Other Private Contractors - Third Party,A56080,0
Royal Borough of Kingston,01/01/2023,90202767,"3,985.71",CHD CARE LTD,SOCIAL SERVICES RESIDENTIAL,Adult Social Care & Health,Other Private Contractors - Third Party,A56080,0
Royal Borough of Kingston,01/01/2023,90202768,"2,657.14",CHD CARE LTD,SOCIAL SERVICES RESIDENTIAL,Adult Social Care & Health,Other Private Contractors - Third Party,A56080,0
Royal Borough of Kingston,01/01/2023,90202769,"2,657.14",CHD CARE LTD,SOCIAL SERVICES RESIDENTIAL,Adult Social Care & Health,Other Private Contractors - Third Party,A56080,0
Royal Borough of Kingston,01/01/2023,90202770,"2,657.14",CHD CARE LTD,SOCIAL SERVICES RESIDENTIAL,Adult Social Care & Health,Other Private Contractors - Third Party,A56080,0
Royal Borough of Kingston,01/01/2023,90202771,"1,992.86",CHD CARE LTD,SOCIAL SERVICES RESIDENTIAL,Adult Social Care & Health,Other Private Contractors - Third Party,A56080,0
Royal Borough of Kingston,01/01/2023,90202772,"1,992.86",CHD CARE LTD,SOCIAL SERVICES RESIDENTIAL,Adult Social Care & Health,Other Private Contractors - Third Party,A56080,0
Royal Borough of Kingston,01/01/2023,90202533,"1,104.31",CHD LIVING,SOCIAL SERVICES RESIDENTIAL,Adult Social Care & Health,Independent Placements,A56006,0
Royal Borough of Kingston,13/01/2023,90198262,"7,648.67",CHILDS PLAY NURSERY SCHOOL LTD,GRANTS & EX GRATIA PAYMENTS,Schools,PVI Providers,A60014,0
Royal Borough of Kingston,01/01/2023,90202327,"4,371.22",CHISWICK NURSING CENTRE,SOCIAL SERVICES RESIDENTIAL,Adult Social Care & Health,Independent Placements,A56006,0
Royal Borough of Kingston,01/01/2023,90202531,"3,755.03",CHISWICK NURSING CENTRE,SOCIAL SERVICES RESIDENTIAL,Adult Social Care & Health,Independent Placements,A56006,0
Royal Borough of Kingston,01/01/2023,90202559,"3,434.40",CHISWICK NURSING CENTRE,SOCIAL SERVICES RESIDENTIAL,Adult Social Care & Health,Independent Placements,A56006,0
Royal Borough of Kingston,01/01/2023,90202688,"8,132.76",CHOICE LTD,SOCIAL SERVICES RESIDENTIAL,Adult Social Care & Health,Independent Placements,A56006,0
Royal Borough of Kingston,01/01/2023,90202694,"7,186.20",CHOICE LTD,SOCIAL SERVICES RESIDENTIAL,Adult Social Care & Health,Independent Placements,A56006,0
Royal Borough of Kingston,13/01/2023,90198342,"12,451.32",CHRIST CHURCH  C. OF E.  PRIMARY SCHOOL (NEW MALDEN),SCHOOL FUNDS,Schools,Miscellaneous Expenses,A49000,0
Royal Borough of Kingston,24/01/2023,90202229,"158,749.86",CHRIST CHURCH  C. OF E.  PRIMARY SCHOOL (NEW MALDEN),SCHOOL FUNDS,Schools,Miscellaneous Expenses,A49000,0
Royal Borough of Kingston,01/01/2023,90201082,"5,939.29",CHRISTIES CARE LTD,SOCIAL SERVICES RESIDENTIAL,Adult Social Care & Health,Personal Budget - Third Party,A61019,0
Royal Borough of Kingston,01/01/2023,90201190,"5,552.14",CHRISTIES CARE LTD,SOCIAL SERVICES RESIDENTIAL,Adult Social Care & Health,Personal Budget - Third Party,A61019,0
Royal Borough of Kingston,01/01/2023,90201192,"5,776.98",CHRISTIES CARE LTD,SOCIAL SERVICES RESIDENTIAL,Adult Social Care & Health,Personal Budget - Third Party,A61019,0
Royal Borough of Kingston,01/01/2023,90201281,"5,574.29",CHRISTIES CARE LTD,SOCIAL SERVICES RESIDENTIAL,Adult Social Care & Health,Personal Budget - Third Party,A61019,0
Royal Borough of Kingston,31/12/2022,70038079,"2,325.00",CHRISTOPHER HOUSE (LONDON) LTD,ACCOMMODATION BED & BREAKFAST,Place,Bed & Breakfast,A56000,0
Royal Borough of Kingston,01/01/2023,70037830,"2,443.74",CITRON HYGIENE LIMITED,REFUSE COLLECTION / DISPOSAL,Corporate & Communities,Clinical Waste,A56054,0
Royal Borough of Kingston,17/11/2022,70037194,"60,000.00",CITY CHANGER PROJECTS ,GRANTS & EX GRATIA PAYMENTS,Adult Social Care & Health,Miscellaneous Expenses,A49000,0
Royal Borough of Kingston,23/01/2023,70039416,"1,000.00",CITY CHANGER PROJECTS ,GRANTS & EX GRATIA PAYMENTS,Corporate & Communities,"Grants, Contributions & Donations",A47005,0
Royal Borough of Kingston,04/01/2023,70038085,"25,280.00",CITY OF LONDON,CENTRAL & LOCAL GOVERNMENT,Adult Social Care & Health,Taxicard Scheme,A51010,0
Royal Borough of Kingston,13/01/2023,90198383,676.08,REDACTED - PERSONAL DATA,CHILDMINDERS START UP GRANT,Schools,2 Yr Old Place Funding,A60000,0
Royal Borough of Kingston,01/01/2023,90202697,"8,811.48",CLEARWATER CARE (HACKNEY) LTD,SOCIAL SERVICES RESIDENTIAL,Adult Social Care & Health,Independent Placements,A56006,0
Royal Borough of Kingston,03/01/2023,70037935,"9,000.00",CLEMENTS ENVIRONMENTAL SERVICES LTD,PEST CONTROL SERVICES,Corporate & Communities,Other Private Contractors - Third Party,A56080,0
Royal Borough of Kingston,01/01/2023,90201733,"6,317.00",CLIA Care Ltd,ACCOMMODATION - OTHER,Adult Social Care & Health,Personal Budget - Third Party,A61019,0
Royal Borough of Kingston,20/12/2022,70037937,895.00,CLICKON IT LONDON LTD,IT EQUIPMENT MAINTENANCE,Corporate & Communities,IT Hardware Purchase,A45005,0
Royal Borough of Kingston,24/01/2023,90202045,"1,094.00",CLIFFE &  ROCHFORD,PLS LANDLORDS,Place,PSL Payments To Landlords,A22031,0
Royal Borough of Kingston,24/01/2023,90201861,"1,435.50",CLIQUE 187 LTD,PLS LANDLORDS,Place,PSL Payments To Landlords,A22031,0
Royal Borough of Kingston,20/12/2022,70037869,"3,000.00",Albion Cleaning Services,SOCIAL SERVICES - OTHER,Adult Social Care & Health,Other Private Contractors - Third Party,A56080,0
Royal Borough of Kingston,01/01/2023,90201187,"3,050.18",CMG LIMITED,SOCIAL SERVICES - OTHER,Adult Social Care & Health,Personal Budget - Third Party,A61019,0
Royal Borough of Kingston,01/01/2023,90201219,"5,534.03",CMG LIMITED,SOCIAL SERVICES - OTHER,Adult Social Care & Health,Personal Budget - Third Party,A61019,0
Royal Borough of Kingston,01/01/2023,90201220,"5,501.22",CMG LIMITED,SOCIAL SERVICES - OTHER,Adult Social Care & Health,Personal Budget - Third Party,A61019,0
Royal Borough of Kingston,01/01/2023,90201257,"6,040.53",CMG LIMITED,SOCIAL SERVICES - OTHER,Adult Social Care & Health,Personal Budget - Third Party,A61019,0
Royal Borough of Kingston,01/01/2023,90201283,930.27,CMG LIMITED,SOCIAL SERVICES - OTHER,Adult Social Care & Health,Personal Budget - Third Party,A61019,0
Royal Borough of Kingston,01/01/2023,90201284,"4,019.02",CMG LIMITED,SOCIAL SERVICES - OTHER,Adult Social Care & Health,Personal Budget - Third Party,A61019,0
Royal Borough of Kingston,01/01/2023,90201357,"4,794.24",CMG LIMITED,SOCIAL SERVICES - OTHER,Adult Social Care & Health,Personal Budget - Third Party,A61019,0
Royal Borough of Kingston,12/12/2022,90195300,918.76,CN Healthcare,SOCIAL SERVICES - OTHER,Adult Social Care & Health,Homecare - new framework,A56127,0
Royal Borough of Kingston,12/12/2022,90195575,551.25,CN Healthcare,SOCIAL SERVICES - OTHER,Adult Social Care & Health,Homecare - new framework,A56127,0
Royal Borough of Kingston,12/12/2022,90195640,612.51,CN Healthcare,SOCIAL SERVICES - OTHER,Adult Social Care & Health,Homecare - new framework,A56127,0
Royal Borough of Kingston,19/12/2022,90197497,918.76,CN Healthcare,SOCIAL SERVICES - OTHER,Adult Social Care & Health,Homecare - new framework,A56127,0
Royal Borough of Kingston,19/12/2022,90197746,551.25,CN Healthcare,SOCIAL SERVICES - OTHER,Adult Social Care & Health,Homecare - new framework,A56127,0
Royal Borough of Kingston,19/12/2022,90197779,612.51,CN Healthcare,SOCIAL SERVICES - OTHER,Adult Social Care & Health,Homecare - new framework,A56127,0
Royal Borough of Kingston,26/12/2022,90198512,612.51,CN Healthcare,SOCIAL SERVICES - OTHER,Adult Social Care & Health,Homecare - new framework,A56127,0
Royal Borough of Kingston,26/12/2022,90198640,918.76,CN Healthcare,SOCIAL SERVICES - OTHER,Adult Social Care & Health,Homecare - new framework,A56127,0
Royal Borough of Kingston,26/12/2022,90198875,551.25,CN Healthcare,SOCIAL SERVICES - OTHER,Adult Social Care & Health,Homecare - new framework,A56127,0
Royal Borough of Kingston,26/12/2022,90199461,857.50,CN Healthcare,SOCIAL SERVICES - OTHER,Adult Social Care & Health,Personal Budget - Third Party,A61019,0
Royal Borough of Kingston,02/01/2023,90200353,612.51,CN Healthcare,SOCIAL SERVICES - OTHER,Adult Social Care & Health,Homecare - new framework,A56127,0
Royal Borough of Kingston,02/01/2023,90200469,918.76,CN Healthcare,SOCIAL SERVICES - OTHER,Adult Social Care & Health,Homecare - new framework,A56127,0
Royal Borough of Kingston,02/01/2023,90200710,551.25,CN Healthcare,SOCIAL SERVICES - OTHER,Adult Social Care & Health,Homecare - new framework,A56127,0
Royal Borough of Kingston,02/01/2023,90200741,525.00,CN Healthcare,SOCIAL SERVICES - OTHER,Adult Social Care & Health,Homecare - new framework,A56127,0
Royal Borough of Kingston,02/01/2023,90201395,857.50,CN Healthcare,SOCIAL SERVICES - OTHER,Adult Social Care & Health,Personal Budget - Third Party,A61019,0
Royal Borough of Kingston,09/01/2023,90203200,612.51,CN Healthcare,SOCIAL SERVICES - OTHER,Adult Social Care & Health,Homecare - new framework,A56127,0
Royal Borough of Kingston,09/01/2023,90203315,918.76,CN Healthcare,SOCIAL SERVICES - OTHER,Adult Social Care & Health,Homecare - new framework,A56127,0
Royal Borough of Kingston,09/01/2023,90203578,551.25,CN Healthcare,SOCIAL SERVICES - OTHER,Adult Social Care & Health,Homecare - new framework,A56127,0
Royal Borough of Kingston,24/01/2023,90202087,"1,116.00",COBHAM RENTALS LTD,PLS LANDLORDS,Place,PSL Payments To Landlords,A22031,0
Royal Borough of Kingston,24/01/2023,90202088,"1,116.00",COBHAM RENTALS LTD,PLS LANDLORDS,Place,PSL Payments To Landlords,A22031,0
Royal Borough of Kingston,24/01/2023,90202089,"1,116.00",COBHAM RENTALS LTD,PLS LANDLORDS,Place,PSL Payments To Landlords,A22031,0
Royal Borough of Kingston,01/01/2023,90202727,"14,022.05",COGNITHAN,SOCIAL SERVICES RESIDENTIAL,Adult Social Care & Health,Independent Placements,A56006,0
Royal Borough of Kingston,24/01/2023,90201904,"1,094.00",REDACTED - PERSONAL DATA,PLS LANDLORDS,Place,PSL Payments To Landlords,A22031,0
Royal Borough of Kingston,24/01/2023,90201923,"1,094.00",REDACTED - PERSONAL DATA,PLS LANDLORDS,Place,PSL Payments To Landlords,A22031,0
Royal Borough of Kingston,30/01/2022,70037960,514.39,COMETT LIMITED,ENTERTAINMENTS INDUSTRY,Adult Social Care & Health,Consultancy Services - Other,A44065,0
Royal Borough of Kingston,01/01/2023,90199759,"2,041.28",COMFORT CARE SERVICES UK LTD,SOCIAL SERVICES-HOME CARE,Adult Social Care & Health,Supported Living - new framework,A56126,0
Royal Borough of Kingston,01/01/2023,90199779,"1,756.04",COMFORT CARE SERVICES UK LTD,SOCIAL SERVICES-HOME CARE,Adult Social Care & Health,Supported Living - new framework,A56126,0
Royal Borough of Kingston,01/01/2023,90199780,878.02,COMFORT CARE SERVICES UK LTD,SOCIAL SERVICES-HOME CARE,Adult Social Care & Health,Supported Living - new framework,A56126,0
Royal Borough of Kingston,01/01/2023,90199782,"1,756.04",COMFORT CARE SERVICES UK LTD,SOCIAL SERVICES-HOME CARE,Adult Social Care & Health,Supported Living - new framework,A56126,0
Royal Borough of Kingston,01/01/2023,90199783,878.02,COMFORT CARE SERVICES UK LTD,SOCIAL SERVICES-HOME CARE,Adult Social Care & Health,Supported Living - new framework,A56126,0
Royal Borough of Kingston,01/01/2023,90200056,"2,108.00",COMFORT CARE SERVICES UK LTD,SOCIAL SERVICES-HOME CARE,Adult Social Care & Health,Supported Living - new framework,A56126,0
Royal Borough of Kingston,01/01/2023,90200057,527.00,COMFORT CARE SERVICES UK LTD,SOCIAL SERVICES-HOME CARE,Adult Social Care & Health,Supported Living - new framework,A56126,0
Royal Borough of Kingston,01/01/2023,90200059,"1,882.14",COMFORT CARE SERVICES UK LTD,SOCIAL SERVICES-HOME CARE,Adult Social Care & Health,Supported Living - new framework,A56126,0
Royal Borough of Kingston,01/01/2023,90200060,752.86,COMFORT CARE SERVICES UK LTD,SOCIAL SERVICES-HOME CARE,Adult Social Care & Health,Supported Living - new framework,A56126,0
Royal Borough of Kingston,01/01/2023,90200062,"1,699.39",COMFORT CARE SERVICES UK LTD,SOCIAL SERVICES-HOME CARE,Adult Social Care & Health,Supported Living - new framework,A56126,0
Royal Borough of Kingston,01/01/2023,90200063,849.70,COMFORT CARE SERVICES UK LTD,SOCIAL SERVICES-HOME CARE,Adult Social Care & Health,Supported Living - new framework,A56126,0
Royal Borough of Kingston,01/01/2023,90200065,"1,756.04",COMFORT CARE SERVICES UK LTD,SOCIAL SERVICES-HOME CARE,Adult Social Care & Health,Supported Living - new framework,A56126,0
Royal Borough of Kingston,01/01/2023,90200066,878.02,COMFORT CARE SERVICES UK LTD,SOCIAL SERVICES-HOME CARE,Adult Social Care & Health,Supported Living - new framework,A56126,0
Royal Borough of Kingston,01/01/2023,90200068,"1,699.39",COMFORT CARE SERVICES UK LTD,SOCIAL SERVICES-HOME CARE,Adult Social Care & Health,Supported Living - new framework,A56126,0
Royal Borough of Kingston,01/01/2023,90200069,849.70,COMFORT CARE SERVICES UK LTD,SOCIAL SERVICES-HOME CARE,Adult Social Care & Health,Supported Living - new framework,A56126,0
Royal Borough of Kingston,01/01/2023,90200071,"1,756.04",COMFORT CARE SERVICES UK LTD,SOCIAL SERVICES-HOME CARE,Adult Social Care & Health,Supported Living - new framework,A56126,0
Royal Borough of Kingston,01/01/2023,90200072,878.02,COMFORT CARE SERVICES UK LTD,SOCIAL SERVICES-HOME CARE,Adult Social Care & Health,Supported Living - new framework,A56126,0
Royal Borough of Kingston,01/01/2023,90200074,"1,756.04",COMFORT CARE SERVICES UK LTD,SOCIAL SERVICES-HOME CARE,Adult Social Care & Health,Supported Living - new framework,A56126,0
Royal Borough of Kingston,01/01/2023,90200075,878.02,COMFORT CARE SERVICES UK LTD,SOCIAL SERVICES-HOME CARE,Adult Social Care & Health,Supported Living - new framework,A56126,0
Royal Borough of Kingston,01/01/2023,90200077,"1,699.39",COMFORT CARE SERVICES UK LTD,SOCIAL SERVICES-HOME CARE,Adult Social Care & Health,Supported Living - new framework,A56126,0
Royal Borough of Kingston,01/01/2023,90200078,849.70,COMFORT CARE SERVICES UK LTD,SOCIAL SERVICES-HOME CARE,Adult Social Care & Health,Supported Living - new framework,A56126,0
Royal Borough of Kingston,01/01/2023,90200080,"1,756.04",COMFORT CARE SERVICES UK LTD,SOCIAL SERVICES-HOME CARE,Adult Social Care & Health,Supported Living - new framework,A56126,0
Royal Borough of Kingston,01/01/2023,90200081,878.02,COMFORT CARE SERVICES UK LTD,SOCIAL SERVICES-HOME CARE,Adult Social Care & Health,Supported Living - new framework,A56126,0
Royal Borough of Kingston,01/01/2023,90200083,"1,699.39",COMFORT CARE SERVICES UK LTD,SOCIAL SERVICES-HOME CARE,Adult Social Care & Health,Supported Living - new framework,A56126,0
Royal Borough of Kingston,01/01/2023,90200084,849.70,COMFORT CARE SERVICES UK LTD,SOCIAL SERVICES-HOME CARE,Adult Social Care & Health,Supported Living - new framework,A56126,0
Royal Borough of Kingston,01/01/2023,90200086,"1,756.04",COMFORT CARE SERVICES UK LTD,SOCIAL SERVICES-HOME CARE,Adult Social Care & Health,Supported Living - new framework,A56126,0
Royal Borough of Kingston,01/01/2023,90200087,878.02,COMFORT CARE SERVICES UK LTD,SOCIAL SERVICES-HOME CARE,Adult Social Care & Health,Supported Living - new framework,A56126,0
Royal Borough of Kingston,01/01/2023,90200089,"1,756.04",COMFORT CARE SERVICES UK LTD,SOCIAL SERVICES-HOME CARE,Adult Social Care & Health,Supported Living - new framework,A56126,0
Royal Borough of Kingston,01/01/2023,90200090,878.02,COMFORT CARE SERVICES UK LTD,SOCIAL SERVICES-HOME CARE,Adult Social Care & Health,Supported Living - new framework,A56126,0
Royal Borough of Kingston,01/01/2023,90200092,"1,756.04",COMFORT CARE SERVICES UK LTD,SOCIAL SERVICES-HOME CARE,Adult Social Care & Health,Supported Living - new framework,A56126,0
Royal Borough of Kingston,01/01/2023,90200093,878.02,COMFORT CARE SERVICES UK LTD,SOCIAL SERVICES-HOME CARE,Adult Social Care & Health,Supported Living - new framework,A56126,0
Royal Borough of Kingston,01/01/2023,90200095,"2,108.00",COMFORT CARE SERVICES UK LTD,SOCIAL SERVICES-HOME CARE,Adult Social Care & Health,Supported Living - new framework,A56126,0
Royal Borough of Kingston,01/01/2023,90200096,527.00,COMFORT CARE SERVICES UK LTD,SOCIAL SERVICES-HOME CARE,Adult Social Care & Health,Supported Living - new framework,A56126,0
Royal Borough of Kingston,01/01/2023,90200097,"2,098.44",COMFORT CARE SERVICES UK LTD,SOCIAL SERVICES-HOME CARE,Adult Social Care & Health,Supported Living - new framework,A56126,0
Royal Borough of Kingston,01/01/2023,90200098,850.00,COMFORT CARE SERVICES UK LTD,SOCIAL SERVICES-HOME CARE,Adult Social Care & Health,Supported Living - new framework,A56126,0
Royal Borough of Kingston,01/01/2023,90200099,"2,168.39",COMFORT CARE SERVICES UK LTD,SOCIAL SERVICES-HOME CARE,Adult Social Care & Health,Supported Living - new framework,A56126,0
Royal Borough of Kingston,01/01/2023,90200100,878.33,COMFORT CARE SERVICES UK LTD,SOCIAL SERVICES-HOME CARE,Adult Social Care & Health,Supported Living - new framework,A56126,0
Royal Borough of Kingston,01/01/2023,90200101,"2,098.44",COMFORT CARE SERVICES UK LTD,SOCIAL SERVICES-HOME CARE,Adult Social Care & Health,Supported Living - new framework,A56126,0
Royal Borough of Kingston,01/01/2023,90200102,850.00,COMFORT CARE SERVICES UK LTD,SOCIAL SERVICES-HOME CARE,Adult Social Care & Health,Supported Living - new framework,A56126,0
Royal Borough of Kingston,01/01/2023,90200103,"2,168.39",COMFORT CARE SERVICES UK LTD,SOCIAL SERVICES-HOME CARE,Adult Social Care & Health,Supported Living - new framework,A56126,0
Royal Borough of Kingston,01/01/2023,90200104,878.33,COMFORT CARE SERVICES UK LTD,SOCIAL SERVICES-HOME CARE,Adult Social Care & Health,Supported Living - new framework,A56126,0
Royal Borough of Kingston,01/01/2023,90200105,"2,168.39",COMFORT CARE SERVICES UK LTD,SOCIAL SERVICES-HOME CARE,Adult Social Care & Health,Supported Living - new framework,A56126,0
Royal Borough of Kingston,01/01/2023,90200106,878.33,COMFORT CARE SERVICES UK LTD,SOCIAL SERVICES-HOME CARE,Adult Social Care & Health,Supported Living - new framework,A56126,0
Royal Borough of Kingston,01/01/2023,90200107,"1,888.60",COMFORT CARE SERVICES UK LTD,SOCIAL SERVICES-HOME CARE,Adult Social Care & Health,Supported Living - new framework,A56126,0
Royal Borough of Kingston,01/01/2023,90200108,765.00,COMFORT CARE SERVICES UK LTD,SOCIAL SERVICES-HOME CARE,Adult Social Care & Health,Supported Living - new framework,A56126,0
Royal Borough of Kingston,01/01/2023,90200110,"1,699.39",COMFORT CARE SERVICES UK LTD,SOCIAL SERVICES-HOME CARE,Adult Social Care & Health,Supported Living - new framework,A56126,0
Royal Borough of Kingston,01/01/2023,90200111,849.70,COMFORT CARE SERVICES UK LTD,SOCIAL SERVICES-HOME CARE,Adult Social Care & Health,Supported Living - new framework,A56126,0
Royal Borough of Kingston,01/01/2023,90200113,"1,756.04",COMFORT CARE SERVICES UK LTD,SOCIAL SERVICES-HOME CARE,Adult Social Care & Health,Supported Living - new framework,A56126,0
Royal Borough of Kingston,01/01/2023,90200114,878.02,COMFORT CARE SERVICES UK LTD,SOCIAL SERVICES-HOME CARE,Adult Social Care & Health,Supported Living - new framework,A56126,0
Royal Borough of Kingston,01/01/2023,90200116,"1,699.39",COMFORT CARE SERVICES UK LTD,SOCIAL SERVICES-HOME CARE,Adult Social Care & Health,Supported Living - new framework,A56126,0
Royal Borough of Kingston,01/01/2023,90200117,849.70,COMFORT CARE SERVICES UK LTD,SOCIAL SERVICES-HOME CARE,Adult Social Care & Health,Supported Living - new framework,A56126,0
Royal Borough of Kingston,01/01/2023,90200119,"1,756.04",COMFORT CARE SERVICES UK LTD,SOCIAL SERVICES-HOME CARE,Adult Social Care & Health,Supported Living - new framework,A56126,0
Royal Borough of Kingston,01/01/2023,90200120,878.02,COMFORT CARE SERVICES UK LTD,SOCIAL SERVICES-HOME CARE,Adult Social Care & Health,Supported Living - new framework,A56126,0
Royal Borough of Kingston,01/01/2023,90200122,"1,756.04",COMFORT CARE SERVICES UK LTD,SOCIAL SERVICES-HOME CARE,Adult Social Care & Health,Supported Living - new framework,A56126,0
Royal Borough of Kingston,01/01/2023,90200123,878.02,COMFORT CARE SERVICES UK LTD,SOCIAL SERVICES-HOME CARE,Adult Social Care & Health,Supported Living - new framework,A56126,0
Royal Borough of Kingston,01/01/2023,90200125,"1,699.39",COMFORT CARE SERVICES UK LTD,SOCIAL SERVICES-HOME CARE,Adult Social Care & Health,Supported Living - new framework,A56126,0
Royal Borough of Kingston,01/01/2023,90200126,849.70,COMFORT CARE SERVICES UK LTD,SOCIAL SERVICES-HOME CARE,Adult Social Care & Health,Supported Living - new framework,A56126,0
Royal Borough of Kingston,01/01/2023,90200128,"1,756.04",COMFORT CARE SERVICES UK LTD,SOCIAL SERVICES-HOME CARE,Adult Social Care & Health,Supported Living - new framework,A56126,0
Royal Borough of Kingston,01/01/2023,90200129,878.02,COMFORT CARE SERVICES UK LTD,SOCIAL SERVICES-HOME CARE,Adult Social Care & Health,Supported Living - new framework,A56126,0
Royal Borough of Kingston,01/01/2023,90200131,"1,699.39",COMFORT CARE SERVICES UK LTD,SOCIAL SERVICES-HOME CARE,Adult Social Care & Health,Supported Living - new framework,A56126,0
Royal Borough of Kingston,01/01/2023,90200132,849.70,COMFORT CARE SERVICES UK LTD,SOCIAL SERVICES-HOME CARE,Adult Social Care & Health,Supported Living - new framework,A56126,0
Royal Borough of Kingston,01/01/2023,90200134,"1,756.04",COMFORT CARE SERVICES UK LTD,SOCIAL SERVICES-HOME CARE,Adult Social Care & Health,Supported Living - new framework,A56126,0
Royal Borough of Kingston,01/01/2023,90200135,878.02,COMFORT CARE SERVICES UK LTD,SOCIAL SERVICES-HOME CARE,Adult Social Care & Health,Supported Living - new framework,A56126,0
Royal Borough of Kingston,01/01/2023,90200137,"1,756.04",COMFORT CARE SERVICES UK LTD,SOCIAL SERVICES-HOME CARE,Adult Social Care & Health,Supported Living - new framework,A56126,0
Royal Borough of Kingston,01/01/2023,90200138,878.02,COMFORT CARE SERVICES UK LTD,SOCIAL SERVICES-HOME CARE,Adult Social Care & Health,Supported Living - new framework,A56126,0
Royal Borough of Kingston,01/01/2023,90200141,841.43,COMFORT CARE SERVICES UK LTD,SOCIAL SERVICES-HOME CARE,Adult Social Care & Health,Supported Living - new framework,A56126,0
Royal Borough of Kingston,01/01/2023,90200142,"2,108.00",COMFORT CARE SERVICES UK LTD,SOCIAL SERVICES-HOME CARE,Adult Social Care & Health,Supported Living - new framework,A56126,0
Royal Borough of Kingston,01/01/2023,90200143,527.00,COMFORT CARE SERVICES UK LTD,SOCIAL SERVICES-HOME CARE,Adult Social Care & Health,Supported Living - new framework,A56126,0
Royal Borough of Kingston,01/01/2023,90200146,"1,976.25",COMFORT CARE SERVICES UK LTD,SOCIAL SERVICES-HOME CARE,Adult Social Care & Health,Supported Living - new framework,A56126,0
Royal Borough of Kingston,01/01/2023,90200147,658.75,COMFORT CARE SERVICES UK LTD,SOCIAL SERVICES-HOME CARE,Adult Social Care & Health,Supported Living - new framework,A56126,0
Royal Borough of Kingston,01/01/2023,90200149,"1,756.04",COMFORT CARE SERVICES UK LTD,SOCIAL SERVICES-HOME CARE,Adult Social Care & Health,Supported Living - new framework,A56126,0
Royal Borough of Kingston,01/01/2023,90200150,878.02,COMFORT CARE SERVICES UK LTD,SOCIAL SERVICES-HOME CARE,Adult Social Care & Health,Supported Living - new framework,A56126,0
Royal Borough of Kingston,01/01/2023,90200152,"1,756.04",COMFORT CARE SERVICES UK LTD,SOCIAL SERVICES-HOME CARE,Adult Social Care & Health,Supported Living - new framework,A56126,0
Royal Borough of Kingston,01/01/2023,90200153,878.02,COMFORT CARE SERVICES UK LTD,SOCIAL SERVICES-HOME CARE,Adult Social Care & Health,Supported Living - new framework,A56126,0
Royal Borough of Kingston,01/01/2023,90200155,"1,699.39",COMFORT CARE SERVICES UK LTD,SOCIAL SERVICES-HOME CARE,Adult Social Care & Health,Supported Living - new framework,A56126,0
Royal Borough of Kingston,01/01/2023,90200156,849.70,COMFORT CARE SERVICES UK LTD,SOCIAL SERVICES-HOME CARE,Adult Social Care & Health,Supported Living - new framework,A56126,0
Royal Borough of Kingston,01/01/2023,90200158,"1,756.04",COMFORT CARE SERVICES UK LTD,SOCIAL SERVICES-HOME CARE,Adult Social Care & Health,Supported Living - new framework,A56126,0
Royal Borough of Kingston,01/01/2023,90200159,878.02,COMFORT CARE SERVICES UK LTD,SOCIAL SERVICES-HOME CARE,Adult Social Care & Health,Supported Living - new framework,A56126,0
Royal Borough of Kingston,01/01/2023,90200161,"1,699.39",COMFORT CARE SERVICES UK LTD,SOCIAL SERVICES-HOME CARE,Adult Social Care & Health,Supported Living - new framework,A56126,0
Royal Borough of Kingston,01/01/2023,90200162,849.70,COMFORT CARE SERVICES UK LTD,SOCIAL SERVICES-HOME CARE,Adult Social Care & Health,Supported Living - new framework,A56126,0
Royal Borough of Kingston,01/01/2023,90200164,"1,756.04",COMFORT CARE SERVICES UK LTD,SOCIAL SERVICES-HOME CARE,Adult Social Care & Health,Supported Living - new framework,A56126,0
Royal Borough of Kingston,01/01/2023,90200165,878.02,COMFORT CARE SERVICES UK LTD,SOCIAL SERVICES-HOME CARE,Adult Social Care & Health,Supported Living - new framework,A56126,0
Royal Borough of Kingston,01/01/2023,90200167,"1,756.04",COMFORT CARE SERVICES UK LTD,SOCIAL SERVICES-HOME CARE,Adult Social Care & Health,Supported Living - new framework,A56126,0
Royal Borough of Kingston,01/01/2023,90200168,878.02,COMFORT CARE SERVICES UK LTD,SOCIAL SERVICES-HOME CARE,Adult Social Care & Health,Supported Living - new framework,A56126,0
Royal Borough of Kingston,01/01/2023,90200170,"1,699.39",COMFORT CARE SERVICES UK LTD,SOCIAL SERVICES-HOME CARE,Adult Social Care & Health,Supported Living - new framework,A56126,0
Royal Borough of Kingston,01/01/2023,90200171,849.70,COMFORT CARE SERVICES UK LTD,SOCIAL SERVICES-HOME CARE,Adult Social Care & Health,Supported Living - new framework,A56126,0
Royal Borough of Kingston,01/01/2023,90200173,"1,756.04",COMFORT CARE SERVICES UK LTD,SOCIAL SERVICES-HOME CARE,Adult Social Care & Health,Supported Living - new framework,A56126,0
Royal Borough of Kingston,01/01/2023,90200174,878.02,COMFORT CARE SERVICES UK LTD,SOCIAL SERVICES-HOME CARE,Adult Social Care & Health,Supported Living - new framework,A56126,0
Royal Borough of Kingston,01/01/2023,90200176,"1,699.39",COMFORT CARE SERVICES UK LTD,SOCIAL SERVICES-HOME CARE,Adult Social Care & Health,Supported Living - new framework,A56126,0
Royal Borough of Kingston,01/01/2023,90200177,849.70,COMFORT CARE SERVICES UK LTD,SOCIAL SERVICES-HOME CARE,Adult Social Care & Health,Supported Living - new framework,A56126,0
Royal Borough of Kingston,01/01/2023,90200179,"1,756.04",COMFORT CARE SERVICES UK LTD,SOCIAL SERVICES-HOME CARE,Adult Social Care & Health,Supported Living - new framework,A56126,0
Royal Borough of Kingston,01/01/2023,90200180,878.02,COMFORT CARE SERVICES UK LTD,SOCIAL SERVICES-HOME CARE,Adult Social Care & Health,Supported Living - new framework,A56126,0
Royal Borough of Kingston,01/01/2023,90200182,"1,756.04",COMFORT CARE SERVICES UK LTD,SOCIAL SERVICES-HOME CARE,Adult Social Care & Health,Supported Living - new framework,A56126,0
Royal Borough of Kingston,01/01/2023,90200183,878.02,COMFORT CARE SERVICES UK LTD,SOCIAL SERVICES-HOME CARE,Adult Social Care & Health,Supported Living - new framework,A56126,0
Royal Borough of Kingston,01/01/2023,90200185,"1,756.04",COMFORT CARE SERVICES UK LTD,SOCIAL SERVICES-HOME CARE,Adult Social Care & Health,Supported Living - new framework,A56126,0
Royal Borough of Kingston,01/01/2023,90200186,878.02,COMFORT CARE SERVICES UK LTD,SOCIAL SERVICES-HOME CARE,Adult Social Care & Health,Supported Living - new framework,A56126,0
Royal Borough of Kingston,01/01/2023,90200191,"1,699.39",COMFORT CARE SERVICES UK LTD,SOCIAL SERVICES-HOME CARE,Adult Social Care & Health,Supported Living - new framework,A56126,0
Royal Borough of Kingston,01/01/2023,90200192,849.70,COMFORT CARE SERVICES UK LTD,SOCIAL SERVICES-HOME CARE,Adult Social Care & Health,Supported Living - new framework,A56126,0
Royal Borough of Kingston,01/01/2023,90200193,"-3,010.84",COMFORT CARE SERVICES UK LTD,SOCIAL SERVICES-HOME CARE,Adult Social Care & Health,Supported Living - new framework,A56126,0
Royal Borough of Kingston,01/01/2023,90200195,"1,756.04",COMFORT CARE SERVICES UK LTD,SOCIAL SERVICES-HOME CARE,Adult Social Care & Health,Supported Living - new framework,A56126,0
Royal Borough of Kingston,01/01/2023,90200196,878.02,COMFORT CARE SERVICES UK LTD,SOCIAL SERVICES-HOME CARE,Adult Social Care & Health,Supported Living - new framework,A56126,0
Royal Borough of Kingston,01/01/2023,90200197,"-3,111.20",COMFORT CARE SERVICES UK LTD,SOCIAL SERVICES-HOME CARE,Adult Social Care & Health,Supported Living - new framework,A56126,0
Royal Borough of Kingston,01/01/2023,90200199,"1,699.39",COMFORT CARE SERVICES UK LTD,SOCIAL SERVICES-HOME CARE,Adult Social Care & Health,Supported Living - new framework,A56126,0
Royal Borough of Kingston,01/01/2023,90200200,849.70,COMFORT CARE SERVICES UK LTD,SOCIAL SERVICES-HOME CARE,Adult Social Care & Health,Supported Living - new framework,A56126,0
Royal Borough of Kingston,01/01/2023,90200201,"-3,010.84",COMFORT CARE SERVICES UK LTD,SOCIAL SERVICES-HOME CARE,Adult Social Care & Health,Supported Living - new framework,A56126,0
Royal Borough of Kingston,01/01/2023,90200203,"1,756.04",COMFORT CARE SERVICES UK LTD,SOCIAL SERVICES-HOME CARE,Adult Social Care & Health,Supported Living - new framework,A56126,0
Royal Borough of Kingston,01/01/2023,90200204,878.02,COMFORT CARE SERVICES UK LTD,SOCIAL SERVICES-HOME CARE,Adult Social Care & Health,Supported Living - new framework,A56126,0
Royal Borough of Kingston,01/01/2023,90200205,"-3,111.20",COMFORT CARE SERVICES UK LTD,SOCIAL SERVICES-HOME CARE,Adult Social Care & Health,Supported Living - new framework,A56126,0
Royal Borough of Kingston,01/01/2023,90200207,"1,756.04",COMFORT CARE SERVICES UK LTD,SOCIAL SERVICES-HOME CARE,Adult Social Care & Health,Supported Living - new framework,A56126,0
Royal Borough of Kingston,01/01/2023,90200208,878.02,COMFORT CARE SERVICES UK LTD,SOCIAL SERVICES-HOME CARE,Adult Social Care & Health,Supported Living - new framework,A56126,0
Royal Borough of Kingston,01/01/2023,90200209,"-3,111.20",COMFORT CARE SERVICES UK LTD,SOCIAL SERVICES-HOME CARE,Adult Social Care & Health,Supported Living - new framework,A56126,0
Royal Borough of Kingston,01/01/2023,90200211,"1,699.39",COMFORT CARE SERVICES UK LTD,SOCIAL SERVICES-HOME CARE,Adult Social Care & Health,Supported Living - new framework,A56126,0
Royal Borough of Kingston,01/01/2023,90200212,849.70,COMFORT CARE SERVICES UK LTD,SOCIAL SERVICES-HOME CARE,Adult Social Care & Health,Supported Living - new framework,A56126,0
Royal Borough of Kingston,01/01/2023,90200213,"-3,010.84",COMFORT CARE SERVICES UK LTD,SOCIAL SERVICES-HOME CARE,Adult Social Care & Health,Supported Living - new framework,A56126,0
Royal Borough of Kingston,01/01/2023,90200215,"1,756.04",COMFORT CARE SERVICES UK LTD,SOCIAL SERVICES-HOME CARE,Adult Social Care & Health,Supported Living - new framework,A56126,0
Royal Borough of Kingston,01/01/2023,90200216,878.02,COMFORT CARE SERVICES UK LTD,SOCIAL SERVICES-HOME CARE,Adult Social Care & Health,Supported Living - new framework,A56126,0
Royal Borough of Kingston,01/01/2023,90200217,"-3,111.20",COMFORT CARE SERVICES UK LTD,SOCIAL SERVICES-HOME CARE,Adult Social Care & Health,Supported Living - new framework,A56126,0
Royal Borough of Kingston,01/01/2023,90200219,"1,699.39",COMFORT CARE SERVICES UK LTD,SOCIAL SERVICES-HOME CARE,Adult Social Care & Health,Supported Living - new framework,A56126,0
Royal Borough of Kingston,01/01/2023,90200220,849.70,COMFORT CARE SERVICES UK LTD,SOCIAL SERVICES-HOME CARE,Adult Social Care & Health,Supported Living - new framework,A56126,0
Royal Borough of Kingston,01/01/2023,90200221,"-3,010.84",COMFORT CARE SERVICES UK LTD,SOCIAL SERVICES-HOME CARE,Adult Social Care & Health,Supported Living - new framework,A56126,0
Royal Borough of Kingston,01/01/2023,90200223,"1,756.04",COMFORT CARE SERVICES UK LTD,SOCIAL SERVICES-HOME CARE,Adult Social Care & Health,Supported Living - new framework,A56126,0
Royal Borough of Kingston,01/01/2023,90200224,878.02,COMFORT CARE SERVICES UK LTD,SOCIAL SERVICES-HOME CARE,Adult Social Care & Health,Supported Living - new framework,A56126,0
Royal Borough of Kingston,01/01/2023,90200225,"-3,111.20",COMFORT CARE SERVICES UK LTD,SOCIAL SERVICES-HOME CARE,Adult Social Care & Health,Supported Living - new framework,A56126,0
Royal Borough of Kingston,01/01/2023,90200227,"1,756.04",COMFORT CARE SERVICES UK LTD,SOCIAL SERVICES-HOME CARE,Adult Social Care & Health,Supported Living - new framework,A56126,0
Royal Borough of Kingston,01/01/2023,90200228,878.02,COMFORT CARE SERVICES UK LTD,SOCIAL SERVICES-HOME CARE,Adult Social Care & Health,Supported Living - new framework,A56126,0
Royal Borough of Kingston,01/01/2023,90200230,"2,108.00",COMFORT CARE SERVICES UK LTD,SOCIAL SERVICES-HOME CARE,Adult Social Care & Health,Supported Living - new framework,A56126,0
Royal Borough of Kingston,01/01/2023,90200231,527.00,COMFORT CARE SERVICES UK LTD,SOCIAL SERVICES-HOME CARE,Adult Social Care & Health,Supported Living - new framework,A56126,0
Royal Borough of Kingston,01/01/2023,90200233,"2,108.00",COMFORT CARE SERVICES UK LTD,SOCIAL SERVICES-HOME CARE,Adult Social Care & Health,Supported Living - new framework,A56126,0
Royal Borough of Kingston,01/01/2023,90200234,527.00,COMFORT CARE SERVICES UK LTD,SOCIAL SERVICES-HOME CARE,Adult Social Care & Health,Supported Living - new framework,A56126,0
Royal Borough of Kingston,01/01/2023,90200256,"-1,836.00",COMFORT CARE SERVICES UK LTD,SOCIAL SERVICES-HOME CARE,Adult Social Care & Health,Supported Living - new framework,A56126,0
Royal Borough of Kingston,01/01/2023,90200259,"-2,040.00",COMFORT CARE SERVICES UK LTD,SOCIAL SERVICES-HOME CARE,Adult Social Care & Health,Supported Living - new framework,A56126,0
Royal Borough of Kingston,01/01/2023,90200260,-510.00,COMFORT CARE SERVICES UK LTD,SOCIAL SERVICES-HOME CARE,Adult Social Care & Health,Supported Living - new framework,A56126,0
Royal Borough of Kingston,01/01/2023,90200262,"-2,108.00",COMFORT CARE SERVICES UK LTD,SOCIAL SERVICES-HOME CARE,Adult Social Care & Health,Supported Living - new framework,A56126,0
Royal Borough of Kingston,01/01/2023,90200263,-527.00,COMFORT CARE SERVICES UK LTD,SOCIAL SERVICES-HOME CARE,Adult Social Care & Health,Supported Living - new framework,A56126,0
Royal Borough of Kingston,01/01/2023,90200267,"1,756.04",COMFORT CARE SERVICES UK LTD,SOCIAL SERVICES-HOME CARE,Adult Social Care & Health,Supported Living - new framework,A56126,0
Royal Borough of Kingston,01/01/2023,90200268,878.02,COMFORT CARE SERVICES UK LTD,SOCIAL SERVICES-HOME CARE,Adult Social Care & Health,Supported Living - new framework,A56126,0
Royal Borough of Kingston,01/01/2023,90200272,850.00,COMFORT CARE SERVICES UK LTD,SOCIAL SERVICES-HOME CARE,Adult Social Care & Health,Supported Living - new framework,A56126,0
Royal Borough of Kingston,01/01/2023,90200273,"1,586.10",COMFORT CARE SERVICES UK LTD,SOCIAL SERVICES-HOME CARE,Adult Social Care & Health,Supported Living - new framework,A56126,0
Royal Borough of Kingston,01/01/2023,90200274,793.05,COMFORT CARE SERVICES UK LTD,SOCIAL SERVICES-HOME CARE,Adult Social Care & Health,Supported Living - new framework,A56126,0
Royal Borough of Kingston,01/01/2023,90201078,"1,078.09",COMFORT CARE SERVICES UK LTD,SOCIAL SERVICES-HOME CARE,Adult Social Care & Health,Personal Budget - Third Party,A61019,0
Royal Borough of Kingston,01/01/2023,90201079,"4,294.78",COMFORT CARE SERVICES UK LTD,SOCIAL SERVICES-HOME CARE,Adult Social Care & Health,Personal Budget - Third Party,A61019,0
Royal Borough of Kingston,01/01/2023,90201081,"1,043.02",COMFORT CARE SERVICES UK LTD,SOCIAL SERVICES-HOME CARE,Adult Social Care & Health,Personal Budget - Third Party,A61019,0
Royal Borough of Kingston,01/01/2023,90201138,"1,078.09",COMFORT CARE SERVICES UK LTD,SOCIAL SERVICES-HOME CARE,Adult Social Care & Health,Personal Budget - Third Party,A61019,0
Royal Borough of Kingston,01/01/2023,90201139,"4,294.78",COMFORT CARE SERVICES UK LTD,SOCIAL SERVICES-HOME CARE,Adult Social Care & Health,Personal Budget - Third Party,A61019,0
Royal Borough of Kingston,01/01/2023,90201141,"1,043.02",COMFORT CARE SERVICES UK LTD,SOCIAL SERVICES-HOME CARE,Adult Social Care & Health,Personal Budget - Third Party,A61019,0
Royal Borough of Kingston,01/01/2023,90201287,"3,998.96",COMFORT CARE SERVICES UK LTD,SOCIAL SERVICES-HOME CARE,Adult Social Care & Health,Personal Budget - Third Party,A61019,0
Royal Borough of Kingston,01/01/2023,90201289,"1,419.93",COMFORT CARE SERVICES UK LTD,SOCIAL SERVICES-HOME CARE,Adult Social Care & Health,Personal Budget - Third Party,A61019,0
Royal Borough of Kingston,01/01/2023,90201290,"4,294.78",COMFORT CARE SERVICES UK LTD,SOCIAL SERVICES-HOME CARE,Adult Social Care & Health,Personal Budget - Third Party,A61019,0
Royal Borough of Kingston,01/01/2023,90201292,"1,043.02",COMFORT CARE SERVICES UK LTD,SOCIAL SERVICES-HOME CARE,Adult Social Care & Health,Personal Budget - Third Party,A61019,0
Royal Borough of Kingston,01/01/2023,90201319,"1,446.19",COMFORT CARE SERVICES UK LTD,SOCIAL SERVICES-HOME CARE,Adult Social Care & Health,Personal Budget - Third Party,A61019,0
Royal Borough of Kingston,01/01/2023,90201320,"4,294.78",COMFORT CARE SERVICES UK LTD,SOCIAL SERVICES-HOME CARE,Adult Social Care & Health,Personal Budget - Third Party,A61019,0
Royal Borough of Kingston,01/01/2023,90201322,"1,043.02",COMFORT CARE SERVICES UK LTD,SOCIAL SERVICES-HOME CARE,Adult Social Care & Health,Personal Budget - Third Party,A61019,0
Royal Borough of Kingston,01/01/2023,90201665,"1,110.82",COMFORT CARE SERVICES UK LTD,SOCIAL SERVICES-HOME CARE,Adult Social Care & Health,Personal Budget - Third Party,A61019,0
Royal Borough of Kingston,01/01/2023,90201668,"-2,700.47",COMFORT CARE SERVICES UK LTD,SOCIAL SERVICES-HOME CARE,Adult Social Care & Health,Personal Budget - Third Party,A61019,0
Royal Borough of Kingston,01/01/2023,90201669,"-2,790.49",COMFORT CARE SERVICES UK LTD,SOCIAL SERVICES-HOME CARE,Adult Social Care & Health,Personal Budget - Third Party,A61019,0
Royal Borough of Kingston,01/01/2023,90201670,"-2,700.47",COMFORT CARE SERVICES UK LTD,SOCIAL SERVICES-HOME CARE,Adult Social Care & Health,Personal Budget - Third Party,A61019,0
Royal Borough of Kingston,01/01/2023,90201671,"-2,790.49",COMFORT CARE SERVICES UK LTD,SOCIAL SERVICES-HOME CARE,Adult Social Care & Health,Personal Budget - Third Party,A61019,0
Royal Borough of Kingston,01/01/2023,90201672,"-2,790.49",COMFORT CARE SERVICES UK LTD,SOCIAL SERVICES-HOME CARE,Adult Social Care & Health,Personal Budget - Third Party,A61019,0
Royal Borough of Kingston,01/01/2023,90201673,"-2,700.47",COMFORT CARE SERVICES UK LTD,SOCIAL SERVICES-HOME CARE,Adult Social Care & Health,Personal Budget - Third Party,A61019,0
Royal Borough of Kingston,01/01/2023,90201674,"-2,790.49",COMFORT CARE SERVICES UK LTD,SOCIAL SERVICES-HOME CARE,Adult Social Care & Health,Personal Budget - Third Party,A61019,0
Royal Borough of Kingston,01/01/2023,90201675,"-2,700.47",COMFORT CARE SERVICES UK LTD,SOCIAL SERVICES-HOME CARE,Adult Social Care & Health,Personal Budget - Third Party,A61019,0
Royal Borough of Kingston,01/01/2023,90201676,"-2,790.49",COMFORT CARE SERVICES UK LTD,SOCIAL SERVICES-HOME CARE,Adult Social Care & Health,Personal Budget - Third Party,A61019,0
Royal Borough of Kingston,01/01/2023,90201677,"1,852.52",COMFORT CARE SERVICES UK LTD,SOCIAL SERVICES-HOME CARE,Adult Social Care & Health,Personal Budget - Third Party,A61019,0
Royal Borough of Kingston,01/01/2023,90201678,"2,937.87",COMFORT CARE SERVICES UK LTD,SOCIAL SERVICES-HOME CARE,Adult Social Care & Health,Personal Budget - Third Party,A61019,0
Royal Borough of Kingston,01/01/2023,90201687,"2,635.00",COMFORT CARE SERVICES UK LTD,SOCIAL SERVICES-HOME CARE,Adult Social Care & Health,Personal Budget - Third Party,A61019,0
Royal Borough of Kingston,01/01/2023,90201688,"-2,635.00",COMFORT CARE SERVICES UK LTD,SOCIAL SERVICES-HOME CARE,Adult Social Care & Health,Personal Budget - Third Party,A61019,0
Royal Borough of Kingston,01/01/2023,90201689,"2,635.00",COMFORT CARE SERVICES UK LTD,SOCIAL SERVICES-HOME CARE,Adult Social Care & Health,Personal Budget - Third Party,A61019,0
Royal Borough of Kingston,01/01/2023,90201690,"-2,635.00",COMFORT CARE SERVICES UK LTD,SOCIAL SERVICES-HOME CARE,Adult Social Care & Health,Personal Budget - Third Party,A61019,0
Royal Borough of Kingston,01/01/2023,90201691,"2,550.00",COMFORT CARE SERVICES UK LTD,SOCIAL SERVICES-HOME CARE,Adult Social Care & Health,Personal Budget - Third Party,A61019,0
Royal Borough of Kingston,01/01/2023,90201692,"-2,550.00",COMFORT CARE SERVICES UK LTD,SOCIAL SERVICES-HOME CARE,Adult Social Care & Health,Personal Budget - Third Party,A61019,0
Royal Borough of Kingston,01/01/2023,90201693,"2,635.00",COMFORT CARE SERVICES UK LTD,SOCIAL SERVICES-HOME CARE,Adult Social Care & Health,Personal Budget - Third Party,A61019,0
Royal Borough of Kingston,01/01/2023,90201694,"-2,635.00",COMFORT CARE SERVICES UK LTD,SOCIAL SERVICES-HOME CARE,Adult Social Care & Health,Personal Budget - Third Party,A61019,0
Royal Borough of Kingston,01/01/2023,90201695,"2,550.00",COMFORT CARE SERVICES UK LTD,SOCIAL SERVICES-HOME CARE,Adult Social Care & Health,Personal Budget - Third Party,A61019,0
Royal Borough of Kingston,01/01/2023,90201696,"-2,550.00",COMFORT CARE SERVICES UK LTD,SOCIAL SERVICES-HOME CARE,Adult Social Care & Health,Personal Budget - Third Party,A61019,0
Royal Borough of Kingston,01/01/2023,90201697,"2,635.00",COMFORT CARE SERVICES UK LTD,SOCIAL SERVICES-HOME CARE,Adult Social Care & Health,Personal Budget - Third Party,A61019,0
Royal Borough of Kingston,01/01/2023,90201698,"-2,635.00",COMFORT CARE SERVICES UK LTD,SOCIAL SERVICES-HOME CARE,Adult Social Care & Health,Personal Budget - Third Party,A61019,0
Royal Borough of Kingston,01/01/2023,90201699,"2,635.00",COMFORT CARE SERVICES UK LTD,SOCIAL SERVICES-HOME CARE,Adult Social Care & Health,Personal Budget - Third Party,A61019,0
Royal Borough of Kingston,01/01/2023,90201700,"-2,635.00",COMFORT CARE SERVICES UK LTD,SOCIAL SERVICES-HOME CARE,Adult Social Care & Health,Personal Budget - Third Party,A61019,0
Royal Borough of Kingston,01/01/2023,90201701,"2,380.00",COMFORT CARE SERVICES UK LTD,SOCIAL SERVICES-HOME CARE,Adult Social Care & Health,Personal Budget - Third Party,A61019,0
Royal Borough of Kingston,01/01/2023,90201702,"-2,380.00",COMFORT CARE SERVICES UK LTD,SOCIAL SERVICES-HOME CARE,Adult Social Care & Health,Personal Budget - Third Party,A61019,0
Royal Borough of Kingston,01/01/2023,90201703,"2,635.00",COMFORT CARE SERVICES UK LTD,SOCIAL SERVICES-HOME CARE,Adult Social Care & Health,Personal Budget - Third Party,A61019,0
Royal Borough of Kingston,01/01/2023,90201704,"-2,635.00",COMFORT CARE SERVICES UK LTD,SOCIAL SERVICES-HOME CARE,Adult Social Care & Health,Personal Budget - Third Party,A61019,0
Royal Borough of Kingston,01/01/2023,90201705,"-2,700.47",COMFORT CARE SERVICES UK LTD,SOCIAL SERVICES-HOME CARE,Adult Social Care & Health,Personal Budget - Third Party,A61019,0
Royal Borough of Kingston,01/01/2023,90201706,"-2,790.49",COMFORT CARE SERVICES UK LTD,SOCIAL SERVICES-HOME CARE,Adult Social Care & Health,Personal Budget - Third Party,A61019,0
Royal Borough of Kingston,01/01/2023,90201707,"-2,700.47",COMFORT CARE SERVICES UK LTD,SOCIAL SERVICES-HOME CARE,Adult Social Care & Health,Personal Budget - Third Party,A61019,0
Royal Borough of Kingston,01/01/2023,90201708,"-2,790.49",COMFORT CARE SERVICES UK LTD,SOCIAL SERVICES-HOME CARE,Adult Social Care & Health,Personal Budget - Third Party,A61019,0
Royal Borough of Kingston,01/01/2023,90201709,"-2,790.49",COMFORT CARE SERVICES UK LTD,SOCIAL SERVICES-HOME CARE,Adult Social Care & Health,Personal Budget - Third Party,A61019,0
Royal Borough of Kingston,01/01/2023,90201710,"-2,700.47",COMFORT CARE SERVICES UK LTD,SOCIAL SERVICES-HOME CARE,Adult Social Care & Health,Personal Budget - Third Party,A61019,0
Royal Borough of Kingston,01/01/2023,90201711,"-1,890.33",COMFORT CARE SERVICES UK LTD,SOCIAL SERVICES-HOME CARE,Adult Social Care & Health,Personal Budget - Third Party,A61019,0
Royal Borough of Kingston,01/01/2023,90201718,"1,110.82",COMFORT CARE SERVICES UK LTD,SOCIAL SERVICES-HOME CARE,Adult Social Care & Health,Personal Budget - Third Party,A61019,0
Royal Borough of Kingston,01/01/2023,90201719,"-2,700.47",COMFORT CARE SERVICES UK LTD,SOCIAL SERVICES-HOME CARE,Adult Social Care & Health,Personal Budget - Third Party,A61019,0
Royal Borough of Kingston,01/01/2023,90201720,"-2,790.49",COMFORT CARE SERVICES UK LTD,SOCIAL SERVICES-HOME CARE,Adult Social Care & Health,Personal Budget - Third Party,A61019,0
Royal Borough of Kingston,01/01/2023,90201721,"-2,700.47",COMFORT CARE SERVICES UK LTD,SOCIAL SERVICES-HOME CARE,Adult Social Care & Health,Personal Budget - Third Party,A61019,0
Royal Borough of Kingston,01/01/2023,90201722,"-2,790.49",COMFORT CARE SERVICES UK LTD,SOCIAL SERVICES-HOME CARE,Adult Social Care & Health,Personal Budget - Third Party,A61019,0
Royal Borough of Kingston,01/01/2023,90201723,"-2,790.49",COMFORT CARE SERVICES UK LTD,SOCIAL SERVICES-HOME CARE,Adult Social Care & Health,Personal Budget - Third Party,A61019,0
Royal Borough of Kingston,01/01/2023,90201724,"-2,700.47",COMFORT CARE SERVICES UK LTD,SOCIAL SERVICES-HOME CARE,Adult Social Care & Health,Personal Budget - Third Party,A61019,0
Royal Borough of Kingston,01/01/2023,90201725,"-2,790.49",COMFORT CARE SERVICES UK LTD,SOCIAL SERVICES-HOME CARE,Adult Social Care & Health,Personal Budget - Third Party,A61019,0
Royal Borough of Kingston,01/01/2023,90201726,"-2,700.47",COMFORT CARE SERVICES UK LTD,SOCIAL SERVICES-HOME CARE,Adult Social Care & Health,Personal Budget - Third Party,A61019,0
Royal Borough of Kingston,01/01/2023,90201727,"-2,790.49",COMFORT CARE SERVICES UK LTD,SOCIAL SERVICES-HOME CARE,Adult Social Care & Health,Personal Budget - Third Party,A61019,0
Royal Borough of Kingston,01/01/2023,90201730,"2,106.14",COMFORT CARE SERVICES UK LTD,SOCIAL SERVICES-HOME CARE,Adult Social Care & Health,Personal Budget - Third Party,A61019,0
Royal Borough of Kingston,01/01/2023,90201734,"-1,672.67",COMFORT CARE SERVICES UK LTD,SOCIAL SERVICES-HOME CARE,Adult Social Care & Health,Personal Budget - Third Party,A61019,0
Royal Borough of Kingston,01/01/2023,90201735,"-1,728.43",COMFORT CARE SERVICES UK LTD,SOCIAL SERVICES-HOME CARE,Adult Social Care & Health,Personal Budget - Third Party,A61019,0
Royal Borough of Kingston,01/01/2023,90201736,"-1,672.67",COMFORT CARE SERVICES UK LTD,SOCIAL SERVICES-HOME CARE,Adult Social Care & Health,Personal Budget - Third Party,A61019,0
Royal Borough of Kingston,01/01/2023,90201737,"-1,728.43",COMFORT CARE SERVICES UK LTD,SOCIAL SERVICES-HOME CARE,Adult Social Care & Health,Personal Budget - Third Party,A61019,0
Royal Borough of Kingston,01/01/2023,90201738,"-1,728.43",COMFORT CARE SERVICES UK LTD,SOCIAL SERVICES-HOME CARE,Adult Social Care & Health,Personal Budget - Third Party,A61019,0
Royal Borough of Kingston,01/01/2023,90201739,"-1,672.67",COMFORT CARE SERVICES UK LTD,SOCIAL SERVICES-HOME CARE,Adult Social Care & Health,Personal Budget - Third Party,A61019,0
Royal Borough of Kingston,01/01/2023,90201740,"-1,728.43",COMFORT CARE SERVICES UK LTD,SOCIAL SERVICES-HOME CARE,Adult Social Care & Health,Personal Budget - Third Party,A61019,0
Royal Borough of Kingston,01/01/2023,90201741,"-1,672.67",COMFORT CARE SERVICES UK LTD,SOCIAL SERVICES-HOME CARE,Adult Social Care & Health,Personal Budget - Third Party,A61019,0
Royal Borough of Kingston,01/01/2023,90201742,"-1,728.43",COMFORT CARE SERVICES UK LTD,SOCIAL SERVICES-HOME CARE,Adult Social Care & Health,Personal Budget - Third Party,A61019,0
Royal Borough of Kingston,01/01/2023,90201747,"2,936.72",COMFORT CARE SERVICES UK LTD,SOCIAL SERVICES-HOME CARE,Adult Social Care & Health,Personal Budget - Third Party,A61019,0
Royal Borough of Kingston,01/01/2023,90202676,"8,102.87",COMMUNITY CARE SOLUTIONS LTD,SOCIAL SERVICES RESIDENTIAL,Adult Social Care & Health,Independent Placements,A56006,0
Royal Borough of Kingston,01/01/2023,90202679,"8,363.45",CONGRESS HOUSE LIMITED,SOCIAL SERVICES RESIDENTIAL,Adult Social Care & Health,Independent Placements,A56006,0
Royal Borough of Kingston,24/01/2023,90202199,842.00,REDACTED - PERSONAL DATA,PLS LANDLORDS,Place,PSL Payments To Landlords,A22031,0
Royal Borough of Kingston,13/01/2023,90198286,"9,700.83",COOMBE ACADEMY TRUST,ACADEMIC INSTNS - OTHER,Schools,Miscellaneous Expenses,A49000,0
Royal Borough of Kingston,25/01/2023,90203000,"3,333.00",COOMBE ACADEMY TRUST,ACADEMIC INSTNS - OTHER,Schools,Miscellaneous Expenses,A49000,0
Royal Borough of Kingston,25/01/2023,90203003,"6,000.00",Coombe Boys School,SCHOOL FUNDS,Schools,Miscellaneous Expenses,A49000,0
Royal Borough of Kingston,30/06/2022,70039018,669.80,COOMBE HILL PHARMACY,SOCIAL SERVICES - OTHER,Adult Social Care & Health,Other Private Contractors - Third Party,A56080,0
Royal Borough of Kingston,30/09/2022,70039019,561.20,COOMBE HILL PHARMACY,SOCIAL SERVICES - OTHER,Adult Social Care & Health,Other Private Contractors - Third Party,A56080,0
Royal Borough of Kingston,13/01/2023,90198339,"11,265.48",CORPUS CHRISTI CATHOLIC PRIMARY SCHOOL ,ACADEMIC INSTNS - OTHER,Schools,Miscellaneous Expenses,A49000,0
Royal Borough of Kingston,01/01/2023,90202320,"3,542.86",COUNTRY COURT CARE HOMES 2 LTD,SOCIAL SERVICES RESIDENTIAL,Adult Social Care & Health,Independent Placements,A56006,0
Royal Borough of Kingston,01/01/2023,90202357,"3,764.29",COUNTRY COURT CARE HOMES 2 LTD,SOCIAL SERVICES RESIDENTIAL,Adult Social Care & Health,Independent Placements,A56006,0
Royal Borough of Kingston,01/01/2023,90202424,"3,528.91",COUNTRY COURT CARE HOMES 2 LTD,SOCIAL SERVICES RESIDENTIAL,Adult Social Care & Health,Independent Placements,A56006,0
Royal Borough of Kingston,01/01/2023,90202429,"3,764.29",COUNTRY COURT CARE HOMES 2 LTD,SOCIAL SERVICES RESIDENTIAL,Adult Social Care & Health,Independent Placements,A56006,0
Royal Borough of Kingston,01/01/2023,90202466,"3,214.29",COUNTRY COURT CARE HOMES 2 LTD,SOCIAL SERVICES RESIDENTIAL,Adult Social Care & Health,Independent Placements,A56006,0
Royal Borough of Kingston,01/01/2023,90202467,"-3,214.29",COUNTRY COURT CARE HOMES 2 LTD,SOCIAL SERVICES RESIDENTIAL,Adult Social Care & Health,Independent Placements,A56006,0
Royal Borough of Kingston,01/01/2023,90202468,"3,321.43",COUNTRY COURT CARE HOMES 2 LTD,SOCIAL SERVICES RESIDENTIAL,Adult Social Care & Health,Independent Placements,A56006,0
Royal Borough of Kingston,01/01/2023,90202469,"-3,321.43",COUNTRY COURT CARE HOMES 2 LTD,SOCIAL SERVICES RESIDENTIAL,Adult Social Care & Health,Independent Placements,A56006,0
Royal Borough of Kingston,01/01/2023,90202470,"3,214.29",COUNTRY COURT CARE HOMES 2 LTD,SOCIAL SERVICES RESIDENTIAL,Adult Social Care & Health,Independent Placements,A56006,0
Royal Borough of Kingston,01/01/2023,90202471,"-3,214.29",COUNTRY COURT CARE HOMES 2 LTD,SOCIAL SERVICES RESIDENTIAL,Adult Social Care & Health,Independent Placements,A56006,0
Royal Borough of Kingston,01/01/2023,90202472,"3,321.43",COUNTRY COURT CARE HOMES 2 LTD,SOCIAL SERVICES RESIDENTIAL,Adult Social Care & Health,Independent Placements,A56006,0
Royal Borough of Kingston,01/01/2023,90202473,"-3,321.43",COUNTRY COURT CARE HOMES 2 LTD,SOCIAL SERVICES RESIDENTIAL,Adult Social Care & Health,Independent Placements,A56006,0
Royal Borough of Kingston,01/01/2023,90202474,"3,321.43",COUNTRY COURT CARE HOMES 2 LTD,SOCIAL SERVICES RESIDENTIAL,Adult Social Care & Health,Independent Placements,A56006,0
Royal Borough of Kingston,01/01/2023,90202475,"-3,321.43",COUNTRY COURT CARE HOMES 2 LTD,SOCIAL SERVICES RESIDENTIAL,Adult Social Care & Health,Independent Placements,A56006,0
Royal Borough of Kingston,01/01/2023,90202476,"3,214.29",COUNTRY COURT CARE HOMES 2 LTD,SOCIAL SERVICES RESIDENTIAL,Adult Social Care & Health,Independent Placements,A56006,0
Royal Borough of Kingston,01/01/2023,90202477,"-3,214.29",COUNTRY COURT CARE HOMES 2 LTD,SOCIAL SERVICES RESIDENTIAL,Adult Social Care & Health,Independent Placements,A56006,0
Royal Borough of Kingston,01/01/2023,90202478,"3,321.43",COUNTRY COURT CARE HOMES 2 LTD,SOCIAL SERVICES RESIDENTIAL,Adult Social Care & Health,Independent Placements,A56006,0
Royal Borough of Kingston,01/01/2023,90202479,"-3,321.43",COUNTRY COURT CARE HOMES 2 LTD,SOCIAL SERVICES RESIDENTIAL,Adult Social Care & Health,Independent Placements,A56006,0
Royal Borough of Kingston,01/01/2023,90202480,"3,214.29",COUNTRY COURT CARE HOMES 2 LTD,SOCIAL SERVICES RESIDENTIAL,Adult Social Care & Health,Independent Placements,A56006,0
Royal Borough of Kingston,01/01/2023,90202481,"-3,214.29",COUNTRY COURT CARE HOMES 2 LTD,SOCIAL SERVICES RESIDENTIAL,Adult Social Care & Health,Independent Placements,A56006,0
Royal Borough of Kingston,01/01/2023,90202482,"3,321.43",COUNTRY COURT CARE HOMES 2 LTD,SOCIAL SERVICES RESIDENTIAL,Adult Social Care & Health,Independent Placements,A56006,0
Royal Borough of Kingston,01/01/2023,90202483,"-3,321.43",COUNTRY COURT CARE HOMES 2 LTD,SOCIAL SERVICES RESIDENTIAL,Adult Social Care & Health,Independent Placements,A56006,0
Royal Borough of Kingston,01/01/2023,90202484,"3,321.43",COUNTRY COURT CARE HOMES 2 LTD,SOCIAL SERVICES RESIDENTIAL,Adult Social Care & Health,Independent Placements,A56006,0
Royal Borough of Kingston,01/01/2023,90202485,"-3,321.43",COUNTRY COURT CARE HOMES 2 LTD,SOCIAL SERVICES RESIDENTIAL,Adult Social Care & Health,Independent Placements,A56006,0
Royal Borough of Kingston,01/01/2023,90202486,"3,000.00",COUNTRY COURT CARE HOMES 2 LTD,SOCIAL SERVICES RESIDENTIAL,Adult Social Care & Health,Independent Placements,A56006,0
Royal Borough of Kingston,01/01/2023,90202487,"-3,000.00",COUNTRY COURT CARE HOMES 2 LTD,SOCIAL SERVICES RESIDENTIAL,Adult Social Care & Health,Independent Placements,A56006,0
Royal Borough of Kingston,01/01/2023,90202488,"3,321.43",COUNTRY COURT CARE HOMES 2 LTD,SOCIAL SERVICES RESIDENTIAL,Adult Social Care & Health,Independent Placements,A56006,0
Royal Borough of Kingston,01/01/2023,90202489,"-3,321.43",COUNTRY COURT CARE HOMES 2 LTD,SOCIAL SERVICES RESIDENTIAL,Adult Social Care & Health,Independent Placements,A56006,0
Royal Borough of Kingston,01/01/2023,90202490,"3,214.29",COUNTRY COURT CARE HOMES 2 LTD,SOCIAL SERVICES RESIDENTIAL,Adult Social Care & Health,Independent Placements,A56006,0
Royal Borough of Kingston,01/01/2023,90202491,"-3,339.64",COUNTRY COURT CARE HOMES 2 LTD,SOCIAL SERVICES RESIDENTIAL,Adult Social Care & Health,Independent Placements,A56006,0
Royal Borough of Kingston,01/01/2023,90202492,"3,321.43",COUNTRY COURT CARE HOMES 2 LTD,SOCIAL SERVICES RESIDENTIAL,Adult Social Care & Health,Independent Placements,A56006,0
Royal Borough of Kingston,01/01/2023,90202493,"-3,450.96",COUNTRY COURT CARE HOMES 2 LTD,SOCIAL SERVICES RESIDENTIAL,Adult Social Care & Health,Independent Placements,A56006,0
Royal Borough of Kingston,01/01/2023,90202494,"3,214.29",COUNTRY COURT CARE HOMES 2 LTD,SOCIAL SERVICES RESIDENTIAL,Adult Social Care & Health,Independent Placements,A56006,0
Royal Borough of Kingston,01/01/2023,90202495,"-3,339.64",COUNTRY COURT CARE HOMES 2 LTD,SOCIAL SERVICES RESIDENTIAL,Adult Social Care & Health,Independent Placements,A56006,0
Royal Borough of Kingston,01/01/2023,90202496,"3,321.43",COUNTRY COURT CARE HOMES 2 LTD,SOCIAL SERVICES RESIDENTIAL,Adult Social Care & Health,Independent Placements,A56006,0
Royal Borough of Kingston,01/01/2023,90202497,"-3,450.96",COUNTRY COURT CARE HOMES 2 LTD,SOCIAL SERVICES RESIDENTIAL,Adult Social Care & Health,Independent Placements,A56006,0
Royal Borough of Kingston,01/01/2023,90202498,"3,321.43",COUNTRY COURT CARE HOMES 2 LTD,SOCIAL SERVICES RESIDENTIAL,Adult Social Care & Health,Independent Placements,A56006,0
Royal Borough of Kingston,01/01/2023,90202499,"-3,450.96",COUNTRY COURT CARE HOMES 2 LTD,SOCIAL SERVICES RESIDENTIAL,Adult Social Care & Health,Independent Placements,A56006,0
Royal Borough of Kingston,01/01/2023,90202500,"3,214.29",COUNTRY COURT CARE HOMES 2 LTD,SOCIAL SERVICES RESIDENTIAL,Adult Social Care & Health,Independent Placements,A56006,0
Royal Borough of Kingston,01/01/2023,90202501,"-3,339.64",COUNTRY COURT CARE HOMES 2 LTD,SOCIAL SERVICES RESIDENTIAL,Adult Social Care & Health,Independent Placements,A56006,0
Royal Borough of Kingston,01/01/2023,90202502,"2,571.43",COUNTRY COURT CARE HOMES 2 LTD,SOCIAL SERVICES RESIDENTIAL,Adult Social Care & Health,Independent Placements,A56006,0
Royal Borough of Kingston,01/01/2023,90202503,"-3,450.96",COUNTRY COURT CARE HOMES 2 LTD,SOCIAL SERVICES RESIDENTIAL,Adult Social Care & Health,Independent Placements,A56006,0
Royal Borough of Kingston,01/01/2023,90202504,"-1,224.54",COUNTRY COURT CARE HOMES 2 LTD,SOCIAL SERVICES RESIDENTIAL,Adult Social Care & Health,Independent Placements,A56006,0
Royal Borough of Kingston,01/01/2023,90202617,"3,764.29",COUNTRY COURT CARE HOMES 2 LTD,SOCIAL SERVICES RESIDENTIAL,Adult Social Care & Health,Independent Placements,A56006,0
Royal Borough of Kingston,31/12/2022,70038143,"527,614.00",COUNTRYSIDE PROPERTIES (UK) LTD,CONSTRUCTION INDUSTRY,Capital Programme,Payments to Contractors,C14000,0
Royal Borough of Kingston,31/12/2022,70038144,"220,510.14",COUNTRYSIDE PROPERTIES (UK) LTD,CONSTRUCTION INDUSTRY,Capital Programme,Payments to Contractors,C14000,0
Royal Borough of Kingston,31/12/2022,70038145,"430,489.92",COUNTRYSIDE PROPERTIES (UK) LTD,CONSTRUCTION INDUSTRY,Capital Programme,Payments to Contractors,C14000,0
Royal Borough of Kingston,20/01/2023,70038917,"2,884.00",Countrywide Residential Lettings,SUNDRY SUPPLIER - FINANCE,Adult Social Care & Health,"Grants, Contributions & Donations",A47005,0
Royal Borough of Kingston,21/11/2022,70036042,"17,019.54",CRAVENCROFT LTD,CONSTRUCTION INDUSTRY,Capital Programme,Payments to Contractors,C14000,0
Royal Borough of Kingston,06/01/2023,70038199,"49,188.04",CRAVENCROFT LTD,CONSTRUCTION INDUSTRY,Capital Programme,Payments to Contractors,C14000,0
Royal Borough of Kingston,06/01/2023,70038293,"22,383.82",CRAVENCROFT LTD,CONSTRUCTION INDUSTRY,Capital Programme,Payments to Contractors,C14000,0
Royal Borough of Kingston,22/12/2022,70037838,"1,547.25",Credence Direct Limited,TEMP STAFF & CONSULTANCY,Adult Social Care & Health,Other Private Contractors - Third Party,A56080,0
Royal Borough of Kingston,24/01/2023,90201944,"1,807.09",CROMWOOD LIMITED,PLS LANDLORDS,Place,PSL Payments To Landlords,A22031,0
Royal Borough of Kingston,30/09/2022,70038268,"1,580.00",CROWN PROMOTIONS & REMOVALS LTD,PREMISES - REMOVALS,Capital Programme,Buildings - Project Management,C14003,0
Royal Borough of Kingston,31/12/2022,70038483,560.00,CROWN PROMOTIONS & REMOVALS LTD,PREMISES - REMOVALS,Capital Programme,Buildings - Project Management,C14003,0
Royal Borough of Kingston,30/11/2022,70038626,"2,565.00",CROWN PROMOTIONS & REMOVALS LTD,PREMISES - REMOVALS,Housing Revenue Account,Consultancy Services - Other,A44065,0
Royal Borough of Kingston,29/11/2022,70036563,"511,375.52",LONDON BOROUGH OF CROYDON,CENTRAL & LOCAL GOVERNMENT,Corporate & Communities,Waste Disposal Contract,A56074,0
Royal Borough of Kingston,09/12/2022,70037064,"484,426.61",LONDON BOROUGH OF CROYDON,CENTRAL & LOCAL GOVERNMENT,Corporate & Communities,Waste Disposal Contract,A56074,0
Royal Borough of Kingston,01/01/2023,70038319,"1,922.00",CRYSTAL & CO,ACCOMMODATION BED & BREAKFAST,Place,Bed & Breakfast,A56000,0
Royal Borough of Kingston,01/01/2023,70038320,"1,581.00",CRYSTAL & CO,ACCOMMODATION BED & BREAKFAST,Place,Bed & Breakfast,A56000,0
Royal Borough of Kingston,01/01/2023,70038321,"1,922.00",CRYSTAL & CO,ACCOMMODATION BED & BREAKFAST,Place,Bed & Breakfast,A56000,0
Royal Borough of Kingston,01/01/2023,70038322,"2,325.00",CRYSTAL & CO,ACCOMMODATION BED & BREAKFAST,Place,Bed & Breakfast,A56000,0
Royal Borough of Kingston,01/01/2023,70038323,"1,922.00",CRYSTAL & CO,ACCOMMODATION BED & BREAKFAST,Place,Bed & Breakfast,A56000,0
Royal Borough of Kingston,01/01/2023,70038324,"1,581.00",CRYSTAL & CO,ACCOMMODATION BED & BREAKFAST,Place,Bed & Breakfast,A56000,0
Royal Borough of Kingston,01/01/2023,70038325,"1,643.00",CRYSTAL & CO,ACCOMMODATION BED & BREAKFAST,Place,Bed & Breakfast,A56000,0
Royal Borough of Kingston,01/01/2023,70038326,"1,643.00",CRYSTAL & CO,ACCOMMODATION BED & BREAKFAST,Place,Bed & Breakfast,A56000,0
Royal Borough of Kingston,01/01/2023,70038327,"2,170.00",CRYSTAL & CO,ACCOMMODATION BED & BREAKFAST,Place,Bed & Breakfast,A56000,0
Royal Borough of Kingston,01/01/2023,70038328,"1,922.00",CRYSTAL & CO,ACCOMMODATION BED & BREAKFAST,Place,Bed & Breakfast,A56000,0
Royal Borough of Kingston,01/01/2023,70038329,"1,581.00",CRYSTAL & CO,ACCOMMODATION BED & BREAKFAST,Place,Bed & Breakfast,A56000,0
Royal Borough of Kingston,01/01/2023,70038330,"1,302.00",CRYSTAL & CO,ACCOMMODATION BED & BREAKFAST,Place,Bed & Breakfast,A56000,0
